Body Name,Body,Supplier,Transaction Number,Payment Date,Amount,Directorate,Organisational Unit,Cost Centre/Detail Code,Cost Centre Description,Detail Code Description
Ashfield District Council,37UB,CCS Media Limited,V1021182,09/03/2023,1604.02,R & B Transformation 2,Supplies & Services,C00245/d001001,Suspended Capital Codes,Equipment Purchase
Ashfield District Council,37UB,CCS Media Limited,V1021187,09/03/2023,15934.45,R & B Transformation 2,Supplies & Services,C00245/D001001,Suspended Capital Codes,Equipment Purchase
Ashfield District Council,37UB,CCS Media Limited,V1021319,16/03/2023,947.83,R & B Transformation 2,Supplies & Services,C00245/d001001,Suspended Capital Codes,Equipment Purchase
Ashfield District Council,37UB,CCS Media Limited,V1023368,31/03/2023,437.5,R & B Transformation 2,Supplies & Services,C00245/D001001,Suspended Capital Codes,Equipment Purchase
Ashfield District Council,37UB,Davinhulme Security Dogs,V1020290,09/03/2023,462,Housing & Assets 2,Supplies & Services,C00264/D200008,FHS Fund,Payments to Contractors External
Ashfield District Council,37UB,Hoot Fire & Security Ltd,V1020756,09/03/2023,172,Housing & Assets 2,Supplies & Services,C00264/D200008,FHS Fund,Payments to Contractors External
Ashfield District Council,37UB,Innovation Fire Engineering Limited,V1023202,31/03/2023,5400,Place & Communities 2,Supplies & Services,C00263/D200008,FHS Fund,Payments to Contractors External
Ashfield District Council,37UB,Kinver Business Solutions Ltd,V1020276,02/03/2023,1280,Place & Communities 2,Supplies & Services,C00265/D201019,FHS Fund,Project Management Fees
Ashfield District Council,37UB,Kinver Business Solutions Ltd,V1020276,02/03/2023,1280,Place & Communities 2,Supplies & Services,C00263/D201019,FHS Fund,Project Management Fees
Ashfield District Council,37UB,Kinver Business Solutions Ltd,V1020276,02/03/2023,1280,Place & Communities 2,Supplies & Services,C00264/D201019,FHS Fund,Project Management Fees
Ashfield District Council,37UB,Kinver Business Solutions Ltd,V1023245,31/03/2023,1280,Place & Communities 2,Supplies & Services,C00263/D201019,FHS Fund,Project Management Fees
Ashfield District Council,37UB,Kinver Business Solutions Ltd,V1023245,31/03/2023,1280,Place & Communities 2,Supplies & Services,C00264/D201019,FHS Fund,Project Management Fees
Ashfield District Council,37UB,Kinver Business Solutions Ltd,V1023245,31/03/2023,1280,Place & Communities 2,Supplies & Services,C00265/D201019,FHS Fund,Project Management Fees
Ashfield District Council,37UB,Miller Knight Resource Management Ltd,V1023261,31/03/2023,144790.42,Place & Communities 2,Supplies & Services,C00265/D200008,FHS Fund,Payments to Contractors External
Ashfield District Council,37UB,Pulse Associates Ltd trading as Pulse Consult,V1023335,31/03/2023,3000,Place & Communities 2,Supplies & Services,C00264/D200008,FHS Fund,Payments to Contractors External
Ashfield District Council,37UB,Quadrant Building Control,V1021960,23/03/2023,900,Place & Communities 2,Supplies & Services,C00263/D200008,FHS Fund,Payments to Contractors External
Ashfield District Council,37UB,Stage Right Theatre Consultant,V1021223,16/03/2023,2927,Place & Communities 2,Supplies & Services,C00263/D200008,FHS Fund,Payments to Contractors External
Ashfield District Council,37UB,Via East Midlands Ltd,V1020814,09/03/2023,1000,Place & Communities 2,Supplies & Services,C00265/D200008,FHS Fund,Payments to Contractors External
Ashfield District Council,37UB,Paris Smith LLP,V1020089,02/03/2023,500,R & B Transformation 2,Supplies & Services,C00265/D200004,FHS Fund,Legal Expenses
Ashfield District Council,37UB,Paris Smith LLP,V1020090,02/03/2023,1000,R & B Transformation 2,Supplies & Services,C00265/D200004,FHS Fund,Legal Expenses
Ashfield District Council,37UB,Greenacre Recruitment Limited,V1020154,02/03/2023,2850,Chief Executive 2,Supplies & Services,C00235/D200008,General Fund,Payments to Contractors External
Ashfield District Council,37UB,Greenacre Recruitment Limited,V1021218,16/03/2023,1800,Chief Executive 2,Supplies & Services,C00235/D200008,General Fund,Payments to Contractors External
Ashfield District Council,37UB,Greenacre Recruitment Limited,V1021219,16/03/2023,1800,Chief Executive 2,Supplies & Services,C00235/D200008,General Fund,Payments to Contractors External
Ashfield District Council,37UB,Greenacre Recruitment Limited,V1021220,16/03/2023,2250,Chief Executive 2,Supplies & Services,C00235/D200008,General Fund,Payments to Contractors External
Ashfield District Council,37UB,Greenacre Recruitment Limited,V1022035,23/03/2023,2850,Chief Executive 2,Supplies & Services,C00235/D200008,General Fund,Payments to Contractors External
Ashfield District Council,37UB,Greenacre Recruitment Limited,V1022141,23/03/2023,2550,Chief Executive 2,Supplies & Services,C00235/D200008,General Fund,Payments to Contractors External
Ashfield District Council,37UB,Greenacre Recruitment Limited,V1023329,31/03/2023,2112.5,Chief Executive 2,Supplies & Services,C00235/D200008,General Fund,Payments to Contractors External
Ashfield District Council,37UB,Asbestos GRP Labs Ltd,V1020255,02/03/2023,120,Housing & Assets 2,Supplies & Services,G00002001/D200008,General Fund,Payments to Contractors External
Ashfield District Council,37UB,Asbestos GRP Labs Ltd,V1022079,23/03/2023,120,Housing & Assets 2,Supplies & Services,G00002001/D200008,General Fund,Payments to Contractors External
Ashfield District Council,37UB,Asbestos GRP Labs Ltd,V1022080,23/03/2023,120,Housing & Assets 2,Supplies & Services,G00002001/D200008,General Fund,Payments to Contractors External
Ashfield District Council,37UB,Asbestos GRP Labs Ltd,V1022768,31/03/2023,120,Housing & Assets 2,Supplies & Services,G00002001/D200008,General Fund,Payments to Contractors External
Ashfield District Council,37UB,Asbestos GRP Labs Ltd,V1023303,31/03/2023,136,Housing & Assets 2,Supplies & Services,G00002001/D200008,General Fund,Payments to Contractors External
Ashfield District Council,37UB,Bronbury Services Ltd,V1023216,31/03/2023,6912,Housing & Assets 2,Supplies & Services,G00002001/D200008,General Fund,Payments to Contractors External
Ashfield District Council,37UB,Candor Care Ltd,V1021949,16/03/2023,5088.4,Housing & Assets 2,Supplies & Services,G00002001/D200008,General Fund,Payments to Contractors External
Ashfield District Council,37UB,Candor Care Ltd,V1021950,16/03/2023,535,Housing & Assets 2,Supplies & Services,G00002001/D200008,General Fund,Payments to Contractors External
Ashfield District Council,37UB,Carlton Design & Fabrication,V1021926,16/03/2023,2140,Housing & Assets 2,Supplies & Services,G00002001/D200008,General Fund,Payments to Contractors External
Ashfield District Council,37UB,Carlton Design & Fabrication,V1023244,31/03/2023,4278,Housing & Assets 2,Supplies & Services,G00002001/D200008,General Fund,Payments to Contractors External
Ashfield District Council,37UB,Carlton Design & Fabrication,V1023354,31/03/2023,3462.6,Housing & Assets 2,Supplies & Services,G00002001/D200008,General Fund,Payments to Contractors External
Ashfield District Council,37UB,D Cresswell & Son (Electricians) Ltd,V1020822,09/03/2023,1880,Housing & Assets 2,Supplies & Services,G00002001/D200008,General Fund,Payments to Contractors External
Ashfield District Council,37UB,D Cresswell & Son (Electricians) Ltd,V1022676,31/03/2023,3066,Housing & Assets 2,Supplies & Services,G00002001/D200008,General Fund,Payments to Contractors External
Ashfield District Council,37UB,D Cresswell & Son (Electricians) Ltd,V1023253,31/03/2023,4313,Housing & Assets 2,Supplies & Services,G00002001/D200008,General Fund,Payments to Contractors External
Ashfield District Council,37UB,M L Kubik & Son Ltd,V1021412,16/03/2023,143.35,Housing & Assets 2,Supplies & Services,G00002001/D200008,General Fund,Payments to Contractors External
Ashfield District Council,37UB,Matthews & Tannert Ltd,V1020252,02/03/2023,2950,Housing & Assets 2,Supplies & Services,G00002002/D200008,General Fund,Payments to Contractors External
Ashfield District Council,37UB,Matthews & Tannert Ltd,V1020740,09/03/2023,4370,Housing & Assets 2,Supplies & Services,G00002002/D200008,General Fund,Payments to Contractors External
Ashfield District Council,37UB,Matthews & Tannert Ltd,V1021340,16/03/2023,2750,Housing & Assets 2,Supplies & Services,G00002002/D200008,General Fund,Payments to Contractors External
Ashfield District Council,37UB,Matthews & Tannert Ltd,V1022123,23/03/2023,3890,Housing & Assets 2,Supplies & Services,G00002002/D200008,General Fund,Payments to Contractors External
Ashfield District Council,37UB,Matthews & Tannert Ltd,V1023232,31/03/2023,2310,Housing & Assets 2,Supplies & Services,G00002002/D200008,General Fund,Payments to Contractors External
Ashfield District Council,37UB,Matthews & Tannert Ltd,V1023257,31/03/2023,6250,Housing & Assets 2,Supplies & Services,G00002002/D200008,General Fund,Payments to Contractors External
Ashfield District Council,37UB,Matthews & Tannert Ltd,V1023305,31/03/2023,4752,Housing & Assets 2,Supplies & Services,G00002002/D200008,General Fund,Payments to Contractors External
Ashfield District Council,37UB,Matthews & Tannert Ltd,V1023334,31/03/2023,3890,Housing & Assets 2,Supplies & Services,G00002002/D200008,General Fund,Payments to Contractors External
Ashfield District Council,37UB,Obam Lift Services Ltd,V1020208,02/03/2023,5780,Housing & Assets 2,Supplies & Services,G00002001/D200008,General Fund,Payments to Contractors External
Ashfield District Council,37UB,Obam Lift Services Ltd,V1022088,23/03/2023,3557,Housing & Assets 2,Supplies & Services,G00002001/D200008,General Fund,Payments to Contractors External
Ashfield District Council,37UB,Obam Lift Services Ltd,V1023240,31/03/2023,1602.56,Housing & Assets 2,Supplies & Services,G00002001/D200008,General Fund,Payments to Contractors External
Ashfield District Council,37UB,Prism Medical UK - Westholme Division,V1023281,31/03/2023,1198.72,Housing & Assets 2,Supplies & Services,G00002001/D200008,General Fund,Payments to Contractors External
Ashfield District Council,37UB,Prism Medical UK - Westholme Division,V1023352,31/03/2023,1033.72,Housing & Assets 2,Supplies & Services,G00002001/D200008,General Fund,Payments to Contractors External
Ashfield District Council,37UB,T Grant & Son Ltd,V1021930,16/03/2023,2900,Housing & Assets 2,Supplies & Services,G00002002/D200008,General Fund,Payments to Contractors External
Ashfield District Council,37UB,Vaughandale Construction Ltd,V1021339,16/03/2023,4379,Housing & Assets 2,Supplies & Services,G00002001/D200008,General Fund,Payments to Contractors External
Ashfield District Council,37UB,Ven Construction,V1020855,09/03/2023,7500,Housing & Assets 2,Supplies & Services,G00002001/D200008,General Fund,Payments to Contractors External
Ashfield District Council,37UB,Ven Construction,V1022034,23/03/2023,10750,Housing & Assets 2,Supplies & Services,G00002001/D200008,General Fund,Payments to Contractors External
Ashfield District Council,37UB,Ven Construction,V1023092,31/03/2023,2100,Housing & Assets 2,Supplies & Services,G00002001/D200008,General Fund,Payments to Contractors External
Ashfield District Council,37UB,Freeths LLP,V1021287,16/03/2023,1980,Legal & Governance 2,Supplies & Services,C00235/D200004,General Fund,Legal Expenses
Ashfield District Council,37UB,Freeths LLP,V1021288,16/03/2023,766.5,Legal & Governance 2,Supplies & Services,C00262/D200004,General Fund,Legal Expenses
Ashfield District Council,37UB,Agrovista UK Ltd,V1020772,31/03/2023,247.5,Place & Communities 2,Supplies & Services,C00258010/D200008,General Fund,Payments to Contractors External
Ashfield District Council,37UB,Andy Dean Business Solutions Ltd,V1022656,23/03/2023,3424.95,Place & Communities 2,Supplies & Services,c00255003/D200008,General Fund,Payments to Contractors External
Ashfield District Council,37UB,B & B Tractors,V1022660,31/03/2023,22650,Place & Communities 2,Supplies & Services,G00010001/D001001,General Fund,Equipment Purchase
Ashfield District Council,37UB,Faithful & Gould Ltd,V1020317,02/03/2023,18410.08,Place & Communities 2,Supplies & Services,C00235/D200008,General Fund,Payments to Contractors External
Ashfield District Council,37UB,Faithful & Gould Ltd,V1020325,02/03/2023,30000,Place & Communities 2,Supplies & Services,C00235/D200008,General Fund,Payments to Contractors External
Ashfield District Council,37UB,Faithful & Gould Ltd,V1014519,23/03/2023,4384.96,Place & Communities 2,Supplies & Services,C00235/D200008,General Fund,Payments to Contractors External
Ashfield District Council,37UB,Guy Taylor Associates,V1022748,31/03/2023,2050,Place & Communities 2,Supplies & Services,C00255012/D200008,General Fund,Payments to Contractors External
Ashfield District Council,37UB,Hickton Consultants,V1020165,02/03/2023,768,Place & Communities 2,Supplies & Services,C00235/D200008,General Fund,Payments to Contractors External
Ashfield District Council,37UB,Hickton Consultants,V1020820,09/03/2023,1920,Place & Communities 2,Supplies & Services,C00262/D200008,General Fund,Payments to Contractors External
Ashfield District Council,37UB,Hickton Consultants,V1020821,09/03/2023,384,Place & Communities 2,Supplies & Services,C00235/D200008,General Fund,Payments to Contractors External
Ashfield District Council,37UB,Kier Construction - North and Scotland,V1021283,16/03/2023,285997.62,Place & Communities 2,Supplies & Services,C00262/D200008,General Fund,Payments to Contractors External
Ashfield District Council,37UB,Kier Construction - North and Scotland,V1021286,16/03/2023,63628.58,Place & Communities 2,Supplies & Services,C00235/D200008,General Fund,Payments to Contractors External
Ashfield District Council,37UB,Kinver Business Solutions Ltd,V1020275,02/03/2023,1280,Place & Communities 2,Supplies & Services,C00255011/D201019,General Fund,Project Management Fees
Ashfield District Council,37UB,Kinver Business Solutions Ltd,V1020275,02/03/2023,1280,Place & Communities 2,Supplies & Services,C00255013/D201019,General Fund,Project Management Fees
Ashfield District Council,37UB,Kinver Business Solutions Ltd,V1020275,02/03/2023,1280,Place & Communities 2,Supplies & Services,C00255006/D201019,General Fund,Project Management Fees
Ashfield District Council,37UB,Kinver Business Solutions Ltd,V1020275,02/03/2023,1280,Place & Communities 2,Supplies & Services,C00255001/D201019,General Fund,Project Management Fees
Ashfield District Council,37UB,Kinver Business Solutions Ltd,V1020275,02/03/2023,1280,Place & Communities 2,Supplies & Services,C00255008/D201019,General Fund,Project Management Fees
Ashfield District Council,37UB,Kinver Business Solutions Ltd,V1020275,02/03/2023,1280,Place & Communities 2,Supplies & Services,C00255002/D201019,General Fund,Project Management Fees
Ashfield District Council,37UB,Kinver Business Solutions Ltd,V1020275,02/03/2023,1280,Place & Communities 2,Supplies & Services,C00255017/D201019,General Fund,Project Management Fees
Ashfield District Council,37UB,Kinver Business Solutions Ltd,V1023246,31/03/2023,1097.14,Place & Communities 2,Supplies & Services,C00255001/D201019,General Fund,Project Management Fees
Ashfield District Council,37UB,Kinver Business Solutions Ltd,V1023246,31/03/2023,1097.15,Place & Communities 2,Supplies & Services,C00255013/D201019,General Fund,Project Management Fees
Ashfield District Council,37UB,Kinver Business Solutions Ltd,V1023246,31/03/2023,1097.14,Place & Communities 2,Supplies & Services,C00255008/D201019,General Fund,Project Management Fees
Ashfield District Council,37UB,Kinver Business Solutions Ltd,V1023246,31/03/2023,1097.14,Place & Communities 2,Supplies & Services,C00255006/D201019,General Fund,Project Management Fees
Ashfield District Council,37UB,Kinver Business Solutions Ltd,V1023246,31/03/2023,1097.14,Place & Communities 2,Supplies & Services,C00255002/D201019,General Fund,Project Management Fees
Ashfield District Council,37UB,Kinver Business Solutions Ltd,V1023246,31/03/2023,1097.15,Place & Communities 2,Supplies & Services,C00255017/D201019,General Fund,Project Management Fees
Ashfield District Council,37UB,Kinver Business Solutions Ltd,V1023246,31/03/2023,1097.14,Place & Communities 2,Supplies & Services,C00255011/D201019,General Fund,Project Management Fees
Ashfield District Council,37UB,Maber Associates Ltd,V1020803,09/03/2023,10757.5,Place & Communities 2,Supplies & Services,C00255001/D200008,General Fund,Payments to Contractors External
Ashfield District Council,37UB,Mansfield & Sutton Astronomical Society,V1020912,09/03/2023,324000,Place & Communities 2,Supplies & Services,C00255014/D500001,General Fund,Grants
Ashfield District Council,37UB,Natural Cutstone Ltd,V1020923,09/03/2023,680,Place & Communities 2,Supplies & Services,c00260/D200008,General Fund,Payments to Contractors External
Ashfield District Council,37UB,Natural Cutstone Ltd,V1021299,16/03/2023,558,Place & Communities 2,Supplies & Services,C00235/D200008,General Fund,Payments to Contractors External
Ashfield District Council,37UB,Nisbets Plc,V1020881,09/03/2023,479.94,Place & Communities 2,Supplies & Services,C00255101/D200039,General Fund,Fixtures and Fittings
Ashfield District Council,37UB,Nisbets Plc,V1020264,31/03/2023,1121.86,Place & Communities 2,Supplies & Services,C00255101/D200039,General Fund,Fixtures and Fittings
Ashfield District Council,37UB,Nisbets Plc,V1022155,31/03/2023,-60,Place & Communities 2,Supplies & Services,C00255101/D200039,General Fund,Fixtures and Fittings
Ashfield District Council,37UB,Nottinghamshire County Council,V1020273,02/03/2023,8511.3,Place & Communities 2,Supplies & Services,C00125001/D200008,General Fund,Payments to Contractors External
Ashfield District Council,37UB,Nottinghamshire County Council,V1020280,16/03/2023,32498.41,Place & Communities 2,Supplies & Services,C00125001/D200008,General Fund,Payments to Contractors External
Ashfield District Council,37UB,Perfect Circle JV Ltd,V1023094,31/03/2023,4879.65,Place & Communities 2,Supplies & Services,C00255008/D201019,General Fund,Project Management Fees
Ashfield District Council,37UB,Pulse Associates Ltd trading as Pulse Consult,V1023331,31/03/2023,3000,Place & Communities 2,Supplies & Services,C00255012/D200008,General Fund,Payments to Contractors External
Ashfield District Council,37UB,Quadrant Building Control,V1021180,09/03/2023,200,Place & Communities 2,Supplies & Services,C00235/D200008,General Fund,Payments to Contractors External
Ashfield District Council,37UB,Sports & Leisure Management Ltd,V1021957,23/03/2023,4091.08,Place & Communities 2,Supplies & Services,C00260/D200008,General Fund,Payments to Contractors External
Ashfield District Council,37UB,Sports & Leisure Management Ltd,V1023185,31/03/2023,35013.39,Place & Communities 2,Supplies & Services,C00260/D200008,General Fund,Payments to Contractors External
Ashfield District Council,37UB,Summit Creative Ltd,V1020216,02/03/2023,113.71,Place & Communities 2,Supplies & Services,c00235/D200008,General Fund,Payments to Contractors External
Ashfield District Council,37UB,Summit Creative Ltd,V1022657,23/03/2023,196.25,Place & Communities 2,Supplies & Services,C00125001/D200008,General Fund,Payments to Contractors External
Ashfield District Council,37UB,Terberg Matec UK,V1023310,31/03/2023,1000,Place & Communities 2,Supplies & Services,G00010001/D001001,General Fund,Equipment Purchase
Ashfield District Council,37UB,Urban Scale Interventions Ltd,V1020798,09/03/2023,15850,Place & Communities 2,Supplies & Services,C00255016/D200008,General Fund,Payments to Contractors External
Ashfield District Council,37UB,Via East Midlands Ltd,V1020965,09/03/2023,21073.68,Place & Communities 2,Supplies & Services,C00235/D200008,General Fund,Payments to Contractors External
Ashfield District Council,37UB,CCS Media Limited,V1023093,31/03/2023,474,R & B Transformation 2,Supplies & Services,C00244/D200008,General Fund,Payments to Contractors External
Ashfield District Council,37UB,CCS Media Limited,V1023332,31/03/2023,1287.48,R & B Transformation 2,Supplies & Services,C00244/D200008,General Fund,Payments to Contractors External
Ashfield District Council,37UB,HEB Surveyors,V1022183,23/03/2023,500,R & B Transformation 2,Supplies & Services,C00255003/D200037,General Fund,Acquisitions Costs
Ashfield District Council,37UB,Bransons,V1021192,09/03/2023,526.68,Housing & Assets 2,Supplies & Services,G00450003/D200033,HRA Decent Homes,Decoration Vouchers
Ashfield District Council,37UB,Dulux Decorator Centre,V1023180,31/03/2023,44.88,Housing & Assets 2,Supplies & Services,G00450003/D200033,HRA Decent Homes,Decoration Vouchers
Ashfield District Council,37UB,Dulux Decorator Centre,V1023215,31/03/2023,228.27,Housing & Assets 2,Supplies & Services,G00450003/D200033,HRA Decent Homes,Decoration Vouchers
Ashfield District Council,37UB,Dulux Decorator Centre,V1023373,31/03/2023,133.24,Housing & Assets 2,Supplies & Services,G00450003/D200033,HRA Decent Homes,Decoration Vouchers
Ashfield District Council,37UB,Dulux Decorator Centre,V1023425,31/03/2023,70.84,Housing & Assets 2,Supplies & Services,G00450003/D200033,HRA Decent Homes,Decoration Vouchers
Ashfield District Council,37UB,Dulux Decorator Centre,V1023426,31/03/2023,64.57,Housing & Assets 2,Supplies & Services,G00450003/D200033,HRA Decent Homes,Decoration Vouchers
Ashfield District Council,37UB,J Tomlinson Ltd,V1021396,16/03/2023,117841.33,Housing & Assets 2,Supplies & Services,G00450001/D200008,HRA Decent Homes,Payments to Contractors External
Ashfield District Council,37UB,J Tomlinson Ltd,V1021396,16/03/2023,15260.36,Housing & Assets 2,Supplies & Services,G00470001/D200008,HRA Decent Homes,Payments to Contractors External
Ashfield District Council,37UB,J Tomlinson Ltd,V1021396,16/03/2023,279850.03,Housing & Assets 2,Supplies & Services,G00450006/D200008,HRA Decent Homes,Payments to Contractors External
Ashfield District Council,37UB,J Tomlinson Ltd,V1021396,16/03/2023,77458.27,Housing & Assets 2,Supplies & Services,G00450008/D200008,HRA Decent Homes,Payments to Contractors External
Ashfield District Council,37UB,J Tomlinson Ltd,V1021396,16/03/2023,699148.7,Housing & Assets 2,Supplies & Services,G00450006/D200008,HRA Decent Homes,Payments to Contractors External
Ashfield District Council,37UB,J Tomlinson Ltd,V1021396,16/03/2023,118174.82,Housing & Assets 2,Supplies & Services,G00450004/D200008,HRA Decent Homes,Payments to Contractors External
Ashfield District Council,37UB,J Tomlinson Ltd,V1021396,16/03/2023,6762.48,Housing & Assets 2,Supplies & Services,G00450005/D200008,HRA Decent Homes,Payments to Contractors External
Ashfield District Council,37UB,J Tomlinson Ltd,V1021396,16/03/2023,10153.16,Housing & Assets 2,Supplies & Services,G00450011/D200008,HRA Decent Homes,Payments to Contractors External
Ashfield District Council,37UB,J Tomlinson Ltd,V1021870,22/03/2023,247,Housing & Assets 2,Supplies & Services,G00450004/D200008,HRA Decent Homes,Payments to Contractors External
Ashfield District Council,37UB,J Tomlinson Ltd,V1021871,22/03/2023,42.25,Housing & Assets 2,Supplies & Services,G00450004/D200008,HRA Decent Homes,Payments to Contractors External
Ashfield District Council,37UB,Miltons Wallpapers Limited,V1023372,31/03/2023,2236.18,Housing & Assets 2,Supplies & Services,G00450003/D200033,HRA Decent Homes,Decoration Vouchers
Ashfield District Council,37UB,Miltons Wallpapers Limited,V1023374,31/03/2023,2080.37,Housing & Assets 2,Supplies & Services,G00450003/D200033,HRA Decent Homes,Decoration Vouchers
Ashfield District Council,37UB,Total Hire & Sales Ltd,V1019915,06/03/2023,61.6,Housing & Assets 2,Supplies & Services,G00450008/D200008,HRA Decent Homes,Payments to Contractors External
Ashfield District Council,37UB,Total Hire & Sales Ltd,V1021101,14/03/2023,56,Housing & Assets 2,Supplies & Services,G00450008/D200008,HRA Decent Homes,Payments to Contractors External
Ashfield District Council,37UB,Wilko Limited,V1020337,02/03/2023,46.67,Housing & Assets 2,Supplies & Services,G00450003/D200033,HRA Decent Homes,Decoration Vouchers
Ashfield District Council,37UB,Wilko Limited,V1020338,02/03/2023,125,Housing & Assets 2,Supplies & Services,G00450003/D200033,HRA Decent Homes,Decoration Vouchers
Ashfield District Council,37UB,Wilko Limited,V1020339,02/03/2023,125,Housing & Assets 2,Supplies & Services,G00450003/D200033,HRA Decent Homes,Decoration Vouchers
Ashfield District Council,37UB,Wilko Limited,V1021190,09/03/2023,123.67,Housing & Assets 2,Supplies & Services,G00450003/D200033,HRA Decent Homes,Decoration Vouchers
Ashfield District Council,37UB,Wilko Limited,V1021191,09/03/2023,66.67,Housing & Assets 2,Supplies & Services,G00450003/D200033,HRA Decent Homes,Decoration Vouchers
Ashfield District Council,37UB,Wilko Limited,V1021198,09/03/2023,45,Housing & Assets 2,Supplies & Services,G00450003/D200033,HRA Decent Homes,Decoration Vouchers
Ashfield District Council,37UB,Wilko Limited,V1021199,09/03/2023,62.5,Housing & Assets 2,Supplies & Services,G00450003/D200033,HRA Decent Homes,Decoration Vouchers
Ashfield District Council,37UB,Wilko Limited,V1021200,09/03/2023,187.5,Housing & Assets 2,Supplies & Services,G00450003/D200033,HRA Decent Homes,Decoration Vouchers
Ashfield District Council,37UB,Wilko Limited,V1021201,09/03/2023,120.67,Housing & Assets 2,Supplies & Services,G00450003/D200033,HRA Decent Homes,Decoration Vouchers
Ashfield District Council,37UB,Wilko Limited,V1021939,16/03/2023,133.33,Housing & Assets 2,Supplies & Services,G00450003/D200033,HRA Decent Homes,Decoration Vouchers
Ashfield District Council,37UB,Wilko Limited,V1021940,16/03/2023,1.8,Housing & Assets 2,Supplies & Services,G00450003/D200033,HRA Decent Homes,Decoration Vouchers
Ashfield District Council,37UB,Wilko Limited,V1021940,16/03/2023,123.42,Housing & Assets 2,Supplies & Services,G00450003/D200033,HRA Decent Homes,Decoration Vouchers
Ashfield District Council,37UB,Wilko Limited,V1021941,16/03/2023,61.67,Housing & Assets 2,Supplies & Services,G00450003/D200033,HRA Decent Homes,Decoration Vouchers
Ashfield District Council,37UB,Wilko Limited,V1021942,16/03/2023,66.67,Housing & Assets 2,Supplies & Services,G00450003/D200033,HRA Decent Homes,Decoration Vouchers
Ashfield District Council,37UB,Wilko Limited,V1021943,16/03/2023,249.46,Housing & Assets 2,Supplies & Services,G00450003/D200033,HRA Decent Homes,Decoration Vouchers
Ashfield District Council,37UB,Wilko Limited,V1021944,16/03/2023,62.5,Housing & Assets 2,Supplies & Services,G00450003/D200033,HRA Decent Homes,Decoration Vouchers
Ashfield District Council,37UB,Wilko Limited,V1021945,16/03/2023,70.83,Housing & Assets 2,Supplies & Services,G00450003/D200033,HRA Decent Homes,Decoration Vouchers
Ashfield District Council,37UB,Wilko Limited,V1021946,16/03/2023,39.17,Housing & Assets 2,Supplies & Services,G00450003/D200033,HRA Decent Homes,Decoration Vouchers
Ashfield District Council,37UB,Wilko Limited,V1021947,16/03/2023,44.17,Housing & Assets 2,Supplies & Services,G00450003/D200033,HRA Decent Homes,Decoration Vouchers
Ashfield District Council,37UB,Wilko Limited,V1021948,16/03/2023,124.17,Housing & Assets 2,Supplies & Services,G00450003/D200033,HRA Decent Homes,Decoration Vouchers
Ashfield District Council,37UB,Wilko Limited,V1022124,23/03/2023,121.67,Housing & Assets 2,Supplies & Services,G00450003/D200033,HRA Decent Homes,Decoration Vouchers
Ashfield District Council,37UB,Wilko Limited,V1022125,23/03/2023,62.46,Housing & Assets 2,Supplies & Services,G00450003/D200033,HRA Decent Homes,Decoration Vouchers
Ashfield District Council,37UB,Wilko Limited,V1022126,23/03/2023,38.33,Housing & Assets 2,Supplies & Services,G00450003/D200033,HRA Decent Homes,Decoration Vouchers
Ashfield District Council,37UB,Wilko Limited,V1022127,23/03/2023,62.5,Housing & Assets 2,Supplies & Services,G00450003/D200033,HRA Decent Homes,Decoration Vouchers
Ashfield District Council,37UB,Wilko Limited,V1022128,23/03/2023,39.96,Housing & Assets 2,Supplies & Services,G00450003/D200033,HRA Decent Homes,Decoration Vouchers
Ashfield District Council,37UB,Wilko Limited,V1022129,23/03/2023,70.83,Housing & Assets 2,Supplies & Services,G00450003/D200033,HRA Decent Homes,Decoration Vouchers
Ashfield District Council,37UB,Wilko Limited,V1022130,23/03/2023,62.5,Housing & Assets 2,Supplies & Services,G00450003/D200033,HRA Decent Homes,Decoration Vouchers
Ashfield District Council,37UB,Wilko Limited,V1022131,23/03/2023,61.71,Housing & Assets 2,Supplies & Services,G00450003/D200033,HRA Decent Homes,Decoration Vouchers
Ashfield District Council,37UB,Wilko Limited,V1022132,23/03/2023,123.54,Housing & Assets 2,Supplies & Services,G00450003/D200033,HRA Decent Homes,Decoration Vouchers
Ashfield District Council,37UB,Wilko Limited,V1022133,23/03/2023,62.5,Housing & Assets 2,Supplies & Services,G00450003/D200033,HRA Decent Homes,Decoration Vouchers
Ashfield District Council,37UB,Wilko Limited,V1022144,23/03/2023,125,Housing & Assets 2,Supplies & Services,G00450003/D200033,HRA Decent Homes,Decoration Vouchers
Ashfield District Council,37UB,Wilko Limited,V1022145,23/03/2023,72.5,Housing & Assets 2,Supplies & Services,G00450003/D200033,HRA Decent Homes,Decoration Vouchers
Ashfield District Council,37UB,Wilko Limited,V1022146,23/03/2023,45,Housing & Assets 2,Supplies & Services,G00450003/D200033,HRA Decent Homes,Decoration Vouchers
Ashfield District Council,37UB,Wilko Limited,V1022147,23/03/2023,38.33,Housing & Assets 2,Supplies & Services,G00450003/D200033,HRA Decent Homes,Decoration Vouchers
Ashfield District Council,37UB,Wilko Limited,V1022148,23/03/2023,114.17,Housing & Assets 2,Supplies & Services,G00450003/D200033,HRA Decent Homes,Decoration Vouchers
Ashfield District Council,37UB,Wilko Limited,V1022149,23/03/2023,66.67,Housing & Assets 2,Supplies & Services,G00450003/D200033,HRA Decent Homes,Decoration Vouchers
Ashfield District Council,37UB,Wilko Limited,V1023411,31/03/2023,133.33,Housing & Assets 2,Supplies & Services,G00450003/D200033,HRA Decent Homes,Decoration Vouchers
Ashfield District Council,37UB,Wilko Limited,V1023412,31/03/2023,70.83,Housing & Assets 2,Supplies & Services,G00450003/D200033,HRA Decent Homes,Decoration Vouchers
Ashfield District Council,37UB,Wilko Limited,V1023413,31/03/2023,135.57,Housing & Assets 2,Supplies & Services,G00450003/D200033,HRA Decent Homes,Decoration Vouchers
Ashfield District Council,37UB,Wilko Limited,V1023414,31/03/2023,133.33,Housing & Assets 2,Supplies & Services,G00450003/D200033,HRA Decent Homes,Decoration Vouchers
Ashfield District Council,37UB,Wilko Limited,V1023415,31/03/2023,66.67,Housing & Assets 2,Supplies & Services,G00450003/D200033,HRA Decent Homes,Decoration Vouchers
Ashfield District Council,37UB,Wilko Limited,V1023416,31/03/2023,70.83,Housing & Assets 2,Supplies & Services,G00450003/D200033,HRA Decent Homes,Decoration Vouchers
Ashfield District Council,37UB,Wilko Limited,V1023417,31/03/2023,62.5,Housing & Assets 2,Supplies & Services,G00450003/D200033,HRA Decent Homes,Decoration Vouchers
Ashfield District Council,37UB,Wilko Limited,V1023418,31/03/2023,118.96,Housing & Assets 2,Supplies & Services,G00450003/D200033,HRA Decent Homes,Decoration Vouchers
Ashfield District Council,37UB,Wilko Limited,V1023419,31/03/2023,62.5,Housing & Assets 2,Supplies & Services,G00450003/D200033,HRA Decent Homes,Decoration Vouchers
Ashfield District Council,37UB,Wilko Limited,V1023420,31/03/2023,187.5,Housing & Assets 2,Supplies & Services,G00450003/D200033,HRA Decent Homes,Decoration Vouchers
Ashfield District Council,37UB,Wilko Limited,V1023421,31/03/2023,65,Housing & Assets 2,Supplies & Services,G00450003/D200033,HRA Decent Homes,Decoration Vouchers
Ashfield District Council,37UB,Wilko Limited,V1023422,31/03/2023,35.83,Housing & Assets 2,Supplies & Services,G00450003/D200033,HRA Decent Homes,Decoration Vouchers
Ashfield District Council,37UB,Wilko Limited,V1023423,31/03/2023,72.5,Housing & Assets 2,Supplies & Services,G00450003/D200033,HRA Decent Homes,Decoration Vouchers
Ashfield District Council,37UB,Wilko Limited,V1023424,31/03/2023,66.67,Housing & Assets 2,Supplies & Services,G00450003/D200033,HRA Decent Homes,Decoration Vouchers
Ashfield District Council,37UB,Dulux Decorator Centre,V1018651,16/03/2023,111.99,R & B Transformation 2,Supplies & Services,G00450003/D200033,HRA Decent Homes,Decoration Vouchers
Ashfield District Council,37UB,Lindum Group Limited,V1020716,09/03/2023,112623.75,Housing & Assets 2,Supplies & Services,C00280/D200008,HRA General,Payments to Contractors External
Ashfield District Council,37UB,Lindum Group Limited,V1020721,09/03/2023,244715.9,Housing & Assets 2,Supplies & Services,G00931/D200008,HRA General,Payments to Contractors External
Ashfield District Council,37UB,Lindum Group Limited,V1020760,09/03/2023,127762.99,Housing & Assets 2,Supplies & Services,C00282/D200008,HRA General,Payments to Contractors External
Ashfield District Council,37UB,Lindum Group Limited,V1023327,31/03/2023,34709.98,Housing & Assets 2,Supplies & Services,G00932/D200008,HRA General,Payments to Contractors External
Ashfield District Council,37UB,Lindum Group Limited,V1023328,31/03/2023,19954.34,Housing & Assets 2,Supplies & Services,C00256/D200008,HRA General,Payments to Contractors External
Ashfield District Council,37UB,Rider Levett Bucknall UK Ltd,V1020149,02/03/2023,2100,Housing & Assets 2,Supplies & Services,G00931/D200008,HRA General,Payments to Contractors External
Ashfield District Council,37UB,Rider Levett Bucknall UK Ltd,V1020150,02/03/2023,2475,Housing & Assets 2,Supplies & Services,C00282/D200008,HRA General,Payments to Contractors External
Ashfield District Council,37UB,Rider Levett Bucknall UK Ltd,V1020151,02/03/2023,3000,Housing & Assets 2,Supplies & Services,C00280/D200008,HRA General,Payments to Contractors External
Ashfield District Council,37UB,Rider Levett Bucknall UK Ltd,V1023193,31/03/2023,2100,Housing & Assets 2,Supplies & Services,G00931/D200008,HRA General,Payments to Contractors External
Ashfield District Council,37UB,Rider Levett Bucknall UK Ltd,V1023194,31/03/2023,2475,Housing & Assets 2,Supplies & Services,C00282/D200008,HRA General,Payments to Contractors External
Ashfield District Council,37UB,Rider Levett Bucknall UK Ltd,V1023195,31/03/2023,3000,Housing & Assets 2,Supplies & Services,C00280/D200008,HRA General,Payments to Contractors External
Ashfield District Council,37UB,Amazon Payments UK Ltd,V1021318,16/03/2023,4.16,R & B Transformation 2,Supplies & Services,G00930/D200008,HRA General,Payments to Contractors External
Ashfield District Council,37UB,Amazon Payments UK Ltd,V1021318,16/03/2023,10.82,R & B Transformation 2,Supplies & Services,G00930/D200008,HRA General,Payments to Contractors External
Ashfield District Council,37UB,Amazon Payments UK Ltd,V1021327,16/03/2023,2.49,R & B Transformation 2,Supplies & Services,G00930/D200008,HRA General,Payments to Contractors External
Ashfield District Council,37UB,Naturescape British Wild Flowers,V1022734,31/03/2023,130.83,Place & Communities 2,Supplies & Services,C00243/D200008,Hucknall Area,Payments to Contractors External
Ashfield District Council,37UB,Butterfly Effex Ltd,V1022664,31/03/2023,100,Place & Communities 2,Supplies & Services,C00224/D200008,Kirkby Area,Payments to Contractors External
Ashfield District Council,37UB,Forest Farm Tree Services,V1023350,31/03/2023,560,Place & Communities 2,Supplies & Services,C00124/D200008,Kirkby Area,Payments to Contractors External
Ashfield District Council,37UB,Sutcliffe Play,V1022014,23/03/2023,1769.4,Place & Communities 2,Supplies & Services,D00230/D200008,Kirkby Area,Payments to Contractors External
Ashfield District Council,37UB,EKMW Summit Centre,V1023299,31/03/2023,700,Chief Executive 2,Supplies & Services,A01001/D400009,Democratic Core,Civic Events
Ashfield District Council,37UB,Legend Chauffeur & Driver Services Ltd,V1022036,31/03/2023,775,Chief Executive 2,Transport Related Expenses,A01001/C201,Democratic Core,Hire of vehicles
Ashfield District Council,37UB,Royal British Legion,V1022045,31/03/2023,450,Chief Executive 2,Supplies & Services,A01001/D400009,Democratic Core,Civic Events
Ashfield District Council,37UB,Showstoppers Ltd,V1021363,16/03/2023,873.75,Chief Executive 2,Supplies & Services,A01001/D400009,Democratic Core,Civic Events
Ashfield District Council,37UB,Mazars LLP,V1021937,16/03/2023,18019,R & B Transformation 2,Supplies & Services,A01003/D201008,Democratic Core,Audit Fees
Ashfield District Council,37UB,SLM,V1018206,09/03/2023,150,R & B Transformation 2,Supplies & Services,A01001/D400009,Democratic Core,Civic Events
Ashfield District Council,37UB,AKW Medi-Care Limited,V1020550,06/03/2023,110.88,Housing & Assets 2,Supplies & Services,T35026/D200008,Housing Stock Accounts,Payments to Contractors External
Ashfield District Council,37UB,AKW Medi-Care Limited,V1020550,06/03/2023,260.5,Housing & Assets 2,Supplies & Services,T35026/D200008,Housing Stock Accounts,Payments to Contractors External
Ashfield District Council,37UB,AKW Medi-Care Limited,V1021041,14/03/2023,1311.84,Housing & Assets 2,Supplies & Services,T35026/D200008,Housing Stock Accounts,Payments to Contractors External
Ashfield District Council,37UB,Arden Winch & Co Ltd,V1020551,06/03/2023,849,Housing & Assets 2,Supplies & Services,T35026/D200008,Housing Stock Accounts,Payments to Contractors External
Ashfield District Council,37UB,Barrettine Environmental Health,V1021042,14/03/2023,99.72,Housing & Assets 2,Supplies & Services,T35026/D200008,Housing Stock Accounts,Payments to Contractors External
Ashfield District Council,37UB,Barrettine Environmental Health,V1021044,14/03/2023,99.7,Housing & Assets 2,Supplies & Services,T35026/D200008,Housing Stock Accounts,Payments to Contractors External
Ashfield District Council,37UB,Burbage Iron Craft Ltd t/a Cannock Gates Ltd,V1021045,14/03/2023,228,Housing & Assets 2,Supplies & Services,T35026/D200008,Housing Stock Accounts,Payments to Contractors External
Ashfield District Council,37UB,City Plumbing Supplies Holdings Ltd,V1020567,06/03/2023,19.8,Housing & Assets 2,Supplies & Services,T35026/D200008,Housing Stock Accounts,Payments to Contractors External
Ashfield District Council,37UB,City Plumbing Supplies Holdings Ltd,V1020570,06/03/2023,531.6,Housing & Assets 2,Supplies & Services,T35026/D200008,Housing Stock Accounts,Payments to Contractors External
Ashfield District Council,37UB,City Plumbing Supplies Holdings Ltd,V1021051,14/03/2023,469.05,Housing & Assets 2,Supplies & Services,T35026/D200008,Housing Stock Accounts,Payments to Contractors External
Ashfield District Council,37UB,City Plumbing Supplies Holdings Ltd,V1021555,22/03/2023,138.5,Housing & Assets 2,Supplies & Services,T35026/D200008,Housing Stock Accounts,Payments to Contractors External
Ashfield District Council,37UB,City Plumbing Supplies Holdings Ltd,V1021556,22/03/2023,398.7,Housing & Assets 2,Supplies & Services,T35026/D200008,Housing Stock Accounts,Payments to Contractors External
Ashfield District Council,37UB,City Plumbing Supplies Holdings Ltd,V1021557,22/03/2023,60.25,Housing & Assets 2,Supplies & Services,T35026/D200008,Housing Stock Accounts,Payments to Contractors External
Ashfield District Council,37UB,City Plumbing Supplies Holdings Ltd,V1021558,22/03/2023,375.24,Housing & Assets 2,Supplies & Services,T35026/D200008,Housing Stock Accounts,Payments to Contractors External
Ashfield District Council,37UB,Crown Paints Limited,V1020571,06/03/2023,22.5,Housing & Assets 2,Supplies & Services,T35026/D200008,Housing Stock Accounts,Payments to Contractors External
Ashfield District Council,37UB,Crown Paints Limited,V1020573,06/03/2023,250.9,Housing & Assets 2,Supplies & Services,T35026/D200008,Housing Stock Accounts,Payments to Contractors External
Ashfield District Council,37UB,Crown Paints Limited,V1020573,06/03/2023,325.5,Housing & Assets 2,Supplies & Services,T35026/D200008,Housing Stock Accounts,Payments to Contractors External
Ashfield District Council,37UB,Crown Paints Limited,V1021562,22/03/2023,250.9,Housing & Assets 2,Supplies & Services,T35026/D200008,Housing Stock Accounts,Payments to Contractors External
Ashfield District Council,37UB,Crown Paints Limited,V1021562,22/03/2023,66.24,Housing & Assets 2,Supplies & Services,T35026/D200008,Housing Stock Accounts,Payments to Contractors External
Ashfield District Council,37UB,Crown Paints Limited,V1021562,22/03/2023,95.1,Housing & Assets 2,Supplies & Services,T35026/D200008,Housing Stock Accounts,Payments to Contractors External
Ashfield District Council,37UB,Crown Paints Limited,V1021562,22/03/2023,217,Housing & Assets 2,Supplies & Services,T35026/D200008,Housing Stock Accounts,Payments to Contractors External
Ashfield District Council,37UB,Crown Paints Limited,V1021562,22/03/2023,26,Housing & Assets 2,Supplies & Services,T35026/D200008,Housing Stock Accounts,Payments to Contractors External
Ashfield District Council,37UB,Crown Paints Limited,V1021562,22/03/2023,54.72,Housing & Assets 2,Supplies & Services,T35026/D200008,Housing Stock Accounts,Payments to Contractors External
Ashfield District Council,37UB,Crown Paints Limited,V1021562,22/03/2023,384.54,Housing & Assets 2,Supplies & Services,T35026/D200008,Housing Stock Accounts,Payments to Contractors External
Ashfield District Council,37UB,Crown Paints Limited,V1021562,22/03/2023,233.7,Housing & Assets 2,Supplies & Services,T35026/D200008,Housing Stock Accounts,Payments to Contractors External
Ashfield District Council,37UB,Door-Stop International Ltd,V1021053,14/03/2023,404.13,Housing & Assets 2,Supplies & Services,T35026/D200008,Housing Stock Accounts,Payments to Contractors External
Ashfield District Council,37UB,Door-Stop International Ltd,V1021054,14/03/2023,413.13,Housing & Assets 2,Supplies & Services,T35026/D200008,Housing Stock Accounts,Payments to Contractors External
Ashfield District Council,37UB,Door-Stop International Ltd,V1021055,14/03/2023,420.13,Housing & Assets 2,Supplies & Services,T35026/D200008,Housing Stock Accounts,Payments to Contractors External
Ashfield District Council,37UB,Door-Stop International Ltd,V1021056,14/03/2023,413.13,Housing & Assets 2,Supplies & Services,T35026/D200008,Housing Stock Accounts,Payments to Contractors External
Ashfield District Council,37UB,Door-Stop International Ltd,V1021057,14/03/2023,413.13,Housing & Assets 2,Supplies & Services,T35026/D200008,Housing Stock Accounts,Payments to Contractors External
Ashfield District Council,37UB,Door-Stop International Ltd,V1021058,14/03/2023,421.13,Housing & Assets 2,Supplies & Services,T35026/D200008,Housing Stock Accounts,Payments to Contractors External
Ashfield District Council,37UB,Door-Stop International Ltd,V1021059,14/03/2023,413.13,Housing & Assets 2,Supplies & Services,T35026/D200008,Housing Stock Accounts,Payments to Contractors External
Ashfield District Council,37UB,Door-Stop International Ltd,V1021060,14/03/2023,413.13,Housing & Assets 2,Supplies & Services,T35026/D200008,Housing Stock Accounts,Payments to Contractors External
Ashfield District Council,37UB,Door-Stop International Ltd,V1021061,14/03/2023,413.13,Housing & Assets 2,Supplies & Services,T35026/D200008,Housing Stock Accounts,Payments to Contractors External
Ashfield District Council,37UB,Door-Stop International Ltd,V1021062,14/03/2023,521.66,Housing & Assets 2,Supplies & Services,T35026/D200008,Housing Stock Accounts,Payments to Contractors External
Ashfield District Council,37UB,Door-Stop International Ltd,V1021063,14/03/2023,507.86,Housing & Assets 2,Supplies & Services,T35026/D200008,Housing Stock Accounts,Payments to Contractors External
Ashfield District Council,37UB,Door-Stop International Ltd,V1021717,22/03/2023,488.73,Housing & Assets 2,Supplies & Services,T35026/D200008,Housing Stock Accounts,Payments to Contractors External
Ashfield District Council,37UB,Door-Stop International Ltd,V1021718,22/03/2023,486.56,Housing & Assets 2,Supplies & Services,T35026/D200008,Housing Stock Accounts,Payments to Contractors External
Ashfield District Council,37UB,Door-Stop International Ltd,V1021866,22/03/2023,513.66,Housing & Assets 2,Supplies & Services,T35026/D200008,Housing Stock Accounts,Payments to Contractors External
Ashfield District Council,37UB,Door-Stop International Ltd,V1022519,27/03/2023,23.34,Housing & Assets 2,Supplies & Services,T35026/D200008,Housing Stock Accounts,Payments to Contractors External
Ashfield District Council,37UB,Door-Stop International Ltd,V1022519,27/03/2023,44.94,Housing & Assets 2,Supplies & Services,T35026/D200008,Housing Stock Accounts,Payments to Contractors External
Ashfield District Council,37UB,Door-Stop International Ltd,V1022519,27/03/2023,11.25,Housing & Assets 2,Supplies & Services,T35026/D200008,Housing Stock Accounts,Payments to Contractors External
Ashfield District Council,37UB,Door-Stop International Ltd,V1022519,27/03/2023,15.36,Housing & Assets 2,Supplies & Services,T35026/D200008,Housing Stock Accounts,Payments to Contractors External
Ashfield District Council,37UB,Door-Stop International Ltd,V1022519,27/03/2023,153.36,Housing & Assets 2,Supplies & Services,T35026/D200008,Housing Stock Accounts,Payments to Contractors External
Ashfield District Council,37UB,Door-Stop International Ltd,V1022519,27/03/2023,61.5,Housing & Assets 2,Supplies & Services,T35026/D200008,Housing Stock Accounts,Payments to Contractors External
Ashfield District Council,37UB,Grafton Merchanting GB Ltd t/a Jackson Buildbase,V1020714,06/03/2023,3.25,Housing & Assets 2,Supplies & Services,T35026/D200008,Housing Stock Accounts,Payments to Contractors External
Ashfield District Council,37UB,Greenham Trading Ltd,V1021568,22/03/2023,118.4,Housing & Assets 2,Supplies & Services,T35026/D200008,Housing Stock Accounts,Payments to Contractors External
Ashfield District Council,37UB,Huws Gray Limited,V1020602,06/03/2023,14.9,Housing & Assets 2,Supplies & Services,T35026/D200008,Housing Stock Accounts,Payments to Contractors External
Ashfield District Council,37UB,Huws Gray Limited,V1020603,06/03/2023,8.64,Housing & Assets 2,Supplies & Services,T35026/D200008,Housing Stock Accounts,Payments to Contractors External
Ashfield District Council,37UB,Huws Gray Limited,V1020605,06/03/2023,13.92,Housing & Assets 2,Supplies & Services,T35026/D200008,Housing Stock Accounts,Payments to Contractors External
Ashfield District Council,37UB,Huws Gray Limited,V1020606,06/03/2023,436.8,Housing & Assets 2,Supplies & Services,T35026/D200008,Housing Stock Accounts,Payments to Contractors External
Ashfield District Council,37UB,Huws Gray Limited,V1020613,06/03/2023,172.5,Housing & Assets 2,Supplies & Services,T35026/D200008,Housing Stock Accounts,Payments to Contractors External
Ashfield District Council,37UB,Huws Gray Limited,V1020613,06/03/2023,33.4,Housing & Assets 2,Supplies & Services,T35026/D200008,Housing Stock Accounts,Payments to Contractors External
Ashfield District Council,37UB,Huws Gray Limited,V1020614,06/03/2023,6.7,Housing & Assets 2,Supplies & Services,T35026/D200008,Housing Stock Accounts,Payments to Contractors External
Ashfield District Council,37UB,Huws Gray Limited,V1020614,06/03/2023,261,Housing & Assets 2,Supplies & Services,T35026/D200008,Housing Stock Accounts,Payments to Contractors External
Ashfield District Council,37UB,Huws Gray Limited,V1020615,06/03/2023,28.02,Housing & Assets 2,Supplies & Services,T35026/D200008,Housing Stock Accounts,Payments to Contractors External
Ashfield District Council,37UB,Huws Gray Limited,V1020615,06/03/2023,23.52,Housing & Assets 2,Supplies & Services,T35026/D200008,Housing Stock Accounts,Payments to Contractors External
Ashfield District Council,37UB,Huws Gray Limited,V1020615,06/03/2023,25.56,Housing & Assets 2,Supplies & Services,T35026/D200008,Housing Stock Accounts,Payments to Contractors External
Ashfield District Council,37UB,Huws Gray Limited,V1020616,06/03/2023,34.8,Housing & Assets 2,Supplies & Services,T35026/D200008,Housing Stock Accounts,Payments to Contractors External
Ashfield District Council,37UB,Huws Gray Limited,V1020617,06/03/2023,162.1,Housing & Assets 2,Supplies & Services,T35026/D200008,Housing Stock Accounts,Payments to Contractors External
Ashfield District Council,37UB,Huws Gray Limited,V1020617,06/03/2023,689.85,Housing & Assets 2,Supplies & Services,T35026/D200008,Housing Stock Accounts,Payments to Contractors External
Ashfield District Council,37UB,Huws Gray Limited,V1020620,06/03/2023,17.52,Housing & Assets 2,Supplies & Services,T35026/D200008,Housing Stock Accounts,Payments to Contractors External
Ashfield District Council,37UB,Huws Gray Limited,V1020621,06/03/2023,145.2,Housing & Assets 2,Supplies & Services,T35026/D200008,Housing Stock Accounts,Payments to Contractors External
Ashfield District Council,37UB,Huws Gray Limited,V1020621,06/03/2023,171.6,Housing & Assets 2,Supplies & Services,T35026/D200008,Housing Stock Accounts,Payments to Contractors External
Ashfield District Council,37UB,Huws Gray Limited,V1020622,06/03/2023,24.4,Housing & Assets 2,Supplies & Services,T35026/D200008,Housing Stock Accounts,Payments to Contractors External
Ashfield District Council,37UB,Huws Gray Limited,V1020623,06/03/2023,21.8,Housing & Assets 2,Supplies & Services,T35026/D200008,Housing Stock Accounts,Payments to Contractors External
Ashfield District Council,37UB,Huws Gray Limited,V1020623,06/03/2023,202.2,Housing & Assets 2,Supplies & Services,T35026/D200008,Housing Stock Accounts,Payments to Contractors External
Ashfield District Council,37UB,Huws Gray Limited,V1020623,06/03/2023,42.6,Housing & Assets 2,Supplies & Services,T35026/D200008,Housing Stock Accounts,Payments to Contractors External
Ashfield District Council,37UB,Huws Gray Limited,V1020623,06/03/2023,21,Housing & Assets 2,Supplies & Services,T35026/D200008,Housing Stock Accounts,Payments to Contractors External
Ashfield District Council,37UB,Huws Gray Limited,V1020623,06/03/2023,13.08,Housing & Assets 2,Supplies & Services,T35026/D200008,Housing Stock Accounts,Payments to Contractors External
Ashfield District Council,37UB,Huws Gray Limited,V1020623,06/03/2023,12.5,Housing & Assets 2,Supplies & Services,T35026/D200008,Housing Stock Accounts,Payments to Contractors External
Ashfield District Council,37UB,Huws Gray Limited,V1020623,06/03/2023,19.1,Housing & Assets 2,Supplies & Services,T35026/D200008,Housing Stock Accounts,Payments to Contractors External
Ashfield District Council,37UB,Huws Gray Limited,V1020625,06/03/2023,19.9,Housing & Assets 2,Supplies & Services,T35026/D200008,Housing Stock Accounts,Payments to Contractors External
Ashfield District Council,37UB,Huws Gray Limited,V1020627,06/03/2023,52.25,Housing & Assets 2,Supplies & Services,T35026/D200008,Housing Stock Accounts,Payments to Contractors External
Ashfield District Council,37UB,Huws Gray Limited,V1020631,06/03/2023,33.1,Housing & Assets 2,Supplies & Services,T35026/D200008,Housing Stock Accounts,Payments to Contractors External
Ashfield District Council,37UB,Huws Gray Limited,V1020631,06/03/2023,39.8,Housing & Assets 2,Supplies & Services,T35026/D200008,Housing Stock Accounts,Payments to Contractors External
Ashfield District Council,37UB,Huws Gray Limited,V1020631,06/03/2023,142.5,Housing & Assets 2,Supplies & Services,T35026/D200008,Housing Stock Accounts,Payments to Contractors External
Ashfield District Council,37UB,Huws Gray Limited,V1020966,14/03/2023,-1.08,Housing & Assets 2,Supplies & Services,T35026/D200008,Housing Stock Accounts,Payments to Contractors External
Ashfield District Council,37UB,Huws Gray Limited,V1020967,14/03/2023,-15.3,Housing & Assets 2,Supplies & Services,T35026/D200008,Housing Stock Accounts,Payments to Contractors External
Ashfield District Council,37UB,Huws Gray Limited,V1021107,14/03/2023,56.58,Housing & Assets 2,Supplies & Services,T35026/D200008,Housing Stock Accounts,Payments to Contractors External
Ashfield District Council,37UB,Huws Gray Limited,V1021108,14/03/2023,139.2,Housing & Assets 2,Supplies & Services,T35026/D200008,Housing Stock Accounts,Payments to Contractors External
Ashfield District Council,37UB,Huws Gray Limited,V1021108,14/03/2023,69.52,Housing & Assets 2,Supplies & Services,T35026/D200008,Housing Stock Accounts,Payments to Contractors External
Ashfield District Council,37UB,Huws Gray Limited,V1021109,14/03/2023,71.52,Housing & Assets 2,Supplies & Services,T35026/D200008,Housing Stock Accounts,Payments to Contractors External
Ashfield District Council,37UB,Huws Gray Limited,V1021110,14/03/2023,16.35,Housing & Assets 2,Supplies & Services,T35026/D200008,Housing Stock Accounts,Payments to Contractors External
Ashfield District Council,37UB,Huws Gray Limited,V1021110,14/03/2023,10.8,Housing & Assets 2,Supplies & Services,T35026/D200008,Housing Stock Accounts,Payments to Contractors External
Ashfield District Council,37UB,Huws Gray Limited,V1021112,14/03/2023,66.9,Housing & Assets 2,Supplies & Services,T35026/D200008,Housing Stock Accounts,Payments to Contractors External
Ashfield District Council,37UB,Huws Gray Limited,V1021113,14/03/2023,317.2,Housing & Assets 2,Supplies & Services,T35026/D200008,Housing Stock Accounts,Payments to Contractors External
Ashfield District Council,37UB,Huws Gray Limited,V1021114,14/03/2023,33.3,Housing & Assets 2,Supplies & Services,T35026/D200008,Housing Stock Accounts,Payments to Contractors External
Ashfield District Council,37UB,Huws Gray Limited,V1021115,14/03/2023,142.31,Housing & Assets 2,Supplies & Services,T35026/D200008,Housing Stock Accounts,Payments to Contractors External
Ashfield District Council,37UB,Huws Gray Limited,V1021116,14/03/2023,314.2,Housing & Assets 2,Supplies & Services,T35026/D200008,Housing Stock Accounts,Payments to Contractors External
Ashfield District Council,37UB,Huws Gray Limited,V1021116,14/03/2023,195.44,Housing & Assets 2,Supplies & Services,T35026/D200008,Housing Stock Accounts,Payments to Contractors External
Ashfield District Council,37UB,Huws Gray Limited,V1021118,14/03/2023,41.5,Housing & Assets 2,Supplies & Services,T35026/D200008,Housing Stock Accounts,Payments to Contractors External
Ashfield District Council,37UB,Huws Gray Limited,V1021118,14/03/2023,7.44,Housing & Assets 2,Supplies & Services,T35026/D200008,Housing Stock Accounts,Payments to Contractors External
Ashfield District Council,37UB,Huws Gray Limited,V1021118,14/03/2023,9,Housing & Assets 2,Supplies & Services,T35026/D200008,Housing Stock Accounts,Payments to Contractors External
Ashfield District Council,37UB,Huws Gray Limited,V1021119,14/03/2023,96,Housing & Assets 2,Supplies & Services,T35026/D200008,Housing Stock Accounts,Payments to Contractors External
Ashfield District Council,37UB,Huws Gray Limited,V1021120,14/03/2023,36.56,Housing & Assets 2,Supplies & Services,T35026/D200008,Housing Stock Accounts,Payments to Contractors External
Ashfield District Council,37UB,Huws Gray Limited,V1021121,14/03/2023,10.8,Housing & Assets 2,Supplies & Services,T35026/D200008,Housing Stock Accounts,Payments to Contractors External
Ashfield District Council,37UB,Huws Gray Limited,V1021123,14/03/2023,55.6,Housing & Assets 2,Supplies & Services,T35026/D200008,Housing Stock Accounts,Payments to Contractors External
Ashfield District Council,37UB,Huws Gray Limited,V1021124,14/03/2023,24.3,Housing & Assets 2,Supplies & Services,T35026/D200008,Housing Stock Accounts,Payments to Contractors External
Ashfield District Council,37UB,Huws Gray Limited,V1021125,14/03/2023,70.9,Housing & Assets 2,Supplies & Services,T35026/D200008,Housing Stock Accounts,Payments to Contractors External
Ashfield District Council,37UB,Huws Gray Limited,V1021126,14/03/2023,421,Housing & Assets 2,Supplies & Services,T35026/D200008,Housing Stock Accounts,Payments to Contractors External
Ashfield District Council,37UB,Huws Gray Limited,V1021127,14/03/2023,30.6,Housing & Assets 2,Supplies & Services,T35026/D200008,Housing Stock Accounts,Payments to Contractors External
Ashfield District Council,37UB,Huws Gray Limited,V1021128,14/03/2023,475.8,Housing & Assets 2,Supplies & Services,T35026/D200008,Housing Stock Accounts,Payments to Contractors External
Ashfield District Council,37UB,Huws Gray Limited,V1021129,14/03/2023,405.36,Housing & Assets 2,Supplies & Services,T35026/D200008,Housing Stock Accounts,Payments to Contractors External
Ashfield District Council,37UB,Huws Gray Limited,V1021130,14/03/2023,530,Housing & Assets 2,Supplies & Services,T35026/D200008,Housing Stock Accounts,Payments to Contractors External
Ashfield District Council,37UB,Huws Gray Limited,V1021131,14/03/2023,92.4,Housing & Assets 2,Supplies & Services,T35026/D200008,Housing Stock Accounts,Payments to Contractors External
Ashfield District Council,37UB,Huws Gray Limited,V1021132,14/03/2023,443.52,Housing & Assets 2,Supplies & Services,T35026/D200008,Housing Stock Accounts,Payments to Contractors External
Ashfield District Council,37UB,Huws Gray Limited,V1021133,14/03/2023,68.69,Housing & Assets 2,Supplies & Services,T35026/D200008,Housing Stock Accounts,Payments to Contractors External
Ashfield District Council,37UB,Huws Gray Limited,V1021142,14/03/2023,50.1,Housing & Assets 2,Supplies & Services,T35026/D200008,Housing Stock Accounts,Payments to Contractors External
Ashfield District Council,37UB,Huws Gray Limited,V1021424,22/03/2023,-37.52,Housing & Assets 2,Supplies & Services,T35026/D200008,Housing Stock Accounts,Payments to Contractors External
Ashfield District Council,37UB,Huws Gray Limited,V1021425,22/03/2023,-150.88,Housing & Assets 2,Supplies & Services,T35026/D200008,Housing Stock Accounts,Payments to Contractors External
Ashfield District Council,37UB,Huws Gray Limited,V1021583,22/03/2023,12,Housing & Assets 2,Supplies & Services,T35026/D200008,Housing Stock Accounts,Payments to Contractors External
Ashfield District Council,37UB,Huws Gray Limited,V1021584,22/03/2023,118.08,Housing & Assets 2,Supplies & Services,T35026/D200008,Housing Stock Accounts,Payments to Contractors External
Ashfield District Council,37UB,Huws Gray Limited,V1021585,22/03/2023,295.68,Housing & Assets 2,Supplies & Services,T35026/D200008,Housing Stock Accounts,Payments to Contractors External
Ashfield District Council,37UB,Huws Gray Limited,V1021586,22/03/2023,48.37,Housing & Assets 2,Supplies & Services,T35026/D200008,Housing Stock Accounts,Payments to Contractors External
Ashfield District Council,37UB,Huws Gray Limited,V1021588,22/03/2023,688,Housing & Assets 2,Supplies & Services,T35026/D200008,Housing Stock Accounts,Payments to Contractors External
Ashfield District Council,37UB,Huws Gray Limited,V1021590,22/03/2023,8.68,Housing & Assets 2,Supplies & Services,T35026/D200008,Housing Stock Accounts,Payments to Contractors External
Ashfield District Council,37UB,Huws Gray Limited,V1021591,22/03/2023,1.28,Housing & Assets 2,Supplies & Services,T35026/D200008,Housing Stock Accounts,Payments to Contractors External
Ashfield District Council,37UB,Huws Gray Limited,V1021591,22/03/2023,20.6,Housing & Assets 2,Supplies & Services,T35026/D200008,Housing Stock Accounts,Payments to Contractors External
Ashfield District Council,37UB,Huws Gray Limited,V1021591,22/03/2023,13.8,Housing & Assets 2,Supplies & Services,T35026/D200008,Housing Stock Accounts,Payments to Contractors External
Ashfield District Council,37UB,Huws Gray Limited,V1021591,22/03/2023,17.44,Housing & Assets 2,Supplies & Services,T35026/D200008,Housing Stock Accounts,Payments to Contractors External
Ashfield District Council,37UB,Huws Gray Limited,V1021591,22/03/2023,8.88,Housing & Assets 2,Supplies & Services,T35026/D200008,Housing Stock Accounts,Payments to Contractors External
Ashfield District Council,37UB,Huws Gray Limited,V1021591,22/03/2023,14.58,Housing & Assets 2,Supplies & Services,T35026/D200008,Housing Stock Accounts,Payments to Contractors External
Ashfield District Council,37UB,Huws Gray Limited,V1021591,22/03/2023,7.05,Housing & Assets 2,Supplies & Services,T35026/D200008,Housing Stock Accounts,Payments to Contractors External
Ashfield District Council,37UB,Huws Gray Limited,V1021596,22/03/2023,369,Housing & Assets 2,Supplies & Services,T35026/D200008,Housing Stock Accounts,Payments to Contractors External
Ashfield District Council,37UB,Huws Gray Limited,V1021597,22/03/2023,132.8,Housing & Assets 2,Supplies & Services,T35026/D200008,Housing Stock Accounts,Payments to Contractors External
Ashfield District Council,37UB,Huws Gray Limited,V1021598,22/03/2023,195.44,Housing & Assets 2,Supplies & Services,T35026/D200008,Housing Stock Accounts,Payments to Contractors External
Ashfield District Council,37UB,Huws Gray Limited,V1021599,22/03/2023,47.43,Housing & Assets 2,Supplies & Services,T35026/D200008,Housing Stock Accounts,Payments to Contractors External
Ashfield District Council,37UB,Huws Gray Limited,V1021600,22/03/2023,6.24,Housing & Assets 2,Supplies & Services,T35026/D200008,Housing Stock Accounts,Payments to Contractors External
Ashfield District Council,37UB,Huws Gray Limited,V1021600,22/03/2023,55.68,Housing & Assets 2,Supplies & Services,T35026/D200008,Housing Stock Accounts,Payments to Contractors External
Ashfield District Council,37UB,Huws Gray Limited,V1021600,22/03/2023,24.3,Housing & Assets 2,Supplies & Services,T35026/D200008,Housing Stock Accounts,Payments to Contractors External
Ashfield District Council,37UB,Huws Gray Limited,V1021600,22/03/2023,38,Housing & Assets 2,Supplies & Services,T35026/D200008,Housing Stock Accounts,Payments to Contractors External
Ashfield District Council,37UB,Huws Gray Limited,V1021601,22/03/2023,97.2,Housing & Assets 2,Supplies & Services,T35026/D200008,Housing Stock Accounts,Payments to Contractors External
Ashfield District Council,37UB,Huws Gray Limited,V1021602,22/03/2023,17.5,Housing & Assets 2,Supplies & Services,T35026/D200008,Housing Stock Accounts,Payments to Contractors External
Ashfield District Council,37UB,Huws Gray Limited,V1021602,22/03/2023,27.16,Housing & Assets 2,Supplies & Services,T35026/D200008,Housing Stock Accounts,Payments to Contractors External
Ashfield District Council,37UB,Huws Gray Limited,V1021603,22/03/2023,254.4,Housing & Assets 2,Supplies & Services,T35026/D200008,Housing Stock Accounts,Payments to Contractors External
Ashfield District Council,37UB,Huws Gray Limited,V1021603,22/03/2023,51.12,Housing & Assets 2,Supplies & Services,T35026/D200008,Housing Stock Accounts,Payments to Contractors External
Ashfield District Council,37UB,Huws Gray Limited,V1021603,22/03/2023,182.4,Housing & Assets 2,Supplies & Services,T35026/D200008,Housing Stock Accounts,Payments to Contractors External
Ashfield District Council,37UB,Huws Gray Limited,V1021603,22/03/2023,39.2,Housing & Assets 2,Supplies & Services,T35026/D200008,Housing Stock Accounts,Payments to Contractors External
Ashfield District Council,37UB,Huws Gray Limited,V1021603,22/03/2023,202.2,Housing & Assets 2,Supplies & Services,T35026/D200008,Housing Stock Accounts,Payments to Contractors External
Ashfield District Council,37UB,Huws Gray Limited,V1021604,22/03/2023,165.15,Housing & Assets 2,Supplies & Services,T35026/D200008,Housing Stock Accounts,Payments to Contractors External
Ashfield District Council,37UB,Huws Gray Limited,V1021604,22/03/2023,329.72,Housing & Assets 2,Supplies & Services,T35026/D200008,Housing Stock Accounts,Payments to Contractors External
Ashfield District Council,37UB,Huws Gray Limited,V1021604,22/03/2023,160.74,Housing & Assets 2,Supplies & Services,T35026/D200008,Housing Stock Accounts,Payments to Contractors External
Ashfield District Council,37UB,Huws Gray Limited,V1021605,22/03/2023,72.6,Housing & Assets 2,Supplies & Services,T35026/D200008,Housing Stock Accounts,Payments to Contractors External
Ashfield District Council,37UB,Huws Gray Limited,V1021605,22/03/2023,46.2,Housing & Assets 2,Supplies & Services,T35026/D200008,Housing Stock Accounts,Payments to Contractors External
Ashfield District Council,37UB,Huws Gray Limited,V1021606,22/03/2023,68.8,Housing & Assets 2,Supplies & Services,T35026/D200008,Housing Stock Accounts,Payments to Contractors External
Ashfield District Council,37UB,Huws Gray Limited,V1021607,22/03/2023,32,Housing & Assets 2,Supplies & Services,T35026/D200008,Housing Stock Accounts,Payments to Contractors External
Ashfield District Council,37UB,Huws Gray Limited,V1021608,22/03/2023,18.5,Housing & Assets 2,Supplies & Services,T35026/D200008,Housing Stock Accounts,Payments to Contractors External
Ashfield District Council,37UB,Huws Gray Limited,V1021615,22/03/2023,28.7,Housing & Assets 2,Supplies & Services,T35026/D200008,Housing Stock Accounts,Payments to Contractors External
Ashfield District Council,37UB,Huws Gray Limited,V1021616,22/03/2023,1.26,Housing & Assets 2,Supplies & Services,T35026/D200008,Housing Stock Accounts,Payments to Contractors External
Ashfield District Council,37UB,Huws Gray Limited,V1021619,22/03/2023,6.69,Housing & Assets 2,Supplies & Services,T35026/D200008,Housing Stock Accounts,Payments to Contractors External
Ashfield District Council,37UB,Huws Gray Limited,V1021620,22/03/2023,285.8,Housing & Assets 2,Supplies & Services,T35026/D200008,Housing Stock Accounts,Payments to Contractors External
Ashfield District Council,37UB,Huws Gray Limited,V1021620,22/03/2023,147.1,Housing & Assets 2,Supplies & Services,T35026/D200008,Housing Stock Accounts,Payments to Contractors External
Ashfield District Council,37UB,Huws Gray Limited,V1021621,22/03/2023,68.69,Housing & Assets 2,Supplies & Services,T35026/D200008,Housing Stock Accounts,Payments to Contractors External
Ashfield District Council,37UB,Huws Gray Limited,V1021623,22/03/2023,19.1,Housing & Assets 2,Supplies & Services,T35026/D200008,Housing Stock Accounts,Payments to Contractors External
Ashfield District Council,37UB,Huws Gray Limited,V1021624,22/03/2023,106.24,Housing & Assets 2,Supplies & Services,T35026/D200008,Housing Stock Accounts,Payments to Contractors External
Ashfield District Council,37UB,Huws Gray Limited,V1021625,22/03/2023,253.2,Housing & Assets 2,Supplies & Services,T35026/D200008,Housing Stock Accounts,Payments to Contractors External
Ashfield District Council,37UB,Huws Gray Limited,V1021627,22/03/2023,10.95,Housing & Assets 2,Supplies & Services,T35026/D200008,Housing Stock Accounts,Payments to Contractors External
Ashfield District Council,37UB,Huws Gray Limited,V1021627,22/03/2023,14.68,Housing & Assets 2,Supplies & Services,T35026/D200008,Housing Stock Accounts,Payments to Contractors External
Ashfield District Council,37UB,Huws Gray Limited,V1021627,22/03/2023,2.15,Housing & Assets 2,Supplies & Services,T35026/D200008,Housing Stock Accounts,Payments to Contractors External
Ashfield District Council,37UB,Huws Gray Limited,V1021628,22/03/2023,23,Housing & Assets 2,Supplies & Services,T35026/D200008,Housing Stock Accounts,Payments to Contractors External
Ashfield District Council,37UB,Huws Gray Limited,V1021628,22/03/2023,6.88,Housing & Assets 2,Supplies & Services,T35026/D200008,Housing Stock Accounts,Payments to Contractors External
Ashfield District Council,37UB,Huws Gray Limited,V1021628,22/03/2023,26.28,Housing & Assets 2,Supplies & Services,T35026/D200008,Housing Stock Accounts,Payments to Contractors External
Ashfield District Council,37UB,Huws Gray Limited,V1021628,22/03/2023,16.2,Housing & Assets 2,Supplies & Services,T35026/D200008,Housing Stock Accounts,Payments to Contractors External
Ashfield District Council,37UB,Huws Gray Limited,V1021628,22/03/2023,443.52,Housing & Assets 2,Supplies & Services,T35026/D200008,Housing Stock Accounts,Payments to Contractors External
Ashfield District Council,37UB,Huws Gray Limited,V1021628,22/03/2023,82.8,Housing & Assets 2,Supplies & Services,T35026/D200008,Housing Stock Accounts,Payments to Contractors External
Ashfield District Council,37UB,Huws Gray Limited,V1021628,22/03/2023,21.8,Housing & Assets 2,Supplies & Services,T35026/D200008,Housing Stock Accounts,Payments to Contractors External
Ashfield District Council,37UB,Huws Gray Limited,V1021628,22/03/2023,27.6,Housing & Assets 2,Supplies & Services,T35026/D200008,Housing Stock Accounts,Payments to Contractors External
Ashfield District Council,37UB,Huws Gray Limited,V1021631,22/03/2023,4.7,Housing & Assets 2,Supplies & Services,T35026/D200008,Housing Stock Accounts,Payments to Contractors External
Ashfield District Council,37UB,Huws Gray Limited,V1021632,22/03/2023,69.5,Housing & Assets 2,Supplies & Services,T35026/D200008,Housing Stock Accounts,Payments to Contractors External
Ashfield District Council,37UB,Huws Gray Limited,V1021633,22/03/2023,18.6,Housing & Assets 2,Supplies & Services,T35026/D200008,Housing Stock Accounts,Payments to Contractors External
Ashfield District Council,37UB,Huws Gray Limited,V1021635,22/03/2023,38.4,Housing & Assets 2,Supplies & Services,T35026/D200008,Housing Stock Accounts,Payments to Contractors External
Ashfield District Council,37UB,Huws Gray Limited,V1021635,22/03/2023,334.25,Housing & Assets 2,Supplies & Services,T35026/D200008,Housing Stock Accounts,Payments to Contractors External
Ashfield District Council,37UB,Huws Gray Limited,V1021635,22/03/2023,73.4,Housing & Assets 2,Supplies & Services,T35026/D200008,Housing Stock Accounts,Payments to Contractors External
Ashfield District Council,37UB,Huws Gray Limited,V1021635,22/03/2023,18.25,Housing & Assets 2,Supplies & Services,T35026/D200008,Housing Stock Accounts,Payments to Contractors External
Ashfield District Council,37UB,Huws Gray Limited,V1021636,22/03/2023,142.5,Housing & Assets 2,Supplies & Services,T35026/D200008,Housing Stock Accounts,Payments to Contractors External
Ashfield District Council,37UB,Huws Gray Limited,V1021637,22/03/2023,13,Housing & Assets 2,Supplies & Services,T35026/D200008,Housing Stock Accounts,Payments to Contractors External
Ashfield District Council,37UB,Huws Gray Limited,V1021637,22/03/2023,12.9,Housing & Assets 2,Supplies & Services,T35026/D200008,Housing Stock Accounts,Payments to Contractors External
Ashfield District Council,37UB,Huws Gray Limited,V1021637,22/03/2023,64,Housing & Assets 2,Supplies & Services,T35026/D200008,Housing Stock Accounts,Payments to Contractors External
Ashfield District Council,37UB,Huws Gray Limited,V1021637,22/03/2023,195.44,Housing & Assets 2,Supplies & Services,T35026/D200008,Housing Stock Accounts,Payments to Contractors External
Ashfield District Council,37UB,Huws Gray Limited,V1021638,22/03/2023,154.5,Housing & Assets 2,Supplies & Services,T35026/D200008,Housing Stock Accounts,Payments to Contractors External
Ashfield District Council,37UB,Huws Gray Limited,V1021641,22/03/2023,4875.6,Housing & Assets 2,Supplies & Services,T35026/D200008,Housing Stock Accounts,Payments to Contractors External
Ashfield District Council,37UB,Huws Gray Limited,V1021642,22/03/2023,4.36,Housing & Assets 2,Supplies & Services,T35026/D200008,Housing Stock Accounts,Payments to Contractors External
Ashfield District Council,37UB,Huws Gray Limited,V1021642,22/03/2023,20.6,Housing & Assets 2,Supplies & Services,T35026/D200008,Housing Stock Accounts,Payments to Contractors External
Ashfield District Council,37UB,Huws Gray Limited,V1021642,22/03/2023,54.84,Housing & Assets 2,Supplies & Services,T35026/D200008,Housing Stock Accounts,Payments to Contractors External
Ashfield District Council,37UB,Huws Gray Limited,V1021642,22/03/2023,9.72,Housing & Assets 2,Supplies & Services,T35026/D200008,Housing Stock Accounts,Payments to Contractors External
Ashfield District Council,37UB,Huws Gray Limited,V1021642,22/03/2023,14.1,Housing & Assets 2,Supplies & Services,T35026/D200008,Housing Stock Accounts,Payments to Contractors External
Ashfield District Council,37UB,Huws Gray Limited,V1021642,22/03/2023,17.52,Housing & Assets 2,Supplies & Services,T35026/D200008,Housing Stock Accounts,Payments to Contractors External
Ashfield District Council,37UB,Huws Gray Limited,V1021642,22/03/2023,56.12,Housing & Assets 2,Supplies & Services,T35026/D200008,Housing Stock Accounts,Payments to Contractors External
Ashfield District Council,37UB,Huws Gray Limited,V1021642,22/03/2023,2.56,Housing & Assets 2,Supplies & Services,T35026/D200008,Housing Stock Accounts,Payments to Contractors External
Ashfield District Council,37UB,Huws Gray Limited,V1021642,22/03/2023,2.22,Housing & Assets 2,Supplies & Services,T35026/D200008,Housing Stock Accounts,Payments to Contractors External
Ashfield District Council,37UB,Huws Gray Limited,V1021642,22/03/2023,8.9,Housing & Assets 2,Supplies & Services,T35026/D200008,Housing Stock Accounts,Payments to Contractors External
Ashfield District Council,37UB,Huws Gray Limited,V1021645,22/03/2023,213.84,Housing & Assets 2,Supplies & Services,T35026/D200008,Housing Stock Accounts,Payments to Contractors External
Ashfield District Council,37UB,Huws Gray Limited,V1021645,22/03/2023,266,Housing & Assets 2,Supplies & Services,T35026/D200008,Housing Stock Accounts,Payments to Contractors External
Ashfield District Council,37UB,Huws Gray Limited,V1021709,22/03/2023,44.35,Housing & Assets 2,Supplies & Services,T35026/D200008,Housing Stock Accounts,Payments to Contractors External
Ashfield District Council,37UB,Huws Gray Limited,V1021709,22/03/2023,214.45,Housing & Assets 2,Supplies & Services,T35026/D200008,Housing Stock Accounts,Payments to Contractors External
Ashfield District Council,37UB,Huws Gray Limited,V1021709,22/03/2023,68.5,Housing & Assets 2,Supplies & Services,T35026/D200008,Housing Stock Accounts,Payments to Contractors External
Ashfield District Council,37UB,Huws Gray Limited,V1021709,22/03/2023,35.6,Housing & Assets 2,Supplies & Services,T35026/D200008,Housing Stock Accounts,Payments to Contractors External
Ashfield District Council,37UB,Huws Gray Limited,V1021865,22/03/2023,155.4,Housing & Assets 2,Supplies & Services,T35026/D200008,Housing Stock Accounts,Payments to Contractors External
Ashfield District Council,37UB,Huws Gray Limited,V1022207,27/03/2023,-22.9,Housing & Assets 2,Supplies & Services,T35026/D200008,Housing Stock Accounts,Payments to Contractors External
Ashfield District Council,37UB,Huws Gray Limited,V1022208,27/03/2023,-25.76,Housing & Assets 2,Supplies & Services,T35026/D200008,Housing Stock Accounts,Payments to Contractors External
Ashfield District Council,37UB,Huws Gray Limited,V1022544,27/03/2023,10.75,Housing & Assets 2,Supplies & Services,T35026/D200008,Housing Stock Accounts,Payments to Contractors External
Ashfield District Council,37UB,Huws Gray Limited,V1022545,27/03/2023,21.5,Housing & Assets 2,Supplies & Services,T35026/D200008,Housing Stock Accounts,Payments to Contractors External
Ashfield District Council,37UB,Huws Gray Limited,V1022546,27/03/2023,6.48,Housing & Assets 2,Supplies & Services,T35026/D200008,Housing Stock Accounts,Payments to Contractors External
Ashfield District Council,37UB,Huws Gray Limited,V1022546,27/03/2023,52.25,Housing & Assets 2,Supplies & Services,T35026/D200008,Housing Stock Accounts,Payments to Contractors External
Ashfield District Council,37UB,Huws Gray Limited,V1022546,27/03/2023,48.06,Housing & Assets 2,Supplies & Services,T35026/D200008,Housing Stock Accounts,Payments to Contractors External
Ashfield District Council,37UB,Huws Gray Limited,V1022547,27/03/2023,234,Housing & Assets 2,Supplies & Services,T35026/D200008,Housing Stock Accounts,Payments to Contractors External
Ashfield District Council,37UB,Huws Gray Limited,V1022599,27/03/2023,135.5,Housing & Assets 2,Supplies & Services,T35026/D200008,Housing Stock Accounts,Payments to Contractors External
Ashfield District Council,37UB,Huws Gray Limited,V1022601,27/03/2023,438.6,Housing & Assets 2,Supplies & Services,T35026/D200008,Housing Stock Accounts,Payments to Contractors External
Ashfield District Council,37UB,Huws Gray Limited,V1022603,27/03/2023,534.8,Housing & Assets 2,Supplies & Services,T35026/D200008,Housing Stock Accounts,Payments to Contractors External
Ashfield District Council,37UB,Huws Gray Limited,V1022605,27/03/2023,2.92,Housing & Assets 2,Supplies & Services,T35026/D200008,Housing Stock Accounts,Payments to Contractors External
Ashfield District Council,37UB,Huws Gray Limited,V1022605,27/03/2023,10.9,Housing & Assets 2,Supplies & Services,T35026/D200008,Housing Stock Accounts,Payments to Contractors External
Ashfield District Council,37UB,Huws Gray Limited,V1022606,27/03/2023,1.72,Housing & Assets 2,Supplies & Services,T35026/D200008,Housing Stock Accounts,Payments to Contractors External
Ashfield District Council,37UB,Huws Gray Limited,V1022607,27/03/2023,92.4,Housing & Assets 2,Supplies & Services,T35026/D200008,Housing Stock Accounts,Payments to Contractors External
Ashfield District Council,37UB,Huws Gray Limited,V1022608,27/03/2023,152.32,Housing & Assets 2,Supplies & Services,T35026/D200008,Housing Stock Accounts,Payments to Contractors External
Ashfield District Council,37UB,Huws Gray Limited,V1022608,27/03/2023,160.98,Housing & Assets 2,Supplies & Services,T35026/D200008,Housing Stock Accounts,Payments to Contractors External
Ashfield District Council,37UB,Huws Gray Limited,V1022609,27/03/2023,33.6,Housing & Assets 2,Supplies & Services,T35026/D200008,Housing Stock Accounts,Payments to Contractors External
Ashfield District Council,37UB,Huws Gray Limited,V1022610,27/03/2023,169.53,Housing & Assets 2,Supplies & Services,T35026/D200008,Housing Stock Accounts,Payments to Contractors External
Ashfield District Council,37UB,Huws Gray Limited,V1022612,27/03/2023,104.25,Housing & Assets 2,Supplies & Services,T35026/D200008,Housing Stock Accounts,Payments to Contractors External
Ashfield District Council,37UB,Huws Gray Limited,V1022614,27/03/2023,510,Housing & Assets 2,Supplies & Services,T35026/D200008,Housing Stock Accounts,Payments to Contractors External
Ashfield District Council,37UB,Huws Gray Limited,V1022614,27/03/2023,69.6,Housing & Assets 2,Supplies & Services,T35026/D200008,Housing Stock Accounts,Payments to Contractors External
Ashfield District Council,37UB,Huws Gray Limited,V1022614,27/03/2023,71.52,Housing & Assets 2,Supplies & Services,T35026/D200008,Housing Stock Accounts,Payments to Contractors External
Ashfield District Council,37UB,Huws Gray Limited,V1022614,27/03/2023,25.56,Housing & Assets 2,Supplies & Services,T35026/D200008,Housing Stock Accounts,Payments to Contractors External
Ashfield District Council,37UB,Huws Gray Limited,V1022619,27/03/2023,80.7,Housing & Assets 2,Supplies & Services,T35026/D200008,Housing Stock Accounts,Payments to Contractors External
Ashfield District Council,37UB,JWL (Architectural Ironmongers) Ltd,V1022585,27/03/2023,270.08,Housing & Assets 2,Supplies & Services,T35026/D200008,Housing Stock Accounts,Payments to Contractors External
Ashfield District Council,37UB,Magnet Ltd,V1021076,14/03/2023,866.7,Housing & Assets 2,Supplies & Services,T35026/D200008,Housing Stock Accounts,Payments to Contractors External
Ashfield District Council,37UB,Magnet Ltd,V1021076,14/03/2023,438.16,Housing & Assets 2,Supplies & Services,T35026/D200008,Housing Stock Accounts,Payments to Contractors External
Ashfield District Council,37UB,Maxam Direct,V1021075,14/03/2023,414.56,Housing & Assets 2,Supplies & Services,T35026/D200008,Housing Stock Accounts,Payments to Contractors External
Ashfield District Council,37UB,Nationwide Hygiene Supplies Limited,V1022521,27/03/2023,133.05,Housing & Assets 2,Supplies & Services,T35026/D200008,Housing Stock Accounts,Payments to Contractors External
Ashfield District Council,37UB,Nationwide Windows Limited,V1021569,22/03/2023,920.4,Housing & Assets 2,Supplies & Services,T35026/D200008,Housing Stock Accounts,Payments to Contractors External
Ashfield District Council,37UB,Nuaire a division of Polypipe,V1021079,14/03/2023,274.66,Housing & Assets 2,Supplies & Services,T35026/D200008,Housing Stock Accounts,Payments to Contractors External
Ashfield District Council,37UB,Nuaire a division of Polypipe,V1021570,22/03/2023,1208.6,Housing & Assets 2,Supplies & Services,T35026/D200008,Housing Stock Accounts,Payments to Contractors External
Ashfield District Council,37UB,Nuaire a division of Polypipe,V1022523,27/03/2023,1310.2,Housing & Assets 2,Supplies & Services,T35026/D200008,Housing Stock Accounts,Payments to Contractors External
Ashfield District Council,37UB,Nuaire a division of Polypipe,V1022524,27/03/2023,576.79,Housing & Assets 2,Supplies & Services,T35026/D200008,Housing Stock Accounts,Payments to Contractors External
Ashfield District Council,37UB,Office Depot UK Limited,V1021080,14/03/2023,124.02,Housing & Assets 2,Supplies & Services,T35026/D200008,Housing Stock Accounts,Payments to Contractors External
Ashfield District Council,37UB,Office Depot UK Limited,V1021081,14/03/2023,124.02,Housing & Assets 2,Supplies & Services,T35026/D200008,Housing Stock Accounts,Payments to Contractors External
Ashfield District Council,37UB,Office Depot UK Limited,V1021082,14/03/2023,165.36,Housing & Assets 2,Supplies & Services,T35026/D200008,Housing Stock Accounts,Payments to Contractors External
Ashfield District Council,37UB,Office Depot UK Limited,V1021711,22/03/2023,31.36,Housing & Assets 2,Supplies & Services,T35026/D200008,Housing Stock Accounts,Payments to Contractors External
Ashfield District Council,37UB,Office Depot UK Limited,V1021711,22/03/2023,124.02,Housing & Assets 2,Supplies & Services,T35026/D200008,Housing Stock Accounts,Payments to Contractors External
Ashfield District Council,37UB,Permadoor,V1021083,14/03/2023,141,Housing & Assets 2,Supplies & Services,T35026/D200008,Housing Stock Accounts,Payments to Contractors External
Ashfield District Council,37UB,Permadoor,V1022525,27/03/2023,1007,Housing & Assets 2,Supplies & Services,T35026/D200008,Housing Stock Accounts,Payments to Contractors External
Ashfield District Council,37UB,Permadoor,V1022525,27/03/2023,725,Housing & Assets 2,Supplies & Services,T35026/D200008,Housing Stock Accounts,Payments to Contractors External
Ashfield District Council,37UB,Permadoor,V1022625,27/03/2023,778.37,Housing & Assets 2,Supplies & Services,T35026/D200008,Housing Stock Accounts,Payments to Contractors External
Ashfield District Council,37UB,Permadoor,V1022626,27/03/2023,161,Housing & Assets 2,Supplies & Services,T35026/D200008,Housing Stock Accounts,Payments to Contractors External
Ashfield District Council,37UB,PWS (Protective Wear Supplies) Limited,V1020587,06/03/2023,78.3,Housing & Assets 2,Supplies & Services,T35026/D200008,Housing Stock Accounts,Payments to Contractors External
Ashfield District Council,37UB,PWS (Protective Wear Supplies) Limited,V1020588,06/03/2023,13.8,Housing & Assets 2,Supplies & Services,T35026/D200008,Housing Stock Accounts,Payments to Contractors External
Ashfield District Council,37UB,PWS (Protective Wear Supplies) Limited,V1020588,06/03/2023,36.72,Housing & Assets 2,Supplies & Services,T35026/D200008,Housing Stock Accounts,Payments to Contractors External
Ashfield District Council,37UB,PWS (Protective Wear Supplies) Limited,V1020590,06/03/2023,298.6,Housing & Assets 2,Supplies & Services,T35026/D200008,Housing Stock Accounts,Payments to Contractors External
Ashfield District Council,37UB,PWS (Protective Wear Supplies) Limited,V1020590,06/03/2023,130.56,Housing & Assets 2,Supplies & Services,T35026/D200008,Housing Stock Accounts,Payments to Contractors External
Ashfield District Council,37UB,PWS (Protective Wear Supplies) Limited,V1021085,14/03/2023,36.72,Housing & Assets 2,Supplies & Services,T35026/D200008,Housing Stock Accounts,Payments to Contractors External
Ashfield District Council,37UB,PWS (Protective Wear Supplies) Limited,V1021085,14/03/2023,13.95,Housing & Assets 2,Supplies & Services,T35026/D200008,Housing Stock Accounts,Payments to Contractors External
Ashfield District Council,37UB,PWS (Protective Wear Supplies) Limited,V1021086,14/03/2023,58.41,Housing & Assets 2,Supplies & Services,T35026/D200008,Housing Stock Accounts,Payments to Contractors External
Ashfield District Council,37UB,PWS (Protective Wear Supplies) Limited,V1021086,14/03/2023,192.6,Housing & Assets 2,Supplies & Services,T35026/D200008,Housing Stock Accounts,Payments to Contractors External
Ashfield District Council,37UB,PWS (Protective Wear Supplies) Limited,V1021086,14/03/2023,160.5,Housing & Assets 2,Supplies & Services,T35026/D200008,Housing Stock Accounts,Payments to Contractors External
Ashfield District Council,37UB,PWS (Protective Wear Supplies) Limited,V1021086,14/03/2023,321,Housing & Assets 2,Supplies & Services,T35026/D200008,Housing Stock Accounts,Payments to Contractors External
Ashfield District Council,37UB,PWS (Protective Wear Supplies) Limited,V1021086,14/03/2023,79.74,Housing & Assets 2,Supplies & Services,T35026/D200008,Housing Stock Accounts,Payments to Contractors External
Ashfield District Council,37UB,PWS (Protective Wear Supplies) Limited,V1021087,14/03/2023,87.9,Housing & Assets 2,Supplies & Services,T35026/D200008,Housing Stock Accounts,Payments to Contractors External
Ashfield District Council,37UB,PWS (Protective Wear Supplies) Limited,V1021087,14/03/2023,10.92,Housing & Assets 2,Supplies & Services,T35026/D200008,Housing Stock Accounts,Payments to Contractors External
Ashfield District Council,37UB,PWS (Protective Wear Supplies) Limited,V1021571,22/03/2023,76.8,Housing & Assets 2,Supplies & Services,T35026/D200008,Housing Stock Accounts,Payments to Contractors External
Ashfield District Council,37UB,PWS (Protective Wear Supplies) Limited,V1021572,22/03/2023,32.1,Housing & Assets 2,Supplies & Services,T35026/D200008,Housing Stock Accounts,Payments to Contractors External
Ashfield District Council,37UB,PWS (Protective Wear Supplies) Limited,V1021572,22/03/2023,207.6,Housing & Assets 2,Supplies & Services,T35026/D200008,Housing Stock Accounts,Payments to Contractors External
Ashfield District Council,37UB,PWS (Protective Wear Supplies) Limited,V1021572,22/03/2023,71.1,Housing & Assets 2,Supplies & Services,T35026/D200008,Housing Stock Accounts,Payments to Contractors External
Ashfield District Council,37UB,PWS (Protective Wear Supplies) Limited,V1021572,22/03/2023,32.4,Housing & Assets 2,Supplies & Services,T35026/D200008,Housing Stock Accounts,Payments to Contractors External
Ashfield District Council,37UB,PWS (Protective Wear Supplies) Limited,V1021710,22/03/2023,55.3,Housing & Assets 2,Supplies & Services,T35026/D200008,Housing Stock Accounts,Payments to Contractors External
Ashfield District Council,37UB,PWS (Protective Wear Supplies) Limited,V1022526,27/03/2023,87,Housing & Assets 2,Supplies & Services,T35026/D200008,Housing Stock Accounts,Payments to Contractors External
Ashfield District Council,37UB,PWS (Protective Wear Supplies) Limited,V1022527,27/03/2023,146.88,Housing & Assets 2,Supplies & Services,T35026/D200008,Housing Stock Accounts,Payments to Contractors External
Ashfield District Council,37UB,PWS (Protective Wear Supplies) Limited,V1022527,27/03/2023,21.2,Housing & Assets 2,Supplies & Services,T35026/D200008,Housing Stock Accounts,Payments to Contractors External
Ashfield District Council,37UB,PWS (Protective Wear Supplies) Limited,V1022527,27/03/2023,13.92,Housing & Assets 2,Supplies & Services,T35026/D200008,Housing Stock Accounts,Payments to Contractors External
Ashfield District Council,37UB,PWS (Protective Wear Supplies) Limited,V1022577,27/03/2023,38.84,Housing & Assets 2,Supplies & Services,T35026/D200008,Housing Stock Accounts,Payments to Contractors External
Ashfield District Council,37UB,PWS (Protective Wear Supplies) Limited,V1022577,27/03/2023,58.26,Housing & Assets 2,Supplies & Services,T35026/D200008,Housing Stock Accounts,Payments to Contractors External
Ashfield District Council,37UB,PWS (Protective Wear Supplies) Limited,V1022577,27/03/2023,58.26,Housing & Assets 2,Supplies & Services,T35026/D200008,Housing Stock Accounts,Payments to Contractors External
Ashfield District Council,37UB,PWS (Protective Wear Supplies) Limited,V1022577,27/03/2023,189.7,Housing & Assets 2,Supplies & Services,T35026/D200008,Housing Stock Accounts,Payments to Contractors External
Ashfield District Council,37UB,PWS (Protective Wear Supplies) Limited,V1022577,27/03/2023,160.5,Housing & Assets 2,Supplies & Services,T35026/D200008,Housing Stock Accounts,Payments to Contractors External
Ashfield District Council,37UB,Rexel UK Limited,V1020632,06/03/2023,28.54,Housing & Assets 2,Supplies & Services,T35026/D200008,Housing Stock Accounts,Payments to Contractors External
Ashfield District Council,37UB,Rexel UK Limited,V1020634,06/03/2023,42.8,Housing & Assets 2,Supplies & Services,T35026/D200008,Housing Stock Accounts,Payments to Contractors External
Ashfield District Council,37UB,Rexel UK Limited,V1020635,06/03/2023,14.69,Housing & Assets 2,Supplies & Services,T35026/D200008,Housing Stock Accounts,Payments to Contractors External
Ashfield District Council,37UB,Rexel UK Limited,V1020636,06/03/2023,262.5,Housing & Assets 2,Supplies & Services,T35026/D200008,Housing Stock Accounts,Payments to Contractors External
Ashfield District Council,37UB,Rexel UK Limited,V1020639,06/03/2023,2162.4,Housing & Assets 2,Supplies & Services,T35026/D200008,Housing Stock Accounts,Payments to Contractors External
Ashfield District Council,37UB,Rexel UK Limited,V1020640,06/03/2023,360.4,Housing & Assets 2,Supplies & Services,T35026/D200008,Housing Stock Accounts,Payments to Contractors External
Ashfield District Council,37UB,Rexel UK Limited,V1020641,06/03/2023,10.8,Housing & Assets 2,Supplies & Services,T35026/D200008,Housing Stock Accounts,Payments to Contractors External
Ashfield District Council,37UB,Rexel UK Limited,V1020643,06/03/2023,27,Housing & Assets 2,Supplies & Services,T35026/D200008,Housing Stock Accounts,Payments to Contractors External
Ashfield District Council,37UB,Rexel UK Limited,V1020643,06/03/2023,22,Housing & Assets 2,Supplies & Services,T35026/D200008,Housing Stock Accounts,Payments to Contractors External
Ashfield District Council,37UB,Rexel UK Limited,V1020643,06/03/2023,120.36,Housing & Assets 2,Supplies & Services,T35026/D200008,Housing Stock Accounts,Payments to Contractors External
Ashfield District Council,37UB,Rexel UK Limited,V1020645,06/03/2023,14.27,Housing & Assets 2,Supplies & Services,T35026/D200008,Housing Stock Accounts,Payments to Contractors External
Ashfield District Council,37UB,Rexel UK Limited,V1020646,06/03/2023,87,Housing & Assets 2,Supplies & Services,T35026/D200008,Housing Stock Accounts,Payments to Contractors External
Ashfield District Council,37UB,Rexel UK Limited,V1020646,06/03/2023,42.8,Housing & Assets 2,Supplies & Services,T35026/D200008,Housing Stock Accounts,Payments to Contractors External
Ashfield District Council,37UB,Rexel UK Limited,V1020648,06/03/2023,83.76,Housing & Assets 2,Supplies & Services,T35026/D200008,Housing Stock Accounts,Payments to Contractors External
Ashfield District Council,37UB,Rexel UK Limited,V1020650,06/03/2023,360.4,Housing & Assets 2,Supplies & Services,T35026/D200008,Housing Stock Accounts,Payments to Contractors External
Ashfield District Council,37UB,Rexel UK Limited,V1020969,14/03/2023,-20.46,Housing & Assets 2,Supplies & Services,T35026/D200008,Housing Stock Accounts,Payments to Contractors External
Ashfield District Council,37UB,Rexel UK Limited,V1021148,14/03/2023,231,Housing & Assets 2,Supplies & Services,T35026/D200008,Housing Stock Accounts,Payments to Contractors External
Ashfield District Council,37UB,Rexel UK Limited,V1021150,14/03/2023,23,Housing & Assets 2,Supplies & Services,T35026/D200008,Housing Stock Accounts,Payments to Contractors External
Ashfield District Council,37UB,Rexel UK Limited,V1021151,14/03/2023,1600,Housing & Assets 2,Supplies & Services,T35026/D200008,Housing Stock Accounts,Payments to Contractors External
Ashfield District Council,37UB,Rexel UK Limited,V1021161,14/03/2023,1600,Housing & Assets 2,Supplies & Services,T35026/D200008,Housing Stock Accounts,Payments to Contractors External
Ashfield District Council,37UB,Rexel UK Limited,V1021163,14/03/2023,83.76,Housing & Assets 2,Supplies & Services,T35026/D200008,Housing Stock Accounts,Payments to Contractors External
Ashfield District Council,37UB,Rexel UK Limited,V1021164,14/03/2023,55.1,Housing & Assets 2,Supplies & Services,T35026/D200008,Housing Stock Accounts,Payments to Contractors External
Ashfield District Council,37UB,Rexel UK Limited,V1021164,14/03/2023,11.9,Housing & Assets 2,Supplies & Services,T35026/D200008,Housing Stock Accounts,Payments to Contractors External
Ashfield District Council,37UB,Rexel UK Limited,V1021165,14/03/2023,76,Housing & Assets 2,Supplies & Services,T35026/D200008,Housing Stock Accounts,Payments to Contractors External
Ashfield District Council,37UB,Rexel UK Limited,V1021169,14/03/2023,75,Housing & Assets 2,Supplies & Services,T35026/D200008,Housing Stock Accounts,Payments to Contractors External
Ashfield District Council,37UB,Rexel UK Limited,V1021169,14/03/2023,38,Housing & Assets 2,Supplies & Services,T35026/D200008,Housing Stock Accounts,Payments to Contractors External
Ashfield District Council,37UB,Rexel UK Limited,V1021171,14/03/2023,67.98,Housing & Assets 2,Supplies & Services,T35026/D200008,Housing Stock Accounts,Payments to Contractors External
Ashfield District Council,37UB,Rexel UK Limited,V1021171,14/03/2023,23,Housing & Assets 2,Supplies & Services,T35026/D200008,Housing Stock Accounts,Payments to Contractors External
Ashfield District Council,37UB,Rexel UK Limited,V1021171,14/03/2023,0.78,Housing & Assets 2,Supplies & Services,T35026/D200008,Housing Stock Accounts,Payments to Contractors External
Ashfield District Council,37UB,Rexel UK Limited,V1021171,14/03/2023,87.61,Housing & Assets 2,Supplies & Services,T35026/D200008,Housing Stock Accounts,Payments to Contractors External
Ashfield District Council,37UB,Rexel UK Limited,V1021171,14/03/2023,1267.92,Housing & Assets 2,Supplies & Services,T35026/D200008,Housing Stock Accounts,Payments to Contractors External
Ashfield District Council,37UB,Rexel UK Limited,V1021172,14/03/2023,36,Housing & Assets 2,Supplies & Services,T35026/D200008,Housing Stock Accounts,Payments to Contractors External
Ashfield District Council,37UB,Rexel UK Limited,V1021173,14/03/2023,986.16,Housing & Assets 2,Supplies & Services,T35026/D200008,Housing Stock Accounts,Payments to Contractors External
Ashfield District Council,37UB,Rexel UK Limited,V1021428,22/03/2023,57.23,Housing & Assets 2,Supplies & Services,T35026/D200008,Housing Stock Accounts,Payments to Contractors External
Ashfield District Council,37UB,Rexel UK Limited,V1021429,22/03/2023,228.5,Housing & Assets 2,Supplies & Services,T35026/D200008,Housing Stock Accounts,Payments to Contractors External
Ashfield District Council,37UB,Rexel UK Limited,V1021430,22/03/2023,342.75,Housing & Assets 2,Supplies & Services,T35026/D200008,Housing Stock Accounts,Payments to Contractors External
Ashfield District Council,37UB,Rexel UK Limited,V1021431,22/03/2023,99.89,Housing & Assets 2,Supplies & Services,T35026/D200008,Housing Stock Accounts,Payments to Contractors External
Ashfield District Council,37UB,Rexel UK Limited,V1021431,22/03/2023,14.27,Housing & Assets 2,Supplies & Services,T35026/D200008,Housing Stock Accounts,Payments to Contractors External
Ashfield District Council,37UB,Rexel UK Limited,V1021432,22/03/2023,9,Housing & Assets 2,Supplies & Services,T35026/D200008,Housing Stock Accounts,Payments to Contractors External
Ashfield District Council,37UB,Rexel UK Limited,V1021433,22/03/2023,18,Housing & Assets 2,Supplies & Services,T35026/D200008,Housing Stock Accounts,Payments to Contractors External
Ashfield District Council,37UB,Rexel UK Limited,V1021433,22/03/2023,167.52,Housing & Assets 2,Supplies & Services,T35026/D200008,Housing Stock Accounts,Payments to Contractors External
Ashfield District Council,37UB,Rexel UK Limited,V1021646,22/03/2023,29.34,Housing & Assets 2,Supplies & Services,T35026/D200008,Housing Stock Accounts,Payments to Contractors External
Ashfield District Council,37UB,Rexel UK Limited,V1021647,22/03/2023,7.22,Housing & Assets 2,Supplies & Services,T35026/D200008,Housing Stock Accounts,Payments to Contractors External
Ashfield District Council,37UB,Rexel UK Limited,V1021648,22/03/2023,36,Housing & Assets 2,Supplies & Services,T35026/D200008,Housing Stock Accounts,Payments to Contractors External
Ashfield District Council,37UB,Rexel UK Limited,V1021648,22/03/2023,7.84,Housing & Assets 2,Supplies & Services,T35026/D200008,Housing Stock Accounts,Payments to Contractors External
Ashfield District Council,37UB,Rexel UK Limited,V1021648,22/03/2023,30.33,Housing & Assets 2,Supplies & Services,T35026/D200008,Housing Stock Accounts,Payments to Contractors External
Ashfield District Council,37UB,Rexel UK Limited,V1021648,22/03/2023,11,Housing & Assets 2,Supplies & Services,T35026/D200008,Housing Stock Accounts,Payments to Contractors External
Ashfield District Council,37UB,Rexel UK Limited,V1021648,22/03/2023,159,Housing & Assets 2,Supplies & Services,T35026/D200008,Housing Stock Accounts,Payments to Contractors External
Ashfield District Council,37UB,Rexel UK Limited,V1021648,22/03/2023,138.64,Housing & Assets 2,Supplies & Services,T35026/D200008,Housing Stock Accounts,Payments to Contractors External
Ashfield District Council,37UB,Rexel UK Limited,V1021650,22/03/2023,40.5,Housing & Assets 2,Supplies & Services,T35026/D200008,Housing Stock Accounts,Payments to Contractors External
Ashfield District Council,37UB,Rexel UK Limited,V1021651,22/03/2023,22.5,Housing & Assets 2,Supplies & Services,T35026/D200008,Housing Stock Accounts,Payments to Contractors External
Ashfield District Council,37UB,Rexel UK Limited,V1021651,22/03/2023,17.7,Housing & Assets 2,Supplies & Services,T35026/D200008,Housing Stock Accounts,Payments to Contractors External
Ashfield District Council,37UB,Rexel UK Limited,V1021654,22/03/2023,22,Housing & Assets 2,Supplies & Services,T35026/D200008,Housing Stock Accounts,Payments to Contractors External
Ashfield District Council,37UB,Rexel UK Limited,V1021654,22/03/2023,42.75,Housing & Assets 2,Supplies & Services,T35026/D200008,Housing Stock Accounts,Payments to Contractors External
Ashfield District Council,37UB,Rexel UK Limited,V1021654,22/03/2023,9.7,Housing & Assets 2,Supplies & Services,T35026/D200008,Housing Stock Accounts,Payments to Contractors External
Ashfield District Council,37UB,Rexel UK Limited,V1021654,22/03/2023,13.4,Housing & Assets 2,Supplies & Services,T35026/D200008,Housing Stock Accounts,Payments to Contractors External
Ashfield District Council,37UB,Rexel UK Limited,V1021655,22/03/2023,27,Housing & Assets 2,Supplies & Services,T35026/D200008,Housing Stock Accounts,Payments to Contractors External
Ashfield District Council,37UB,Rexel UK Limited,V1021655,22/03/2023,29.1,Housing & Assets 2,Supplies & Services,T35026/D200008,Housing Stock Accounts,Payments to Contractors External
Ashfield District Council,37UB,Rexel UK Limited,V1021656,22/03/2023,638.8,Housing & Assets 2,Supplies & Services,T35026/D200008,Housing Stock Accounts,Payments to Contractors External
Ashfield District Council,37UB,Rexel UK Limited,V1021658,22/03/2023,76,Housing & Assets 2,Supplies & Services,T35026/D200008,Housing Stock Accounts,Payments to Contractors External
Ashfield District Council,37UB,Rexel UK Limited,V1021661,22/03/2023,399,Housing & Assets 2,Supplies & Services,T35026/D200008,Housing Stock Accounts,Payments to Contractors External
Ashfield District Council,37UB,Rexel UK Limited,V1021662,22/03/2023,58,Housing & Assets 2,Supplies & Services,T35026/D200008,Housing Stock Accounts,Payments to Contractors External
Ashfield District Council,37UB,Rexel UK Limited,V1021663,22/03/2023,28.54,Housing & Assets 2,Supplies & Services,T35026/D200008,Housing Stock Accounts,Payments to Contractors External
Ashfield District Council,37UB,Rexel UK Limited,V1021664,22/03/2023,28,Housing & Assets 2,Supplies & Services,T35026/D200008,Housing Stock Accounts,Payments to Contractors External
Ashfield District Council,37UB,Rexel UK Limited,V1021664,22/03/2023,83.76,Housing & Assets 2,Supplies & Services,T35026/D200008,Housing Stock Accounts,Payments to Contractors External
Ashfield District Council,37UB,Rexel UK Limited,V1021664,22/03/2023,5.2,Housing & Assets 2,Supplies & Services,T35026/D200008,Housing Stock Accounts,Payments to Contractors External
Ashfield District Council,37UB,Rexel UK Limited,V1021665,22/03/2023,5.2,Housing & Assets 2,Supplies & Services,T35026/D200008,Housing Stock Accounts,Payments to Contractors External
Ashfield District Council,37UB,Rexel UK Limited,V1021665,22/03/2023,28.5,Housing & Assets 2,Supplies & Services,T35026/D200008,Housing Stock Accounts,Payments to Contractors External
Ashfield District Council,37UB,Rexel UK Limited,V1021665,22/03/2023,9.87,Housing & Assets 2,Supplies & Services,T35026/D200008,Housing Stock Accounts,Payments to Contractors External
Ashfield District Council,37UB,Rexel UK Limited,V1021666,22/03/2023,28.54,Housing & Assets 2,Supplies & Services,T35026/D200008,Housing Stock Accounts,Payments to Contractors External
Ashfield District Council,37UB,Rexel UK Limited,V1021667,22/03/2023,126,Housing & Assets 2,Supplies & Services,T35026/D200008,Housing Stock Accounts,Payments to Contractors External
Ashfield District Council,37UB,Rexel UK Limited,V1021667,22/03/2023,96,Housing & Assets 2,Supplies & Services,T35026/D200008,Housing Stock Accounts,Payments to Contractors External
Ashfield District Council,37UB,Rexel UK Limited,V1021667,22/03/2023,29.6,Housing & Assets 2,Supplies & Services,T35026/D200008,Housing Stock Accounts,Payments to Contractors External
Ashfield District Council,37UB,Rexel UK Limited,V1021667,22/03/2023,29.8,Housing & Assets 2,Supplies & Services,T35026/D200008,Housing Stock Accounts,Payments to Contractors External
Ashfield District Council,37UB,Rexel UK Limited,V1021667,22/03/2023,28.62,Housing & Assets 2,Supplies & Services,T35026/D200008,Housing Stock Accounts,Payments to Contractors External
Ashfield District Council,37UB,Rexel UK Limited,V1021667,22/03/2023,4,Housing & Assets 2,Supplies & Services,T35026/D200008,Housing Stock Accounts,Payments to Contractors External
Ashfield District Council,37UB,Rexel UK Limited,V1021668,22/03/2023,827.28,Housing & Assets 2,Supplies & Services,T35026/D200008,Housing Stock Accounts,Payments to Contractors External
Ashfield District Council,37UB,Rexel UK Limited,V1021668,22/03/2023,680.4,Housing & Assets 2,Supplies & Services,T35026/D200008,Housing Stock Accounts,Payments to Contractors External
Ashfield District Council,37UB,Rexel UK Limited,V1021669,22/03/2023,17.1,Housing & Assets 2,Supplies & Services,T35026/D200008,Housing Stock Accounts,Payments to Contractors External
Ashfield District Council,37UB,Rexel UK Limited,V1021868,22/03/2023,28,Housing & Assets 2,Supplies & Services,T35026/D200008,Housing Stock Accounts,Payments to Contractors External
Ashfield District Council,37UB,Rexel UK Limited,V1022548,27/03/2023,49.5,Housing & Assets 2,Supplies & Services,T35026/D200008,Housing Stock Accounts,Payments to Contractors External
Ashfield District Council,37UB,Rexel UK Limited,V1022549,27/03/2023,44.61,Housing & Assets 2,Supplies & Services,T35026/D200008,Housing Stock Accounts,Payments to Contractors External
Ashfield District Council,37UB,Rexel UK Limited,V1022551,27/03/2023,148.7,Housing & Assets 2,Supplies & Services,T35026/D200008,Housing Stock Accounts,Payments to Contractors External
Ashfield District Council,37UB,Rexel UK Limited,V1022552,27/03/2023,148.7,Housing & Assets 2,Supplies & Services,T35026/D200008,Housing Stock Accounts,Payments to Contractors External
Ashfield District Council,37UB,Rexel UK Limited,V1022553,27/03/2023,44.61,Housing & Assets 2,Supplies & Services,T35026/D200008,Housing Stock Accounts,Payments to Contractors External
Ashfield District Council,37UB,Rexel UK Limited,V1022554,27/03/2023,91.12,Housing & Assets 2,Supplies & Services,T35026/D200008,Housing Stock Accounts,Payments to Contractors External
Ashfield District Council,37UB,Rexel UK Limited,V1022554,27/03/2023,31.3,Housing & Assets 2,Supplies & Services,T35026/D200008,Housing Stock Accounts,Payments to Contractors External
Ashfield District Council,37UB,Rexel UK Limited,V1022554,27/03/2023,2254.08,Housing & Assets 2,Supplies & Services,T35026/D200008,Housing Stock Accounts,Payments to Contractors External
Ashfield District Council,37UB,Rexel UK Limited,V1022555,27/03/2023,49.5,Housing & Assets 2,Supplies & Services,T35026/D200008,Housing Stock Accounts,Payments to Contractors External
Ashfield District Council,37UB,Rexel UK Limited,V1022556,27/03/2023,33,Housing & Assets 2,Supplies & Services,T35026/D200008,Housing Stock Accounts,Payments to Contractors External
Ashfield District Council,37UB,Rexel UK Limited,V1022590,27/03/2023,14.87,Housing & Assets 2,Supplies & Services,T35026/D200008,Housing Stock Accounts,Payments to Contractors External
Ashfield District Council,37UB,Rexel UK Limited,V1022591,27/03/2023,44.61,Housing & Assets 2,Supplies & Services,T35026/D200008,Housing Stock Accounts,Payments to Contractors External
Ashfield District Council,37UB,Rexel UK Limited,V1022620,27/03/2023,12,Housing & Assets 2,Supplies & Services,T35026/D200008,Housing Stock Accounts,Payments to Contractors External
Ashfield District Council,37UB,Rexel UK Limited,V1022621,27/03/2023,615,Housing & Assets 2,Supplies & Services,T35026/D200008,Housing Stock Accounts,Payments to Contractors External
Ashfield District Council,37UB,Rexel UK Limited,V1022622,27/03/2023,28.94,Housing & Assets 2,Supplies & Services,T35026/D200008,Housing Stock Accounts,Payments to Contractors External
Ashfield District Council,37UB,Rexel UK Limited,V1022622,27/03/2023,27,Housing & Assets 2,Supplies & Services,T35026/D200008,Housing Stock Accounts,Payments to Contractors External
Ashfield District Council,37UB,Rexel UK Limited,V1022622,27/03/2023,45,Housing & Assets 2,Supplies & Services,T35026/D200008,Housing Stock Accounts,Payments to Contractors External
Ashfield District Council,37UB,Ritherdon & Co Ltd,V1021088,14/03/2023,795.1,Housing & Assets 2,Supplies & Services,T35026/D200008,Housing Stock Accounts,Payments to Contractors External
Ashfield District Council,37UB,Ritherdon & Co Ltd,V1021089,14/03/2023,1025.76,Housing & Assets 2,Supplies & Services,T35026/D200008,Housing Stock Accounts,Payments to Contractors External
Ashfield District Council,37UB,Ritherdon & Co Ltd,V1021089,14/03/2023,1461.8,Housing & Assets 2,Supplies & Services,T35026/D200008,Housing Stock Accounts,Payments to Contractors External
Ashfield District Council,37UB,Summit Creative Ltd,V1021049,14/03/2023,234.29,Housing & Assets 2,Supplies & Services,T35026/D200008,Housing Stock Accounts,Payments to Contractors External
Ashfield District Council,37UB,Summit Creative Ltd,V1021050,14/03/2023,107,Housing & Assets 2,Supplies & Services,T35026/D200008,Housing Stock Accounts,Payments to Contractors External
Ashfield District Council,37UB,Supra UK Ltd t/a The Key Safe Company,V1020592,06/03/2023,499.5,Housing & Assets 2,Supplies & Services,T35026/D200008,Housing Stock Accounts,Payments to Contractors External
Ashfield District Council,37UB,Supra UK Ltd t/a The Key Safe Company,V1022534,27/03/2023,524.5,Housing & Assets 2,Supplies & Services,T35026/D200008,Housing Stock Accounts,Payments to Contractors External
Ashfield District Council,37UB,Symphony Group,V1020594,06/03/2023,275.2,Housing & Assets 2,Supplies & Services,T35026/D200008,Housing Stock Accounts,Payments to Contractors External
Ashfield District Council,37UB,Symphony Group,V1020594,06/03/2023,177.5,Housing & Assets 2,Supplies & Services,T35026/D200008,Housing Stock Accounts,Payments to Contractors External
Ashfield District Council,37UB,Symphony Group,V1020594,06/03/2023,275.2,Housing & Assets 2,Supplies & Services,T35026/D200008,Housing Stock Accounts,Payments to Contractors External
Ashfield District Council,37UB,Symphony Group,V1020594,06/03/2023,96,Housing & Assets 2,Supplies & Services,T35026/D200008,Housing Stock Accounts,Payments to Contractors External
Ashfield District Council,37UB,Symphony Group,V1020594,06/03/2023,315.7,Housing & Assets 2,Supplies & Services,T35026/D200008,Housing Stock Accounts,Payments to Contractors External
Ashfield District Council,37UB,Symphony Group,V1020594,06/03/2023,177.5,Housing & Assets 2,Supplies & Services,T35026/D200008,Housing Stock Accounts,Payments to Contractors External
Ashfield District Council,37UB,Symphony Group,V1020594,06/03/2023,178.8,Housing & Assets 2,Supplies & Services,T35026/D200008,Housing Stock Accounts,Payments to Contractors External
Ashfield District Council,37UB,Symphony Group,V1020594,06/03/2023,89.4,Housing & Assets 2,Supplies & Services,T35026/D200008,Housing Stock Accounts,Payments to Contractors External
Ashfield District Council,37UB,Symphony Group,V1020594,06/03/2023,177.5,Housing & Assets 2,Supplies & Services,T35026/D200008,Housing Stock Accounts,Payments to Contractors External
Ashfield District Council,37UB,Symphony Group,V1020595,06/03/2023,178.8,Housing & Assets 2,Supplies & Services,T35026/D200008,Housing Stock Accounts,Payments to Contractors External
Ashfield District Council,37UB,Symphony Group,V1020595,06/03/2023,736,Housing & Assets 2,Supplies & Services,T35026/D200008,Housing Stock Accounts,Payments to Contractors External
Ashfield District Council,37UB,Symphony Group,V1020595,06/03/2023,688,Housing & Assets 2,Supplies & Services,T35026/D200008,Housing Stock Accounts,Payments to Contractors External
Ashfield District Council,37UB,Symphony Group,V1020595,06/03/2023,313,Housing & Assets 2,Supplies & Services,T35026/D200008,Housing Stock Accounts,Payments to Contractors External
Ashfield District Council,37UB,Symphony Group,V1020595,06/03/2023,736,Housing & Assets 2,Supplies & Services,T35026/D200008,Housing Stock Accounts,Payments to Contractors External
Ashfield District Council,37UB,Symphony Group,V1021091,14/03/2023,411.9,Housing & Assets 2,Supplies & Services,T35026/D200008,Housing Stock Accounts,Payments to Contractors External
Ashfield District Council,37UB,Symphony Group,V1021091,14/03/2023,322,Housing & Assets 2,Supplies & Services,T35026/D200008,Housing Stock Accounts,Payments to Contractors External
Ashfield District Council,37UB,Symphony Group,V1021091,14/03/2023,550.4,Housing & Assets 2,Supplies & Services,T35026/D200008,Housing Stock Accounts,Payments to Contractors External
Ashfield District Council,37UB,Symphony Group,V1021092,14/03/2023,275.2,Housing & Assets 2,Supplies & Services,T35026/D200008,Housing Stock Accounts,Payments to Contractors External
Ashfield District Council,37UB,Symphony Group,V1021092,14/03/2023,825.6,Housing & Assets 2,Supplies & Services,T35026/D200008,Housing Stock Accounts,Payments to Contractors External
Ashfield District Council,37UB,Symphony Group,V1021092,14/03/2023,271.8,Housing & Assets 2,Supplies & Services,T35026/D200008,Housing Stock Accounts,Payments to Contractors External
Ashfield District Council,37UB,Symphony Group,V1021092,14/03/2023,736,Housing & Assets 2,Supplies & Services,T35026/D200008,Housing Stock Accounts,Payments to Contractors External
Ashfield District Council,37UB,Symphony Group,V1021092,14/03/2023,263.4,Housing & Assets 2,Supplies & Services,T35026/D200008,Housing Stock Accounts,Payments to Contractors External
Ashfield District Council,37UB,Symphony Group,V1022532,27/03/2023,1525.6,Housing & Assets 2,Supplies & Services,T35026/D200008,Housing Stock Accounts,Payments to Contractors External
Ashfield District Council,37UB,Symphony Group,V1022533,27/03/2023,119.2,Housing & Assets 2,Supplies & Services,T35026/D200008,Housing Stock Accounts,Payments to Contractors External
Ashfield District Council,37UB,Symphony Group,V1022533,27/03/2023,329.08,Housing & Assets 2,Supplies & Services,T35026/D200008,Housing Stock Accounts,Payments to Contractors External
Ashfield District Council,37UB,Symphony Group,V1022533,27/03/2023,177.5,Housing & Assets 2,Supplies & Services,T35026/D200008,Housing Stock Accounts,Payments to Contractors External
Ashfield District Council,37UB,Symphony Group,V1022533,27/03/2023,119.2,Housing & Assets 2,Supplies & Services,T35026/D200008,Housing Stock Accounts,Payments to Contractors External
Ashfield District Council,37UB,Wolseley UK Limited,V1020968,14/03/2023,-26.96,Housing & Assets 2,Supplies & Services,T35026/D200008,Housing Stock Accounts,Payments to Contractors External
Ashfield District Council,37UB,Wolseley UK Limited,V1021135,14/03/2023,400.86,Housing & Assets 2,Supplies & Services,T35026/D200008,Housing Stock Accounts,Payments to Contractors External
Ashfield District Council,37UB,Wolseley UK Limited,V1021136,14/03/2023,1013.4,Housing & Assets 2,Supplies & Services,T35026/D200008,Housing Stock Accounts,Payments to Contractors External
Ashfield District Council,37UB,Wolseley UK Limited,V1021136,14/03/2023,1434.9,Housing & Assets 2,Supplies & Services,T35026/D200008,Housing Stock Accounts,Payments to Contractors External
Ashfield District Council,37UB,Wolseley UK Limited,V1021139,14/03/2023,24.33,Housing & Assets 2,Supplies & Services,T35026/D200008,Housing Stock Accounts,Payments to Contractors External
Ashfield District Council,37UB,Wolseley UK Limited,V1021139,14/03/2023,89.7,Housing & Assets 2,Supplies & Services,T35026/D200008,Housing Stock Accounts,Payments to Contractors External
Ashfield District Council,37UB,Wolseley UK Limited,V1021139,14/03/2023,59.2,Housing & Assets 2,Supplies & Services,T35026/D200008,Housing Stock Accounts,Payments to Contractors External
Ashfield District Council,37UB,Wolseley UK Limited,V1021140,14/03/2023,591.45,Housing & Assets 2,Supplies & Services,T35026/D200008,Housing Stock Accounts,Payments to Contractors External
Ashfield District Council,37UB,Wolseley UK Limited,V1021149,14/03/2023,63.3,Housing & Assets 2,Supplies & Services,T35026/D200008,Housing Stock Accounts,Payments to Contractors External
Ashfield District Council,37UB,Wolseley UK Limited,V1021152,14/03/2023,1520.1,Housing & Assets 2,Supplies & Services,T35026/D200008,Housing Stock Accounts,Payments to Contractors External
Ashfield District Council,37UB,Wolseley UK Limited,V1021156,14/03/2023,340.5,Housing & Assets 2,Supplies & Services,T35026/D200008,Housing Stock Accounts,Payments to Contractors External
Ashfield District Council,37UB,Wolseley UK Limited,V1021156,14/03/2023,30.9,Housing & Assets 2,Supplies & Services,T35026/D200008,Housing Stock Accounts,Payments to Contractors External
Ashfield District Council,37UB,Wolseley UK Limited,V1021156,14/03/2023,99.3,Housing & Assets 2,Supplies & Services,T35026/D200008,Housing Stock Accounts,Payments to Contractors External
Ashfield District Council,37UB,Wolseley UK Limited,V1021156,14/03/2023,95.45,Housing & Assets 2,Supplies & Services,T35026/D200008,Housing Stock Accounts,Payments to Contractors External
Ashfield District Council,37UB,Wolseley UK Limited,V1021156,14/03/2023,15,Housing & Assets 2,Supplies & Services,T35026/D200008,Housing Stock Accounts,Payments to Contractors External
Ashfield District Council,37UB,Wolseley UK Limited,V1021156,14/03/2023,176.8,Housing & Assets 2,Supplies & Services,T35026/D200008,Housing Stock Accounts,Payments to Contractors External
Ashfield District Council,37UB,Wolseley UK Limited,V1021156,14/03/2023,28.56,Housing & Assets 2,Supplies & Services,T35026/D200008,Housing Stock Accounts,Payments to Contractors External
Ashfield District Council,37UB,Wolseley UK Limited,V1021156,14/03/2023,14.2,Housing & Assets 2,Supplies & Services,T35026/D200008,Housing Stock Accounts,Payments to Contractors External
Ashfield District Council,37UB,Wolseley UK Limited,V1021156,14/03/2023,34.92,Housing & Assets 2,Supplies & Services,T35026/D200008,Housing Stock Accounts,Payments to Contractors External
Ashfield District Council,37UB,Wolseley UK Limited,V1021156,14/03/2023,158.52,Housing & Assets 2,Supplies & Services,T35026/D200008,Housing Stock Accounts,Payments to Contractors External
Ashfield District Council,37UB,Wolseley UK Limited,V1021160,14/03/2023,295.8,Housing & Assets 2,Supplies & Services,T35026/D200008,Housing Stock Accounts,Payments to Contractors External
Ashfield District Council,37UB,Wolseley UK Limited,V1021166,14/03/2023,38.88,Housing & Assets 2,Supplies & Services,T35026/D200008,Housing Stock Accounts,Payments to Contractors External
Ashfield District Council,37UB,Wolseley UK Limited,V1021426,22/03/2023,-19.36,Housing & Assets 2,Supplies & Services,T35026/D200008,Housing Stock Accounts,Payments to Contractors External
Ashfield District Council,37UB,Wolseley UK Limited,V1021671,22/03/2023,146.81,Housing & Assets 2,Supplies & Services,T35026/D200008,Housing Stock Accounts,Payments to Contractors External
Ashfield District Council,37UB,Wolseley UK Limited,V1021671,22/03/2023,165,Housing & Assets 2,Supplies & Services,T35026/D200008,Housing Stock Accounts,Payments to Contractors External
Ashfield District Council,37UB,Wolseley UK Limited,V1021671,22/03/2023,12.5,Housing & Assets 2,Supplies & Services,T35026/D200008,Housing Stock Accounts,Payments to Contractors External
Ashfield District Council,37UB,Wolseley UK Limited,V1021671,22/03/2023,88.8,Housing & Assets 2,Supplies & Services,T35026/D200008,Housing Stock Accounts,Payments to Contractors External
Ashfield District Council,37UB,Wolseley UK Limited,V1021671,22/03/2023,81.8,Housing & Assets 2,Supplies & Services,T35026/D200008,Housing Stock Accounts,Payments to Contractors External
Ashfield District Council,37UB,Wolseley UK Limited,V1021672,22/03/2023,608.04,Housing & Assets 2,Supplies & Services,T35026/D200008,Housing Stock Accounts,Payments to Contractors External
Ashfield District Council,37UB,Wolseley UK Limited,V1021672,22/03/2023,18.8,Housing & Assets 2,Supplies & Services,T35026/D200008,Housing Stock Accounts,Payments to Contractors External
Ashfield District Council,37UB,Wolseley UK Limited,V1021672,22/03/2023,83.6,Housing & Assets 2,Supplies & Services,T35026/D200008,Housing Stock Accounts,Payments to Contractors External
Ashfield District Council,37UB,Wolseley UK Limited,V1021672,22/03/2023,261.75,Housing & Assets 2,Supplies & Services,T35026/D200008,Housing Stock Accounts,Payments to Contractors External
Ashfield District Council,37UB,Wolseley UK Limited,V1021672,22/03/2023,137.04,Housing & Assets 2,Supplies & Services,T35026/D200008,Housing Stock Accounts,Payments to Contractors External
Ashfield District Council,37UB,Wolseley UK Limited,V1021672,22/03/2023,183.36,Housing & Assets 2,Supplies & Services,T35026/D200008,Housing Stock Accounts,Payments to Contractors External
Ashfield District Council,37UB,Wolseley UK Limited,V1021672,22/03/2023,227,Housing & Assets 2,Supplies & Services,T35026/D200008,Housing Stock Accounts,Payments to Contractors External
Ashfield District Council,37UB,Wolseley UK Limited,V1021672,22/03/2023,20.25,Housing & Assets 2,Supplies & Services,T35026/D200008,Housing Stock Accounts,Payments to Contractors External
Ashfield District Council,37UB,Wolseley UK Limited,V1021673,22/03/2023,52.8,Housing & Assets 2,Supplies & Services,T35026/D200008,Housing Stock Accounts,Payments to Contractors External
Ashfield District Council,37UB,Wolseley UK Limited,V1021673,22/03/2023,219.63,Housing & Assets 2,Supplies & Services,T35026/D200008,Housing Stock Accounts,Payments to Contractors External
Ashfield District Council,37UB,Wolseley UK Limited,V1021673,22/03/2023,591.45,Housing & Assets 2,Supplies & Services,T35026/D200008,Housing Stock Accounts,Payments to Contractors External
Ashfield District Council,37UB,Wolseley UK Limited,V1021673,22/03/2023,163.2,Housing & Assets 2,Supplies & Services,T35026/D200008,Housing Stock Accounts,Payments to Contractors External
Ashfield District Council,37UB,Wolseley UK Limited,V1021673,22/03/2023,75.2,Housing & Assets 2,Supplies & Services,T35026/D200008,Housing Stock Accounts,Payments to Contractors External
Ashfield District Council,37UB,Wolseley UK Limited,V1021673,22/03/2023,519.85,Housing & Assets 2,Supplies & Services,T35026/D200008,Housing Stock Accounts,Payments to Contractors External
Ashfield District Council,37UB,Wolseley UK Limited,V1021673,22/03/2023,171.84,Housing & Assets 2,Supplies & Services,T35026/D200008,Housing Stock Accounts,Payments to Contractors External
Ashfield District Council,37UB,Wolseley UK Limited,V1021674,22/03/2023,33.3,Housing & Assets 2,Supplies & Services,T35026/D200008,Housing Stock Accounts,Payments to Contractors External
Ashfield District Council,37UB,Wolseley UK Limited,V1021674,22/03/2023,810.72,Housing & Assets 2,Supplies & Services,T35026/D200008,Housing Stock Accounts,Payments to Contractors External
Ashfield District Council,37UB,Wolseley UK Limited,V1021674,22/03/2023,1195.75,Housing & Assets 2,Supplies & Services,T35026/D200008,Housing Stock Accounts,Payments to Contractors External
Ashfield District Council,37UB,Wolseley UK Limited,V1021674,22/03/2023,41.76,Housing & Assets 2,Supplies & Services,T35026/D200008,Housing Stock Accounts,Payments to Contractors External
Ashfield District Council,37UB,Wolseley UK Limited,V1021674,22/03/2023,408,Housing & Assets 2,Supplies & Services,T35026/D200008,Housing Stock Accounts,Payments to Contractors External
Ashfield District Council,37UB,Wolseley UK Limited,V1021674,22/03/2023,90.9,Housing & Assets 2,Supplies & Services,T35026/D200008,Housing Stock Accounts,Payments to Contractors External
Ashfield District Council,37UB,Wolseley UK Limited,V1021674,22/03/2023,219.63,Housing & Assets 2,Supplies & Services,T35026/D200008,Housing Stock Accounts,Payments to Contractors External
Ashfield District Council,37UB,Wolseley UK Limited,V1021675,22/03/2023,226.8,Housing & Assets 2,Supplies & Services,T35026/D200008,Housing Stock Accounts,Payments to Contractors External
Ashfield District Council,37UB,Wolseley UK Limited,V1021676,22/03/2023,108.5,Housing & Assets 2,Supplies & Services,T35026/D200008,Housing Stock Accounts,Payments to Contractors External
Ashfield District Council,37UB,Wolseley UK Limited,V1021676,22/03/2023,65.6,Housing & Assets 2,Supplies & Services,T35026/D200008,Housing Stock Accounts,Payments to Contractors External
Ashfield District Council,37UB,Wolseley UK Limited,V1021676,22/03/2023,83.6,Housing & Assets 2,Supplies & Services,T35026/D200008,Housing Stock Accounts,Payments to Contractors External
Ashfield District Council,37UB,Wolseley UK Limited,V1021676,22/03/2023,150.4,Housing & Assets 2,Supplies & Services,T35026/D200008,Housing Stock Accounts,Payments to Contractors External
Ashfield District Council,37UB,Wolseley UK Limited,V1021676,22/03/2023,244.8,Housing & Assets 2,Supplies & Services,T35026/D200008,Housing Stock Accounts,Payments to Contractors External
Ashfield District Council,37UB,Wolseley UK Limited,V1021676,22/03/2023,608.55,Housing & Assets 2,Supplies & Services,T35026/D200008,Housing Stock Accounts,Payments to Contractors External
Ashfield District Council,37UB,Wolseley UK Limited,V1021676,22/03/2023,201,Housing & Assets 2,Supplies & Services,T35026/D200008,Housing Stock Accounts,Payments to Contractors External
Ashfield District Council,37UB,Wolseley UK Limited,V1021676,22/03/2023,85.92,Housing & Assets 2,Supplies & Services,T35026/D200008,Housing Stock Accounts,Payments to Contractors External
Ashfield District Council,37UB,Wolseley UK Limited,V1021676,22/03/2023,227,Housing & Assets 2,Supplies & Services,T35026/D200008,Housing Stock Accounts,Payments to Contractors External
Ashfield District Council,37UB,Wolseley UK Limited,V1021676,22/03/2023,258.39,Housing & Assets 2,Supplies & Services,T35026/D200008,Housing Stock Accounts,Payments to Contractors External
Ashfield District Council,37UB,Wolseley UK Limited,V1021679,22/03/2023,227.84,Housing & Assets 2,Supplies & Services,T35026/D200008,Housing Stock Accounts,Payments to Contractors External
Ashfield District Council,37UB,Wolseley UK Limited,V1021680,22/03/2023,183.36,Housing & Assets 2,Supplies & Services,T35026/D200008,Housing Stock Accounts,Payments to Contractors External
Ashfield District Council,37UB,Wolseley UK Limited,V1021680,22/03/2023,11.4,Housing & Assets 2,Supplies & Services,T35026/D200008,Housing Stock Accounts,Payments to Contractors External
Ashfield District Council,37UB,Wolseley UK Limited,V1021680,22/03/2023,367.62,Housing & Assets 2,Supplies & Services,T35026/D200008,Housing Stock Accounts,Payments to Contractors External
Ashfield District Council,37UB,Wolseley UK Limited,V1021680,22/03/2023,68.5,Housing & Assets 2,Supplies & Services,T35026/D200008,Housing Stock Accounts,Payments to Contractors External
Ashfield District Council,37UB,Wolseley UK Limited,V1021680,22/03/2023,71.8,Housing & Assets 2,Supplies & Services,T35026/D200008,Housing Stock Accounts,Payments to Contractors External
Ashfield District Council,37UB,Wolseley UK Limited,V1021680,22/03/2023,6.4,Housing & Assets 2,Supplies & Services,T35026/D200008,Housing Stock Accounts,Payments to Contractors External
Ashfield District Council,37UB,Wolseley UK Limited,V1021680,22/03/2023,204.76,Housing & Assets 2,Supplies & Services,T35026/D200008,Housing Stock Accounts,Payments to Contractors External
Ashfield District Council,37UB,Wolseley UK Limited,V1021680,22/03/2023,55.5,Housing & Assets 2,Supplies & Services,T35026/D200008,Housing Stock Accounts,Payments to Contractors External
Ashfield District Council,37UB,Wolseley UK Limited,V1021680,22/03/2023,188.4,Housing & Assets 2,Supplies & Services,T35026/D200008,Housing Stock Accounts,Payments to Contractors External
Ashfield District Council,37UB,Wolseley UK Limited,V1021680,22/03/2023,596.6,Housing & Assets 2,Supplies & Services,T35026/D200008,Housing Stock Accounts,Payments to Contractors External
Ashfield District Council,37UB,Wolseley UK Limited,V1021680,22/03/2023,182.72,Housing & Assets 2,Supplies & Services,T35026/D200008,Housing Stock Accounts,Payments to Contractors External
Ashfield District Council,37UB,Wolseley UK Limited,V1021680,22/03/2023,19.6,Housing & Assets 2,Supplies & Services,T35026/D200008,Housing Stock Accounts,Payments to Contractors External
Ashfield District Council,37UB,Wolseley UK Limited,V1021681,22/03/2023,341.76,Housing & Assets 2,Supplies & Services,T35026/D200008,Housing Stock Accounts,Payments to Contractors External
Ashfield District Council,37UB,Wolseley UK Limited,V1021681,22/03/2023,11.1,Housing & Assets 2,Supplies & Services,T35026/D200008,Housing Stock Accounts,Payments to Contractors External
Ashfield District Council,37UB,Wolseley UK Limited,V1021681,22/03/2023,72.6,Housing & Assets 2,Supplies & Services,T35026/D200008,Housing Stock Accounts,Payments to Contractors External
Ashfield District Council,37UB,Wolseley UK Limited,V1021681,22/03/2023,11.4,Housing & Assets 2,Supplies & Services,T35026/D200008,Housing Stock Accounts,Payments to Contractors External
Ashfield District Council,37UB,Wolseley UK Limited,V1021687,22/03/2023,234.8,Housing & Assets 2,Supplies & Services,T35026/D200008,Housing Stock Accounts,Payments to Contractors External
Ashfield District Council,37UB,Wolseley UK Limited,V1021687,22/03/2023,104.1,Housing & Assets 2,Supplies & Services,T35026/D200008,Housing Stock Accounts,Payments to Contractors External
Ashfield District Council,37UB,Wolseley UK Limited,V1021687,22/03/2023,206.04,Housing & Assets 2,Supplies & Services,T35026/D200008,Housing Stock Accounts,Payments to Contractors External
Ashfield District Council,37UB,Wolseley UK Limited,V1021688,22/03/2023,208.2,Housing & Assets 2,Supplies & Services,T35026/D200008,Housing Stock Accounts,Payments to Contractors External
Ashfield District Council,37UB,Wolseley UK Limited,V1021688,22/03/2023,206.04,Housing & Assets 2,Supplies & Services,T35026/D200008,Housing Stock Accounts,Payments to Contractors External
Ashfield District Council,37UB,Wolseley UK Limited,V1021690,22/03/2023,1013.4,Housing & Assets 2,Supplies & Services,T35026/D200008,Housing Stock Accounts,Payments to Contractors External
Ashfield District Council,37UB,Wolseley UK Limited,V1021690,22/03/2023,956.6,Housing & Assets 2,Supplies & Services,T35026/D200008,Housing Stock Accounts,Payments to Contractors External
Ashfield District Council,37UB,Wolseley UK Limited,V1021692,22/03/2023,218.32,Housing & Assets 2,Supplies & Services,T35026/D200008,Housing Stock Accounts,Payments to Contractors External
Ashfield District Council,37UB,Wolseley UK Limited,V1021692,22/03/2023,121.88,Housing & Assets 2,Supplies & Services,T35026/D200008,Housing Stock Accounts,Payments to Contractors External
Ashfield District Council,37UB,Wolseley UK Limited,V1021693,22/03/2023,221.6,Housing & Assets 2,Supplies & Services,T35026/D200008,Housing Stock Accounts,Payments to Contractors External
Ashfield District Council,37UB,Wolseley UK Limited,V1021694,22/03/2023,203.14,Housing & Assets 2,Supplies & Services,T35026/D200008,Housing Stock Accounts,Payments to Contractors External
Ashfield District Council,37UB,Wolseley UK Limited,V1021694,22/03/2023,227.8,Housing & Assets 2,Supplies & Services,T35026/D200008,Housing Stock Accounts,Payments to Contractors External
Ashfield District Council,37UB,Wolseley UK Limited,V1021694,22/03/2023,708.6,Housing & Assets 2,Supplies & Services,T35026/D200008,Housing Stock Accounts,Payments to Contractors External
Ashfield District Council,37UB,Wolseley UK Limited,V1021694,22/03/2023,295.36,Housing & Assets 2,Supplies & Services,T35026/D200008,Housing Stock Accounts,Payments to Contractors External
Ashfield District Council,37UB,Wolseley UK Limited,V1021694,22/03/2023,200.9,Housing & Assets 2,Supplies & Services,T35026/D200008,Housing Stock Accounts,Payments to Contractors External
Ashfield District Council,37UB,Wolseley UK Limited,V1021699,22/03/2023,49.08,Housing & Assets 2,Supplies & Services,T35026/D200008,Housing Stock Accounts,Payments to Contractors External
Ashfield District Council,37UB,Wolseley UK Limited,V1021699,22/03/2023,76.1,Housing & Assets 2,Supplies & Services,T35026/D200008,Housing Stock Accounts,Payments to Contractors External
Ashfield District Council,37UB,Wolseley UK Limited,V1021699,22/03/2023,41.2,Housing & Assets 2,Supplies & Services,T35026/D200008,Housing Stock Accounts,Payments to Contractors External
Ashfield District Council,37UB,Wolseley UK Limited,V1021699,22/03/2023,48.8,Housing & Assets 2,Supplies & Services,T35026/D200008,Housing Stock Accounts,Payments to Contractors External
Ashfield District Council,37UB,Wolseley UK Limited,V1021699,22/03/2023,41,Housing & Assets 2,Supplies & Services,T35026/D200008,Housing Stock Accounts,Payments to Contractors External
Ashfield District Council,37UB,Wolseley UK Limited,V1021699,22/03/2023,49,Housing & Assets 2,Supplies & Services,T35026/D200008,Housing Stock Accounts,Payments to Contractors External
Ashfield District Council,37UB,Wolseley UK Limited,V1021700,22/03/2023,86.72,Housing & Assets 2,Supplies & Services,T35026/D200008,Housing Stock Accounts,Payments to Contractors External
Ashfield District Council,37UB,Wolseley UK Limited,V1021701,22/03/2023,105.68,Housing & Assets 2,Supplies & Services,T35026/D200008,Housing Stock Accounts,Payments to Contractors External
Ashfield District Council,37UB,Wolseley UK Limited,V1021701,22/03/2023,38.18,Housing & Assets 2,Supplies & Services,T35026/D200008,Housing Stock Accounts,Payments to Contractors External
Ashfield District Council,37UB,Wolseley UK Limited,V1021701,22/03/2023,265.2,Housing & Assets 2,Supplies & Services,T35026/D200008,Housing Stock Accounts,Payments to Contractors External
Ashfield District Council,37UB,Wolseley UK Limited,V1021702,22/03/2023,486.84,Housing & Assets 2,Supplies & Services,T35026/D200008,Housing Stock Accounts,Payments to Contractors External
Ashfield District Council,37UB,Wolseley UK Limited,V1021707,22/03/2023,417.1,Housing & Assets 2,Supplies & Services,T35026/D200008,Housing Stock Accounts,Payments to Contractors External
Ashfield District Council,37UB,Wolseley UK Limited,V1021864,22/03/2023,219.63,Housing & Assets 2,Supplies & Services,T35026/D200008,Housing Stock Accounts,Payments to Contractors External
Ashfield District Council,37UB,Wolseley UK Limited,V1021864,22/03/2023,911.4,Housing & Assets 2,Supplies & Services,T35026/D200008,Housing Stock Accounts,Payments to Contractors External
Ashfield District Council,37UB,Wolseley UK Limited,V1021864,22/03/2023,75.2,Housing & Assets 2,Supplies & Services,T35026/D200008,Housing Stock Accounts,Payments to Contractors External
Ashfield District Council,37UB,Wolseley UK Limited,V1021864,22/03/2023,485.45,Housing & Assets 2,Supplies & Services,T35026/D200008,Housing Stock Accounts,Payments to Contractors External
Ashfield District Council,37UB,Wolseley UK Limited,V1021864,22/03/2023,380,Housing & Assets 2,Supplies & Services,T35026/D200008,Housing Stock Accounts,Payments to Contractors External
Ashfield District Council,37UB,Wolseley UK Limited,V1021864,22/03/2023,12.51,Housing & Assets 2,Supplies & Services,T35026/D200008,Housing Stock Accounts,Payments to Contractors External
Ashfield District Council,37UB,Wolseley UK Limited,V1021864,22/03/2023,204.12,Housing & Assets 2,Supplies & Services,T35026/D200008,Housing Stock Accounts,Payments to Contractors External
Ashfield District Council,37UB,Wolseley UK Limited,V1021864,22/03/2023,40.84,Housing & Assets 2,Supplies & Services,T35026/D200008,Housing Stock Accounts,Payments to Contractors External
Ashfield District Council,37UB,Wolseley UK Limited,V1021864,22/03/2023,472.89,Housing & Assets 2,Supplies & Services,T35026/D200008,Housing Stock Accounts,Payments to Contractors External
Ashfield District Council,37UB,Wolseley UK Limited,V1021864,22/03/2023,250.26,Housing & Assets 2,Supplies & Services,T35026/D200008,Housing Stock Accounts,Payments to Contractors External
Ashfield District Council,37UB,Wolseley UK Limited,V1022557,27/03/2023,248.84,Housing & Assets 2,Supplies & Services,T35026/D200008,Housing Stock Accounts,Payments to Contractors External
Ashfield District Council,37UB,Wolseley UK Limited,V1022560,27/03/2023,253.93,Housing & Assets 2,Supplies & Services,T35026/D200008,Housing Stock Accounts,Payments to Contractors External
Ashfield District Council,37UB,Wolseley UK Limited,V1022561,27/03/2023,143.79,Housing & Assets 2,Supplies & Services,T35026/D200008,Housing Stock Accounts,Payments to Contractors External
Ashfield District Council,37UB,Wolseley UK Limited,V1022561,27/03/2023,130.47,Housing & Assets 2,Supplies & Services,T35026/D200008,Housing Stock Accounts,Payments to Contractors External
Ashfield District Council,37UB,Wolseley UK Limited,V1022562,27/03/2023,133.62,Housing & Assets 2,Supplies & Services,T35026/D200008,Housing Stock Accounts,Payments to Contractors External
Ashfield District Council,37UB,Wolseley UK Limited,V1022564,27/03/2023,85.18,Housing & Assets 2,Supplies & Services,T35026/D200008,Housing Stock Accounts,Payments to Contractors External
Ashfield District Council,37UB,Wolseley UK Limited,V1022564,27/03/2023,221.6,Housing & Assets 2,Supplies & Services,T35026/D200008,Housing Stock Accounts,Payments to Contractors External
Ashfield District Council,37UB,Wolseley UK Limited,V1022566,27/03/2023,85.92,Housing & Assets 2,Supplies & Services,T35026/D200008,Housing Stock Accounts,Payments to Contractors External
Ashfield District Council,37UB,Wolseley UK Limited,V1022566,27/03/2023,728.18,Housing & Assets 2,Supplies & Services,T35026/D200008,Housing Stock Accounts,Payments to Contractors External
Ashfield District Council,37UB,Wolseley UK Limited,V1022566,27/03/2023,75.2,Housing & Assets 2,Supplies & Services,T35026/D200008,Housing Stock Accounts,Payments to Contractors External
Ashfield District Council,37UB,Wolseley UK Limited,V1022566,27/03/2023,472.89,Housing & Assets 2,Supplies & Services,T35026/D200008,Housing Stock Accounts,Payments to Contractors External
Ashfield District Council,37UB,Wolseley UK Limited,V1022566,27/03/2023,63,Housing & Assets 2,Supplies & Services,T35026/D200008,Housing Stock Accounts,Payments to Contractors External
Ashfield District Council,37UB,Wolseley UK Limited,V1022566,27/03/2023,596.6,Housing & Assets 2,Supplies & Services,T35026/D200008,Housing Stock Accounts,Payments to Contractors External
Ashfield District Council,37UB,Wolseley UK Limited,V1022566,27/03/2023,146.42,Housing & Assets 2,Supplies & Services,T35026/D200008,Housing Stock Accounts,Payments to Contractors External
Ashfield District Council,37UB,Wolseley UK Limited,V1022651,27/03/2023,167.06,Housing & Assets 2,Supplies & Services,T35026/D200008,Housing Stock Accounts,Payments to Contractors External
Ashfield District Council,37UB,Wood Lane Timber Merchants Ltd,V1020599,06/03/2023,634,Housing & Assets 2,Supplies & Services,T35026/D200008,Housing Stock Accounts,Payments to Contractors External
Ashfield District Council,37UB,Wood Lane Timber Merchants Ltd,V1021105,14/03/2023,634,Housing & Assets 2,Supplies & Services,T35026/D200008,Housing Stock Accounts,Payments to Contractors External
Ashfield District Council,37UB,Wood Lane Timber Merchants Ltd,V1021105,14/03/2023,1407,Housing & Assets 2,Supplies & Services,T35026/D200008,Housing Stock Accounts,Payments to Contractors External
Ashfield District Council,37UB,Wood Lane Timber Merchants Ltd,V1021105,14/03/2023,693,Housing & Assets 2,Supplies & Services,T35026/D200008,Housing Stock Accounts,Payments to Contractors External
Ashfield District Council,37UB,Wood Lane Timber Merchants Ltd,V1021106,14/03/2023,276.5,Housing & Assets 2,Supplies & Services,T35026/D200008,Housing Stock Accounts,Payments to Contractors External
Ashfield District Council,37UB,Wood Lane Timber Merchants Ltd,V1021712,22/03/2023,276.5,Housing & Assets 2,Supplies & Services,T35026/D200008,Housing Stock Accounts,Payments to Contractors External
Ashfield District Council,37UB,Wood Lane Timber Merchants Ltd,V1021713,22/03/2023,1140,Housing & Assets 2,Supplies & Services,T35026/D200008,Housing Stock Accounts,Payments to Contractors External
Ashfield District Council,37UB,Wood Lane Timber Merchants Ltd,V1021713,22/03/2023,553,Housing & Assets 2,Supplies & Services,T35026/D200008,Housing Stock Accounts,Payments to Contractors External
Ashfield District Council,37UB,ATE (UK) Ltd,V1019415,23/03/2023,-115.6,Place & Communities 2,Transport Related Expenses,T35002/C011,Stock Account,Parts
Ashfield District Council,37UB,ATE (UK) Ltd,V1019458,23/03/2023,12.15,Place & Communities 2,Transport Related Expenses,T35002/C011,Stock Account,Parts
Ashfield District Council,37UB,ATE (UK) Ltd,V1019458,23/03/2023,11.8,Place & Communities 2,Transport Related Expenses,T35002/C011,Stock Account,Parts
Ashfield District Council,37UB,ATE (UK) Ltd,V1019458,23/03/2023,11.5,Place & Communities 2,Transport Related Expenses,T35002/C011,Stock Account,Parts
Ashfield District Council,37UB,ATE (UK) Ltd,V1019458,23/03/2023,4.6,Place & Communities 2,Transport Related Expenses,T35002/C011,Stock Account,Parts
Ashfield District Council,37UB,ATE (UK) Ltd,V1021320,23/03/2023,11.5,Place & Communities 2,Transport Related Expenses,T35002/C011,Stock Account,Parts
Ashfield District Council,37UB,ATE (UK) Ltd,V1021320,23/03/2023,49.2,Place & Communities 2,Transport Related Expenses,T35002/C011,Stock Account,Parts
Ashfield District Council,37UB,ATE (UK) Ltd,V1022092,23/03/2023,69.8,Place & Communities 2,Transport Related Expenses,T35002/C011,Stock Account,Parts
Ashfield District Council,37UB,ATE (UK) Ltd,V1022092,23/03/2023,94.8,Place & Communities 2,Transport Related Expenses,T35002/C011,Stock Account,Parts
Ashfield District Council,37UB,ATE (UK) Ltd,V1022092,23/03/2023,11.5,Place & Communities 2,Transport Related Expenses,T35002/C011,Stock Account,Parts
Ashfield District Council,37UB,ATE (UK) Ltd,V1022668,31/03/2023,29.85,Place & Communities 2,Transport Related Expenses,T35002/C011,Stock Account,Parts
Ashfield District Council,37UB,ATE (UK) Ltd,V1022668,31/03/2023,11.5,Place & Communities 2,Transport Related Expenses,T35002/C011,Stock Account,Parts
Ashfield District Council,37UB,B & B Tractors,V1019506,09/03/2023,-22.84,Place & Communities 2,Transport Related Expenses,T35002/C011,Stock Account,Parts
Ashfield District Council,37UB,B & B Tractors,V1020156,09/03/2023,8.24,Place & Communities 2,Transport Related Expenses,T35002/C011,Stock Account,Parts
Ashfield District Council,37UB,Bapp Industrial Supplies (Mansfield) Ltd,V1022011,23/03/2023,10,Place & Communities 2,Transport Related Expenses,T35002/C011,Stock Account,Parts
Ashfield District Council,37UB,Bateson Trailers Ltd,V1020175,02/03/2023,20.5,Place & Communities 2,Transport Related Expenses,T35002/C011,Stock Account,Parts
Ashfield District Council,37UB,Belmont Van & Mower Centre Ltd,V1021206,23/03/2023,10.8,Place & Communities 2,Transport Related Expenses,T35002/C011,Stock Account,Parts
Ashfield District Council,37UB,Bucher Municipal Limited,V1021322,16/03/2023,122.25,Place & Communities 2,Transport Related Expenses,T35002/C011,Stock Account,Parts
Ashfield District Council,37UB,Bucher Municipal Limited,V1021324,16/03/2023,155.22,Place & Communities 2,Transport Related Expenses,T35002/C011,Stock Account,Parts
Ashfield District Council,37UB,Bucher Municipal Limited,V1021324,16/03/2023,155.22,Place & Communities 2,Transport Related Expenses,T35002/C011,Stock Account,Parts
Ashfield District Council,37UB,Bucher Municipal Limited,V1021324,16/03/2023,155.22,Place & Communities 2,Transport Related Expenses,T35002/C011,Stock Account,Parts
Ashfield District Council,37UB,Bucher Municipal Limited,V1022016,23/03/2023,112.04,Place & Communities 2,Transport Related Expenses,T35002/C011,Stock Account,Parts
Ashfield District Council,37UB,Bucher Municipal Limited,V1022016,23/03/2023,9.8,Place & Communities 2,Transport Related Expenses,T35002/C011,Stock Account,Parts
Ashfield District Council,37UB,Bucher Municipal Limited,V1022016,23/03/2023,213.18,Place & Communities 2,Transport Related Expenses,T35002/C011,Stock Account,Parts
Ashfield District Council,37UB,Bucher Municipal Limited,V1022016,23/03/2023,6.18,Place & Communities 2,Transport Related Expenses,T35002/C011,Stock Account,Parts
Ashfield District Council,37UB,Bucher Municipal Limited,V1022016,23/03/2023,54.02,Place & Communities 2,Transport Related Expenses,T35002/C011,Stock Account,Parts
Ashfield District Council,37UB,Bucher Municipal Limited,V1022019,23/03/2023,19.68,Place & Communities 2,Transport Related Expenses,T35002/C011,Stock Account,Parts
Ashfield District Council,37UB,Bucher Municipal Limited,V1022019,23/03/2023,14.35,Place & Communities 2,Transport Related Expenses,T35002/C011,Stock Account,Parts
Ashfield District Council,37UB,Bucher Municipal Limited,V1022100,31/03/2023,5.2,Place & Communities 2,Transport Related Expenses,T35002/C011,Stock Account,Parts
Ashfield District Council,37UB,Bucher Municipal Limited,V1022100,31/03/2023,9,Place & Communities 2,Transport Related Expenses,T35002/C011,Stock Account,Parts
Ashfield District Council,37UB,Bucher Municipal Limited,V1022100,31/03/2023,6.34,Place & Communities 2,Transport Related Expenses,T35002/C011,Stock Account,Parts
Ashfield District Council,37UB,Bunce Ashbury Ltd,V1020099,09/03/2023,-217.5,Place & Communities 2,Transport Related Expenses,T35002/C011,Stock Account,Parts
Ashfield District Council,37UB,Bunce Ashbury Ltd,V1020088,16/03/2023,217.5,Place & Communities 2,Transport Related Expenses,T35002/C011,Stock Account,Parts
Ashfield District Council,37UB,Burrows Recovery,V1021227,16/03/2023,170,Place & Communities 2,Transport Related Expenses,T35002/C011,Stock Account,Parts
Ashfield District Council,37UB,Burrows Recovery,V1021357,16/03/2023,212.5,Place & Communities 2,Transport Related Expenses,T35002/C011,Stock Account,Parts
Ashfield District Council,37UB,Certas Energy UK Ltd t/a Pace Fuelcare,V1020831,09/03/2023,3124.75,Place & Communities 2,Supplies & Services,T35001/D001004,Stock Account,Chemicals and Materials Purchase
Ashfield District Council,37UB,Certas Energy UK Ltd t/a Pace Fuelcare,V1021225,16/03/2023,18594,Place & Communities 2,Supplies & Services,T35001/D001004,Stock Account,Chemicals and Materials Purchase
Ashfield District Council,37UB,Certas Energy UK Ltd t/a Pace Fuelcare,V1022070,23/03/2023,18346.28,Place & Communities 2,Supplies & Services,T35001/D001004,Stock Account,Chemicals and Materials Purchase
Ashfield District Council,37UB,Certas Energy UK Ltd t/a Pace Fuelcare,V1023386,31/03/2023,1431.75,Place & Communities 2,Supplies & Services,T35001/D001004,Stock Account,Chemicals and Materials Purchase
Ashfield District Council,37UB,Chemodex Ltd,V1020836,09/03/2023,765,Place & Communities 2,Supplies & Services,T35001/D001004,Stock Account,Chemicals and Materials Purchase
Ashfield District Council,37UB,Chemodex Ltd,V1022669,31/03/2023,71.5,Place & Communities 2,Transport Related Expenses,T35004/C005,Stock Account,Lubricants
Ashfield District Council,37UB,Chemodex Ltd,V1022669,31/03/2023,91,Place & Communities 2,Transport Related Expenses,T35004/C005,Stock Account,Lubricants
Ashfield District Council,37UB,Chemodex Ltd,V1023341,31/03/2023,850,Place & Communities 2,Supplies & Services,T35001/D001004,Stock Account,Chemicals and Materials Purchase
Ashfield District Council,37UB,Chemodex Ltd,V1023369,31/03/2023,23.95,Place & Communities 2,Transport Related Expenses,T35004/C005,Stock Account,Lubricants
Ashfield District Council,37UB,Chemodex Ltd,V1023369,31/03/2023,20.4,Place & Communities 2,Transport Related Expenses,T35004/C005,Stock Account,Lubricants
Ashfield District Council,37UB,Chemodex Ltd,V1023369,31/03/2023,55.8,Place & Communities 2,Transport Related Expenses,T35004/C005,Stock Account,Lubricants
Ashfield District Council,37UB,Chemodex Ltd,V1023369,31/03/2023,47.88,Place & Communities 2,Transport Related Expenses,T35004/C005,Stock Account,Lubricants
Ashfield District Council,37UB,County Battery Services Ltd,V1022037,23/03/2023,1.27,Place & Communities 2,Transport Related Expenses,T35002/C011,Stock Account,Parts
Ashfield District Council,37UB,County Battery Services Ltd,V1022037,23/03/2023,33.33,Place & Communities 2,Transport Related Expenses,T35002/C011,Stock Account,Parts
Ashfield District Council,37UB,Davenport Accident Repair Centre,V1022728,31/03/2023,30,Place & Communities 2,Transport Related Expenses,T35002/C011,Stock Account,Parts
Ashfield District Council,37UB,Davenport Accident Repair Centre,V1022728,31/03/2023,450,Place & Communities 2,Transport Related Expenses,T35002/C011,Stock Account,Parts
Ashfield District Council,37UB,Davenport Accident Repair Centre,V1022741,31/03/2023,5.8,Place & Communities 2,Transport Related Expenses,T35002/C011,Stock Account,Parts
Ashfield District Council,37UB,Davenport Accident Repair Centre,V1023189,31/03/2023,40,Place & Communities 2,Transport Related Expenses,T35002/C011,Stock Account,Parts
Ashfield District Council,37UB,Davmac Spares Ltd,V1019296,02/03/2023,18.49,Place & Communities 2,Transport Related Expenses,T35002/C011,Stock Account,Parts
Ashfield District Council,37UB,Davmac Spares Ltd,V1019412,02/03/2023,4.17,Place & Communities 2,Transport Related Expenses,T35002/C011,Stock Account,Parts
Ashfield District Council,37UB,Davmac Spares Ltd,V1019427,02/03/2023,-66.88,Place & Communities 2,Transport Related Expenses,T35002/C011,Stock Account,Parts
Ashfield District Council,37UB,Davmac Spares Ltd,V1020147,02/03/2023,499,Place & Communities 2,Transport Related Expenses,T35004/C005,Stock Account,Lubricants
Ashfield District Council,37UB,Davmac Spares Ltd,V1020924,16/03/2023,450.3,Place & Communities 2,Transport Related Expenses,T35002/C011,Stock Account,Parts
Ashfield District Council,37UB,Davmac Spares Ltd,V1021185,16/03/2023,10.53,Place & Communities 2,Transport Related Expenses,T35002/C011,Stock Account,Parts
Ashfield District Council,37UB,Davmac Spares Ltd,V1021331,16/03/2023,-125,Place & Communities 2,Transport Related Expenses,T35002/C011,Stock Account,Parts
Ashfield District Council,37UB,Davmac Spares Ltd,V1021351,16/03/2023,141.94,Place & Communities 2,Transport Related Expenses,T35002/C011,Stock Account,Parts
Ashfield District Council,37UB,Davmac Spares Ltd,V1021356,16/03/2023,124.54,Place & Communities 2,Transport Related Expenses,T35002/C011,Stock Account,Parts
Ashfield District Council,37UB,Davmac Spares Ltd,V1022661,31/03/2023,29.88,Place & Communities 2,Transport Related Expenses,T35004/C005,Stock Account,Lubricants
Ashfield District Council,37UB,Davmac Spares Ltd,V1022684,31/03/2023,10.72,Place & Communities 2,Transport Related Expenses,T35002/C011,Stock Account,Parts
Ashfield District Council,37UB,Davmac Spares Ltd,V1022684,31/03/2023,8.6,Place & Communities 2,Transport Related Expenses,T35002/C011,Stock Account,Parts
Ashfield District Council,37UB,Davmac Spares Ltd,V1022684,31/03/2023,18.58,Place & Communities 2,Transport Related Expenses,T35002/C011,Stock Account,Parts
Ashfield District Council,37UB,Davmac Spares Ltd,V1022684,31/03/2023,11.28,Place & Communities 2,Transport Related Expenses,T35002/C011,Stock Account,Parts
Ashfield District Council,37UB,Davmac Spares Ltd,V1022686,31/03/2023,29.43,Place & Communities 2,Transport Related Expenses,T35002/C011,Stock Account,Parts
Ashfield District Council,37UB,Davmac Spares Ltd,V1022687,31/03/2023,7.53,Place & Communities 2,Transport Related Expenses,T35002/C011,Stock Account,Parts
Ashfield District Council,37UB,Dennis Eagle Limited,V1016181,02/03/2023,816.32,Place & Communities 2,Transport Related Expenses,T35002/C011,Stock Account,Parts
Ashfield District Council,37UB,Dennis Eagle Limited,V1020159,02/03/2023,19.26,Place & Communities 2,Transport Related Expenses,T35002/C011,Stock Account,Parts
Ashfield District Council,37UB,Dennis Eagle Limited,V1020190,02/03/2023,83.07,Place & Communities 2,Transport Related Expenses,T35002/C011,Stock Account,Parts
Ashfield District Council,37UB,Dennis Eagle Limited,V1020190,02/03/2023,45,Place & Communities 2,Transport Related Expenses,T35002/C011,Stock Account,Parts
Ashfield District Council,37UB,Dennis Eagle Limited,V1020190,02/03/2023,37.15,Place & Communities 2,Transport Related Expenses,T35002/C011,Stock Account,Parts
Ashfield District Council,37UB,Dennis Eagle Limited,V1020190,02/03/2023,4.46,Place & Communities 2,Transport Related Expenses,T35002/C011,Stock Account,Parts
Ashfield District Council,37UB,Dennis Eagle Limited,V1020190,02/03/2023,73.96,Place & Communities 2,Transport Related Expenses,T35002/C011,Stock Account,Parts
Ashfield District Council,37UB,Dennis Eagle Limited,V1020221,02/03/2023,13.74,Place & Communities 2,Transport Related Expenses,T35002/C011,Stock Account,Parts
Ashfield District Council,37UB,Dennis Eagle Limited,V1020221,02/03/2023,40.72,Place & Communities 2,Transport Related Expenses,T35002/C011,Stock Account,Parts
Ashfield District Council,37UB,Dennis Eagle Limited,V1020221,02/03/2023,160.38,Place & Communities 2,Transport Related Expenses,T35002/C011,Stock Account,Parts
Ashfield District Council,37UB,Dennis Eagle Limited,V1020322,02/03/2023,-84.82,Place & Communities 2,Transport Related Expenses,T35002/C011,Stock Account,Parts
Ashfield District Council,37UB,Dennis Eagle Limited,V1020908,09/03/2023,263.39,Place & Communities 2,Transport Related Expenses,T35002/C011,Stock Account,Parts
Ashfield District Council,37UB,Dennis Eagle Limited,V1020908,09/03/2023,160.38,Place & Communities 2,Transport Related Expenses,T35002/C011,Stock Account,Parts
Ashfield District Council,37UB,Dennis Eagle Limited,V1020908,09/03/2023,98.22,Place & Communities 2,Transport Related Expenses,T35002/C011,Stock Account,Parts
Ashfield District Council,37UB,Dennis Eagle Limited,V1020908,09/03/2023,73.96,Place & Communities 2,Transport Related Expenses,T35002/C011,Stock Account,Parts
Ashfield District Council,37UB,Dennis Eagle Limited,V1020908,09/03/2023,9.14,Place & Communities 2,Transport Related Expenses,T35002/C011,Stock Account,Parts
Ashfield District Council,37UB,Dennis Eagle Limited,V1020908,09/03/2023,135.04,Place & Communities 2,Transport Related Expenses,T35002/C011,Stock Account,Parts
Ashfield District Council,37UB,Dennis Eagle Limited,V1020910,16/03/2023,182.63,Place & Communities 2,Transport Related Expenses,T35002/C011,Stock Account,Parts
Ashfield District Council,37UB,Dennis Eagle Limited,V1020910,16/03/2023,487.12,Place & Communities 2,Transport Related Expenses,T35002/C011,Stock Account,Parts
Ashfield District Council,37UB,Dennis Eagle Limited,V1021321,16/03/2023,128.32,Place & Communities 2,Transport Related Expenses,T35002/C011,Stock Account,Parts
Ashfield District Council,37UB,Dennis Eagle Limited,V1021401,16/03/2023,73.96,Place & Communities 2,Transport Related Expenses,T35002/C011,Stock Account,Parts
Ashfield District Council,37UB,Dennis Eagle Limited,V1021401,16/03/2023,13.74,Place & Communities 2,Transport Related Expenses,T35002/C011,Stock Account,Parts
Ashfield District Council,37UB,Dennis Eagle Limited,V1021401,16/03/2023,78.38,Place & Communities 2,Transport Related Expenses,T35002/C011,Stock Account,Parts
Ashfield District Council,37UB,Dennis Eagle Limited,V1021403,16/03/2023,104.76,Place & Communities 2,Transport Related Expenses,T35002/C011,Stock Account,Parts
Ashfield District Council,37UB,Dennis Eagle Limited,V1021403,16/03/2023,72.45,Place & Communities 2,Transport Related Expenses,T35002/C011,Stock Account,Parts
Ashfield District Council,37UB,Dennis Eagle Limited,V1021403,16/03/2023,331.27,Place & Communities 2,Transport Related Expenses,T35002/C011,Stock Account,Parts
Ashfield District Council,37UB,Dennis Eagle Limited,V1022063,23/03/2023,360.29,Place & Communities 2,Transport Related Expenses,T35002/C011,Stock Account,Parts
Ashfield District Council,37UB,Dennis Eagle Limited,V1022063,23/03/2023,90.99,Place & Communities 2,Transport Related Expenses,T35002/C011,Stock Account,Parts
Ashfield District Council,37UB,Dennis Eagle Limited,V1022098,23/03/2023,191.05,Place & Communities 2,Transport Related Expenses,T35002/C011,Stock Account,Parts
Ashfield District Council,37UB,Dennis Eagle Limited,V1022683,31/03/2023,756.88,Place & Communities 2,Transport Related Expenses,T35002/C011,Stock Account,Parts
Ashfield District Council,37UB,Dennis Eagle Limited,V1022683,31/03/2023,23.68,Place & Communities 2,Transport Related Expenses,T35002/C011,Stock Account,Parts
Ashfield District Council,37UB,Dennis Eagle Limited,V1022683,31/03/2023,9.92,Place & Communities 2,Transport Related Expenses,T35002/C011,Stock Account,Parts
Ashfield District Council,37UB,Dennis Eagle Limited,V1022683,31/03/2023,804.79,Place & Communities 2,Transport Related Expenses,T35002/C011,Stock Account,Parts
Ashfield District Council,37UB,Dennis Eagle Limited,V1022767,31/03/2023,715,Place & Communities 2,Transport Related Expenses,T35002/C011,Stock Account,Parts
Ashfield District Council,37UB,Dennis Eagle Limited,V1022767,31/03/2023,297.3,Place & Communities 2,Transport Related Expenses,T35002/C011,Stock Account,Parts
Ashfield District Council,37UB,Dennis Eagle Limited,V1023096,31/03/2023,7128,Place & Communities 2,Transport Related Expenses,T35002/C011,Stock Account,Parts
Ashfield District Council,37UB,Dennis Eagle Limited,V1023096,31/03/2023,4100.29,Place & Communities 2,Transport Related Expenses,T35002/C011,Stock Account,Parts
Ashfield District Council,37UB,Dennis Eagle Limited,V1023168,31/03/2023,252.58,Place & Communities 2,Transport Related Expenses,T35002/C011,Stock Account,Parts
Ashfield District Council,37UB,Dennis Eagle Limited,V1023168,31/03/2023,176.09,Place & Communities 2,Transport Related Expenses,T35002/C011,Stock Account,Parts
Ashfield District Council,37UB,Dennis Eagle Limited,V1023262,31/03/2023,32.27,Place & Communities 2,Transport Related Expenses,T35002/C011,Stock Account,Parts
Ashfield District Council,37UB,Dennis Eagle Limited,V1023282,31/03/2023,105.29,Place & Communities 2,Transport Related Expenses,T35002/C011,Stock Account,Parts
Ashfield District Council,37UB,Dennis Eagle Limited,V1023345,31/03/2023,230.03,Place & Communities 2,Transport Related Expenses,T35002/C011,Stock Account,Parts
Ashfield District Council,37UB,DUN-BRI Services Ltd,V1018774,02/03/2023,61.81,Place & Communities 2,Transport Related Expenses,T35002/C011,Stock Account,Parts
Ashfield District Council,37UB,DUN-BRI Services Ltd,V1018774,02/03/2023,7.44,Place & Communities 2,Transport Related Expenses,T35002/C011,Stock Account,Parts
Ashfield District Council,37UB,DUN-BRI Services Ltd,V1018774,02/03/2023,8.61,Place & Communities 2,Transport Related Expenses,T35002/C011,Stock Account,Parts
Ashfield District Council,37UB,DUN-BRI Services Ltd,V1020189,02/03/2023,8.61,Place & Communities 2,Transport Related Expenses,T35002/C011,Stock Account,Parts
Ashfield District Council,37UB,Eurotrucks (Mansfield) Ltd,V1021907,16/03/2023,8.76,Place & Communities 2,Transport Related Expenses,T35002/C011,Stock Account,Parts
Ashfield District Council,37UB,Eurotrucks (Mansfield) Ltd,V1021967,23/03/2023,1.49,Place & Communities 2,Transport Related Expenses,T35002/C011,Stock Account,Parts
Ashfield District Council,37UB,Eurotrucks (Mansfield) Ltd,V1021967,23/03/2023,16,Place & Communities 2,Transport Related Expenses,T35002/C011,Stock Account,Parts
Ashfield District Council,37UB,Express Hose & Fittings Ltd,V1021224,16/03/2023,81.44,Place & Communities 2,Transport Related Expenses,T35002/C011,Stock Account,Parts
Ashfield District Council,37UB,Express Hose & Fittings Ltd,V1022662,31/03/2023,35.05,Place & Communities 2,Transport Related Expenses,T35002/C011,Stock Account,Parts
Ashfield District Council,37UB,Express Hose & Fittings Ltd,V1022663,31/03/2023,2.96,Place & Communities 2,Transport Related Expenses,T35002/C011,Stock Account,Parts
Ashfield District Council,37UB,Express Hose & Fittings Ltd,V1023277,31/03/2023,359.43,Place & Communities 2,Transport Related Expenses,T35002/C011,Stock Account,Parts
Ashfield District Council,37UB,Ford Motor Company T/A Parts Plus,V1020160,02/03/2023,91.62,Place & Communities 2,Transport Related Expenses,T35002/C011,Stock Account,Parts
Ashfield District Council,37UB,Ford Motor Company T/A Parts Plus,V1020197,02/03/2023,125.38,Place & Communities 2,Transport Related Expenses,T35002/C011,Stock Account,Parts
Ashfield District Council,37UB,Ford Motor Company T/A Parts Plus,V1020248,02/03/2023,38.47,Place & Communities 2,Transport Related Expenses,T35002/C011,Stock Account,Parts
Ashfield District Council,37UB,Ford Motor Company T/A Parts Plus,V1021226,16/03/2023,99.62,Place & Communities 2,Transport Related Expenses,T35002/C011,Stock Account,Parts
Ashfield District Council,37UB,Ford Motor Company T/A Parts Plus,V1021908,16/03/2023,52.01,Place & Communities 2,Transport Related Expenses,T35002/C011,Stock Account,Parts
Ashfield District Council,37UB,Ford Motor Company T/A Parts Plus,V1021910,16/03/2023,3.67,Place & Communities 2,Transport Related Expenses,T35002/C011,Stock Account,Parts
Ashfield District Council,37UB,Ford Motor Company T/A Parts Plus,V1021911,16/03/2023,22.51,Place & Communities 2,Transport Related Expenses,T35002/C011,Stock Account,Parts
Ashfield District Council,37UB,Ford Motor Company T/A Parts Plus,V1021911,16/03/2023,35.72,Place & Communities 2,Transport Related Expenses,T35002/C011,Stock Account,Parts
Ashfield District Council,37UB,Ford Motor Company T/A Parts Plus,V1021916,16/03/2023,72.12,Place & Communities 2,Transport Related Expenses,T35002/C011,Stock Account,Parts
Ashfield District Council,37UB,Ford Motor Company T/A Parts Plus,V1021918,16/03/2023,23.06,Place & Communities 2,Transport Related Expenses,T35002/C011,Stock Account,Parts
Ashfield District Council,37UB,Ford Motor Company T/A Parts Plus,V1021927,16/03/2023,86.38,Place & Communities 2,Transport Related Expenses,T35002/C011,Stock Account,Parts
Ashfield District Council,37UB,Ford Motor Company T/A Parts Plus,V1021927,16/03/2023,85.88,Place & Communities 2,Transport Related Expenses,T35002/C011,Stock Account,Parts
Ashfield District Council,37UB,Ford Motor Company T/A Parts Plus,V1021927,16/03/2023,18.45,Place & Communities 2,Transport Related Expenses,T35002/C011,Stock Account,Parts
Ashfield District Council,37UB,Ford Motor Company T/A Parts Plus,V1021936,16/03/2023,87.77,Place & Communities 2,Transport Related Expenses,T35002/C011,Stock Account,Parts
Ashfield District Council,37UB,Ford Motor Company T/A Parts Plus,V1021968,23/03/2023,92.42,Place & Communities 2,Transport Related Expenses,T35002/C011,Stock Account,Parts
Ashfield District Council,37UB,Ford Motor Company T/A Parts Plus,V1022004,23/03/2023,71.44,Place & Communities 2,Transport Related Expenses,T35002/C011,Stock Account,Parts
Ashfield District Council,37UB,Ford Motor Company T/A Parts Plus,V1022028,23/03/2023,67.86,Place & Communities 2,Transport Related Expenses,T35002/C011,Stock Account,Parts
Ashfield District Council,37UB,Ford Motor Company T/A Parts Plus,V1022028,23/03/2023,35.58,Place & Communities 2,Transport Related Expenses,T35002/C011,Stock Account,Parts
Ashfield District Council,37UB,Ford Motor Company T/A Parts Plus,V1022072,23/03/2023,24.18,Place & Communities 2,Transport Related Expenses,T35002/C011,Stock Account,Parts
Ashfield District Council,37UB,Ford Motor Company T/A Parts Plus,V1022104,23/03/2023,28.16,Place & Communities 2,Transport Related Expenses,T35002/C011,Stock Account,Parts
Ashfield District Council,37UB,Ford Motor Company T/A Parts Plus,V1022105,23/03/2023,20.33,Place & Communities 2,Transport Related Expenses,T35002/C011,Stock Account,Parts
Ashfield District Council,37UB,Ford Motor Company T/A Parts Plus,V1022105,23/03/2023,13.65,Place & Communities 2,Transport Related Expenses,T35002/C011,Stock Account,Parts
Ashfield District Council,37UB,Ford Motor Company T/A Parts Plus,V1022105,23/03/2023,44.44,Place & Communities 2,Transport Related Expenses,T35002/C011,Stock Account,Parts
Ashfield District Council,37UB,Ford Motor Company T/A Parts Plus,V1022105,23/03/2023,9.56,Place & Communities 2,Transport Related Expenses,T35002/C011,Stock Account,Parts
Ashfield District Council,37UB,Ford Motor Company T/A Parts Plus,V1022105,23/03/2023,72.12,Place & Communities 2,Transport Related Expenses,T35002/C011,Stock Account,Parts
Ashfield District Council,37UB,Ford Motor Company T/A Parts Plus,V1022105,23/03/2023,9.56,Place & Communities 2,Transport Related Expenses,T35002/C011,Stock Account,Parts
Ashfield District Council,37UB,Ford Motor Company T/A Parts Plus,V1022106,23/03/2023,13.35,Place & Communities 2,Transport Related Expenses,T35002/C011,Stock Account,Parts
Ashfield District Council,37UB,Ford Motor Company T/A Parts Plus,V1022106,23/03/2023,0.87,Place & Communities 2,Transport Related Expenses,T35002/C011,Stock Account,Parts
Ashfield District Council,37UB,Ford Motor Company T/A Parts Plus,V1022107,23/03/2023,10.32,Place & Communities 2,Transport Related Expenses,T35002/C011,Stock Account,Parts
Ashfield District Council,37UB,Ford Motor Company T/A Parts Plus,V1022107,23/03/2023,16,Place & Communities 2,Transport Related Expenses,T35002/C011,Stock Account,Parts
Ashfield District Council,37UB,Ford Motor Company T/A Parts Plus,V1022120,23/03/2023,95.23,Place & Communities 2,Transport Related Expenses,T35002/C011,Stock Account,Parts
Ashfield District Council,37UB,Ford Motor Company T/A Parts Plus,V1022666,31/03/2023,35.72,Place & Communities 2,Transport Related Expenses,T35002/C011,Stock Account,Parts
Ashfield District Council,37UB,Ford Motor Company T/A Parts Plus,V1022666,31/03/2023,16.37,Place & Communities 2,Transport Related Expenses,T35002/C011,Stock Account,Parts
Ashfield District Council,37UB,Ford Motor Company T/A Parts Plus,V1022694,31/03/2023,1.76,Place & Communities 2,Transport Related Expenses,T35002/C011,Stock Account,Parts
Ashfield District Council,37UB,Ford Motor Company T/A Parts Plus,V1022738,31/03/2023,20.64,Place & Communities 2,Transport Related Expenses,T35002/C011,Stock Account,Parts
Ashfield District Council,37UB,Ford Motor Company T/A Parts Plus,V1022738,31/03/2023,32,Place & Communities 2,Transport Related Expenses,T35002/C011,Stock Account,Parts
Ashfield District Council,37UB,HGV Direct Ltd,V1020907,09/03/2023,81,Place & Communities 2,Transport Related Expenses,T35002/C011,Stock Account,Parts
Ashfield District Council,37UB,Howardson Ltd,V1019514,02/03/2023,302.69,Place & Communities 2,Transport Related Expenses,T35002/C011,Stock Account,Parts
Ashfield District Council,37UB,Hucknall Bypass Filling Station Ltd,V1021384,23/03/2023,13.24,Place & Communities 2,Supplies & Services,T35001/D001004,Stock Account,Chemicals and Materials Purchase
Ashfield District Council,37UB,Humberside Tail Lifts,V1021316,16/03/2023,11.64,Place & Communities 2,Transport Related Expenses,T35002/C011,Stock Account,Parts
Ashfield District Council,37UB,Humberside Tail Lifts,V1021316,16/03/2023,14.95,Place & Communities 2,Transport Related Expenses,T35002/C011,Stock Account,Parts
Ashfield District Council,37UB,Lasalign Ltd,V1021932,16/03/2023,270,Place & Communities 2,Transport Related Expenses,T35002/C011,Stock Account,Parts
Ashfield District Council,37UB,Lodge Tyre Co Ltd,V1018623,02/03/2023,85,Place & Communities 2,Transport Related Expenses,T35003/C070,Stock Account,Tyres
Ashfield District Council,37UB,Lodge Tyre Co Ltd,V1018623,02/03/2023,143,Place & Communities 2,Transport Related Expenses,T35003/C070,Stock Account,Tyres
Ashfield District Council,37UB,Lodge Tyre Co Ltd,V1018623,02/03/2023,66,Place & Communities 2,Transport Related Expenses,T35003/C070,Stock Account,Tyres
Ashfield District Council,37UB,Lodge Tyre Co Ltd,V1018623,02/03/2023,35,Place & Communities 2,Transport Related Expenses,T35003/C070,Stock Account,Tyres
Ashfield District Council,37UB,Lodge Tyre Co Ltd,V1018623,02/03/2023,60,Place & Communities 2,Transport Related Expenses,T35003/C070,Stock Account,Tyres
Ashfield District Council,37UB,Lodge Tyre Co Ltd,V1019402,02/03/2023,71.5,Place & Communities 2,Transport Related Expenses,T35003/C070,Stock Account,Tyres
Ashfield District Council,37UB,Lodge Tyre Co Ltd,V1019402,02/03/2023,15,Place & Communities 2,Transport Related Expenses,T35003/C070,Stock Account,Tyres
Ashfield District Council,37UB,Lodge Tyre Co Ltd,V1019402,02/03/2023,50,Place & Communities 2,Transport Related Expenses,T35003/C070,Stock Account,Tyres
Ashfield District Council,37UB,Lodge Tyre Co Ltd,V1019402,02/03/2023,220,Place & Communities 2,Transport Related Expenses,T35003/C070,Stock Account,Tyres
Ashfield District Council,37UB,Lodge Tyre Co Ltd,V1019402,02/03/2023,25,Place & Communities 2,Transport Related Expenses,T35003/C070,Stock Account,Tyres
Ashfield District Council,37UB,Lodge Tyre Co Ltd,V1019402,02/03/2023,506,Place & Communities 2,Transport Related Expenses,T35003/C070,Stock Account,Tyres
Ashfield District Council,37UB,Lodge Tyre Co Ltd,V1019402,02/03/2023,35.5,Place & Communities 2,Transport Related Expenses,T35003/C070,Stock Account,Tyres
Ashfield District Council,37UB,Lodge Tyre Co Ltd,V1019402,02/03/2023,60,Place & Communities 2,Transport Related Expenses,T35003/C070,Stock Account,Tyres
Ashfield District Council,37UB,Lodge Tyre Co Ltd,V1019402,02/03/2023,15,Place & Communities 2,Transport Related Expenses,T35003/C070,Stock Account,Tyres
Ashfield District Council,37UB,Lodge Tyre Co Ltd,V1019402,02/03/2023,15,Place & Communities 2,Transport Related Expenses,T35003/C070,Stock Account,Tyres
Ashfield District Council,37UB,Lodge Tyre Co Ltd,V1019402,02/03/2023,14,Place & Communities 2,Transport Related Expenses,T35003/C070,Stock Account,Tyres
Ashfield District Council,37UB,Lodge Tyre Co Ltd,V1019402,02/03/2023,15,Place & Communities 2,Transport Related Expenses,T35003/C070,Stock Account,Tyres
Ashfield District Council,37UB,Lodge Tyre Co Ltd,V1019402,02/03/2023,35,Place & Communities 2,Transport Related Expenses,T35003/C070,Stock Account,Tyres
Ashfield District Council,37UB,Lodge Tyre Co Ltd,V1019402,02/03/2023,36,Place & Communities 2,Transport Related Expenses,T35003/C070,Stock Account,Tyres
Ashfield District Council,37UB,Lodge Tyre Co Ltd,V1019402,02/03/2023,45,Place & Communities 2,Transport Related Expenses,T35003/C070,Stock Account,Tyres
Ashfield District Council,37UB,Lodge Tyre Co Ltd,V1019402,02/03/2023,242,Place & Communities 2,Transport Related Expenses,T35003/C070,Stock Account,Tyres
Ashfield District Council,37UB,Lodge Tyre Co Ltd,V1020155,02/03/2023,-13.5,Place & Communities 2,Transport Related Expenses,T35003/C070,Stock Account,Tyres
Ashfield District Council,37UB,Lodge Tyre Co Ltd,V1020169,02/03/2023,15,Place & Communities 2,Transport Related Expenses,T35003/C070,Stock Account,Tyres
Ashfield District Council,37UB,Lodge Tyre Co Ltd,V1020169,02/03/2023,15,Place & Communities 2,Transport Related Expenses,T35003/C070,Stock Account,Tyres
Ashfield District Council,37UB,Lodge Tyre Co Ltd,V1020169,02/03/2023,66,Place & Communities 2,Transport Related Expenses,T35003/C070,Stock Account,Tyres
Ashfield District Council,37UB,Lodge Tyre Co Ltd,V1020169,02/03/2023,45,Place & Communities 2,Transport Related Expenses,T35003/C070,Stock Account,Tyres
Ashfield District Council,37UB,Lodge Tyre Co Ltd,V1020169,02/03/2023,66,Place & Communities 2,Transport Related Expenses,T35003/C070,Stock Account,Tyres
Ashfield District Council,37UB,Lodge Tyre Co Ltd,V1020169,02/03/2023,35.5,Place & Communities 2,Transport Related Expenses,T35003/C070,Stock Account,Tyres
Ashfield District Council,37UB,Lodge Tyre Co Ltd,V1020249,02/03/2023,258.5,Place & Communities 2,Transport Related Expenses,T35003/C070,Stock Account,Tyres
Ashfield District Council,37UB,Lodge Tyre Co Ltd,V1020249,02/03/2023,25,Place & Communities 2,Transport Related Expenses,T35003/C070,Stock Account,Tyres
Ashfield District Council,37UB,Lodge Tyre Co Ltd,V1020249,02/03/2023,17.5,Place & Communities 2,Transport Related Expenses,T35003/C070,Stock Account,Tyres
Ashfield District Council,37UB,Lodge Tyre Co Ltd,V1020249,02/03/2023,25,Place & Communities 2,Transport Related Expenses,T35003/C070,Stock Account,Tyres
Ashfield District Council,37UB,Lodge Tyre Co Ltd,V1020249,02/03/2023,15,Place & Communities 2,Transport Related Expenses,T35003/C070,Stock Account,Tyres
Ashfield District Council,37UB,Lodge Tyre Co Ltd,V1020249,02/03/2023,35,Place & Communities 2,Transport Related Expenses,T35003/C070,Stock Account,Tyres
Ashfield District Council,37UB,Lodge Tyre Co Ltd,V1020249,02/03/2023,60,Place & Communities 2,Transport Related Expenses,T35003/C070,Stock Account,Tyres
Ashfield District Council,37UB,Lodge Tyre Co Ltd,V1020249,02/03/2023,15,Place & Communities 2,Transport Related Expenses,T35003/C070,Stock Account,Tyres
Ashfield District Council,37UB,Lodge Tyre Co Ltd,V1020249,02/03/2023,60,Place & Communities 2,Transport Related Expenses,T35003/C070,Stock Account,Tyres
Ashfield District Council,37UB,Lodge Tyre Co Ltd,V1020249,02/03/2023,146.5,Place & Communities 2,Transport Related Expenses,T35003/C070,Stock Account,Tyres
Ashfield District Council,37UB,Lodge Tyre Co Ltd,V1020249,02/03/2023,35,Place & Communities 2,Transport Related Expenses,T35003/C070,Stock Account,Tyres
Ashfield District Council,37UB,Lodge Tyre Co Ltd,V1020249,02/03/2023,506,Place & Communities 2,Transport Related Expenses,T35003/C070,Stock Account,Tyres
Ashfield District Council,37UB,Lodge Tyre Co Ltd,V1020327,02/03/2023,-45,Place & Communities 2,Transport Related Expenses,t35002/c011,Stock Account,Parts
Ashfield District Council,37UB,Lodge Tyre Co Ltd,V1020779,09/03/2023,66,Place & Communities 2,Transport Related Expenses,T35003/C070,Stock Account,Tyres
Ashfield District Council,37UB,Lodge Tyre Co Ltd,V1020779,09/03/2023,35,Place & Communities 2,Transport Related Expenses,T35003/C070,Stock Account,Tyres
Ashfield District Council,37UB,Lodge Tyre Co Ltd,V1020779,09/03/2023,15,Place & Communities 2,Transport Related Expenses,T35003/C070,Stock Account,Tyres
Ashfield District Council,37UB,Lodge Tyre Co Ltd,V1020779,09/03/2023,120,Place & Communities 2,Transport Related Expenses,T35003/C070,Stock Account,Tyres
Ashfield District Council,37UB,Lodge Tyre Co Ltd,V1022029,23/03/2023,234,Place & Communities 2,Transport Related Expenses,T35003/C070,Stock Account,Tyres
Ashfield District Council,37UB,Lodge Tyre Co Ltd,V1022029,23/03/2023,15,Place & Communities 2,Transport Related Expenses,T35003/C070,Stock Account,Tyres
Ashfield District Council,37UB,Lodge Tyre Co Ltd,V1022029,23/03/2023,475,Place & Communities 2,Transport Related Expenses,T35003/C070,Stock Account,Tyres
Ashfield District Council,37UB,Lodge Tyre Co Ltd,V1022029,23/03/2023,15,Place & Communities 2,Transport Related Expenses,T35003/C070,Stock Account,Tyres
Ashfield District Council,37UB,Lodge Tyre Co Ltd,V1022029,23/03/2023,242,Place & Communities 2,Transport Related Expenses,T35003/C070,Stock Account,Tyres
Ashfield District Council,37UB,Lodge Tyre Co Ltd,V1022121,23/03/2023,60,Place & Communities 2,Transport Related Expenses,T35003/C070,Stock Account,Tyres
Ashfield District Council,37UB,Lodge Tyre Co Ltd,V1022121,23/03/2023,159.5,Place & Communities 2,Transport Related Expenses,T35003/C070,Stock Account,Tyres
Ashfield District Council,37UB,Lodge Tyre Co Ltd,V1022121,23/03/2023,17.5,Place & Communities 2,Transport Related Expenses,T35003/C070,Stock Account,Tyres
Ashfield District Council,37UB,Lodge Tyre Co Ltd,V1022121,23/03/2023,132,Place & Communities 2,Transport Related Expenses,T35003/C070,Stock Account,Tyres
Ashfield District Council,37UB,Lodge Tyre Co Ltd,V1022121,23/03/2023,15,Place & Communities 2,Transport Related Expenses,T35003/C070,Stock Account,Tyres
Ashfield District Council,37UB,Lodge Tyre Co Ltd,V1022121,23/03/2023,30,Place & Communities 2,Transport Related Expenses,T35003/C070,Stock Account,Tyres
Ashfield District Council,37UB,Lodge Tyre Co Ltd,V1022121,23/03/2023,71.5,Place & Communities 2,Transport Related Expenses,T35003/C070,Stock Account,Tyres
Ashfield District Council,37UB,Maurice Hill Transport Ltd,V1020802,09/03/2023,137,Place & Communities 2,Transport Related Expenses,T35002/C011,Stock Account,Parts
Ashfield District Council,37UB,Maurice Hill Transport Ltd,V1020802,09/03/2023,88,Place & Communities 2,Transport Related Expenses,T35002/C011,Stock Account,Parts
Ashfield District Council,37UB,Maurice Hill Transport Ltd,V1023142,31/03/2023,35,Place & Communities 2,Transport Related Expenses,T35002/C011,Stock Account,Parts
Ashfield District Council,37UB,Maurice Hill Transport Ltd,V1023142,31/03/2023,145,Place & Communities 2,Transport Related Expenses,T35002/C011,Stock Account,Parts
Ashfield District Council,37UB,Maurice Hill Transport Ltd,V1023142,31/03/2023,90,Place & Communities 2,Transport Related Expenses,T35002/C011,Stock Account,Parts
Ashfield District Council,37UB,Maurice Hill Transport Ltd,V1023142,31/03/2023,59,Place & Communities 2,Transport Related Expenses,T35002/C011,Stock Account,Parts
Ashfield District Council,37UB,Mitchell Powersystems,V1023333,31/03/2023,56.87,Place & Communities 2,Transport Related Expenses,T35002/C011,Stock Account,Parts
Ashfield District Council,37UB,Mitchell Powersystems,V1023333,31/03/2023,50,Place & Communities 2,Transport Related Expenses,T35002/C011,Stock Account,Parts
Ashfield District Council,37UB,MOTUS Commercials,V1020119,16/03/2023,-98.9,Place & Communities 2,Transport Related Expenses,T35002/C011,Stock Account,Parts
Ashfield District Council,37UB,MOTUS Commercials,V1020852,16/03/2023,21.4,Place & Communities 2,Transport Related Expenses,T35002/C011,Stock Account,Parts
Ashfield District Council,37UB,MOTUS Commercials,V1021350,16/03/2023,88.47,Place & Communities 2,Transport Related Expenses,T35002/C011,Stock Account,Parts
Ashfield District Council,37UB,MOTUS Commercials,V1022685,31/03/2023,22.17,Place & Communities 2,Transport Related Expenses,T35002/C011,Stock Account,Parts
Ashfield District Council,37UB,MOTUS Commercials,V1022685,31/03/2023,30.07,Place & Communities 2,Transport Related Expenses,T35002/C011,Stock Account,Parts
Ashfield District Council,37UB,MOTUS Commercials,V1022685,31/03/2023,52.86,Place & Communities 2,Transport Related Expenses,T35002/C011,Stock Account,Parts
Ashfield District Council,37UB,MOTUS Commercials,V1022685,31/03/2023,20.56,Place & Communities 2,Transport Related Expenses,T35002/C011,Stock Account,Parts
Ashfield District Council,37UB,MOTUS Commercials,V1022685,31/03/2023,21.4,Place & Communities 2,Transport Related Expenses,T35002/C011,Stock Account,Parts
Ashfield District Council,37UB,MOTUS Commercials,V1022685,31/03/2023,29.5,Place & Communities 2,Transport Related Expenses,T35002/C011,Stock Account,Parts
Ashfield District Council,37UB,MOTUS Commercials,V1022740,31/03/2023,80.82,Place & Communities 2,Transport Related Expenses,T35002/C011,Stock Account,Parts
Ashfield District Council,37UB,MOTUS Commercials,V1022740,31/03/2023,22.4,Place & Communities 2,Transport Related Expenses,T35002/C011,Stock Account,Parts
Ashfield District Council,37UB,National Windscreens,V1020209,02/03/2023,40,Place & Communities 2,Transport Related Expenses,T35002/C011,Stock Account,Parts
Ashfield District Council,37UB,National Windscreens,V1020210,02/03/2023,40,Place & Communities 2,Transport Related Expenses,T35002/C011,Stock Account,Parts
Ashfield District Council,37UB,National Windscreens,V1020217,02/03/2023,50,Place & Communities 2,Transport Related Expenses,T35002/C011,Stock Account,Parts
Ashfield District Council,37UB,National Windscreens,V1020218,02/03/2023,40,Place & Communities 2,Transport Related Expenses,T35002/C011,Stock Account,Parts
Ashfield District Council,37UB,National Windscreens,V1022103,23/03/2023,50,Place & Communities 2,Transport Related Expenses,T35002/C011,Stock Account,Parts
Ashfield District Council,37UB,P S Marsden (Lawnmower Services) Ltd,V1020162,02/03/2023,13.85,Place & Communities 2,Transport Related Expenses,T35002/C011,Stock Account,Parts
Ashfield District Council,37UB,P S Marsden (Lawnmower Services) Ltd,V1020191,02/03/2023,135.3,Place & Communities 2,Transport Related Expenses,T35002/C011,Stock Account,Parts
Ashfield District Council,37UB,P S Marsden (Lawnmower Services) Ltd,V1020196,02/03/2023,74.28,Place & Communities 2,Transport Related Expenses,T35002/C011,Stock Account,Parts
Ashfield District Council,37UB,P S Marsden (Lawnmower Services) Ltd,V1020742,09/03/2023,150,Place & Communities 2,Transport Related Expenses,T35002/C011,Stock Account,Parts
Ashfield District Council,37UB,P S Marsden (Lawnmower Services) Ltd,V1020742,09/03/2023,213.8,Place & Communities 2,Transport Related Expenses,T35002/C011,Stock Account,Parts
Ashfield District Council,37UB,P S Marsden (Lawnmower Services) Ltd,V1020744,09/03/2023,21.74,Place & Communities 2,Transport Related Expenses,T35002/C011,Stock Account,Parts
Ashfield District Council,37UB,P S Marsden (Lawnmower Services) Ltd,V1020744,09/03/2023,5.33,Place & Communities 2,Transport Related Expenses,T35002/C011,Stock Account,Parts
Ashfield District Council,37UB,P S Marsden (Lawnmower Services) Ltd,V1020744,09/03/2023,7.16,Place & Communities 2,Transport Related Expenses,T35002/C011,Stock Account,Parts
Ashfield District Council,37UB,P S Marsden (Lawnmower Services) Ltd,V1020762,09/03/2023,-104.76,Place & Communities 2,Transport Related Expenses,T35002/C011,Stock Account,Parts
Ashfield District Council,37UB,P S Marsden (Lawnmower Services) Ltd,V1020766,09/03/2023,62.74,Place & Communities 2,Transport Related Expenses,T35002/C011,Stock Account,Parts
Ashfield District Council,37UB,P S Marsden (Lawnmower Services) Ltd,V1020766,09/03/2023,14.5,Place & Communities 2,Transport Related Expenses,T35002/C011,Stock Account,Parts
Ashfield District Council,37UB,P S Marsden (Lawnmower Services) Ltd,V1019428,16/03/2023,104.76,Place & Communities 2,Transport Related Expenses,T35002/C011,Stock Account,Parts
Ashfield District Council,37UB,P S Marsden (Lawnmower Services) Ltd,V1021928,16/03/2023,769.46,Place & Communities 2,Transport Related Expenses,T35002/C011,Stock Account,Parts
Ashfield District Council,37UB,P S Marsden (Lawnmower Services) Ltd,V1022689,31/03/2023,201.97,Place & Communities 2,Transport Related Expenses,T35002/C011,Stock Account,Parts
Ashfield District Council,37UB,P S Marsden (Lawnmower Services) Ltd,V1022705,31/03/2023,40,Place & Communities 2,Transport Related Expenses,T35002/C011,Stock Account,Parts
Ashfield District Council,37UB,P S Marsden (Lawnmower Services) Ltd,V1022705,31/03/2023,35.83,Place & Communities 2,Transport Related Expenses,T35002/C011,Stock Account,Parts
Ashfield District Council,37UB,P S Marsden (Lawnmower Services) Ltd,V1022706,31/03/2023,5.13,Place & Communities 2,Transport Related Expenses,T35002/C011,Stock Account,Parts
Ashfield District Council,37UB,PB Auto Electrics Ltd,V1019351,02/03/2023,60,Place & Communities 2,Transport Related Expenses,T35002/C011,Stock Account,Parts
Ashfield District Council,37UB,PB Auto Electrics Ltd,V1020120,02/03/2023,630,Place & Communities 2,Transport Related Expenses,T35002/C011,Stock Account,Parts
Ashfield District Council,37UB,PB Auto Electrics Ltd,V1020136,02/03/2023,13.7,Place & Communities 2,Transport Related Expenses,T35002/C011,Stock Account,Parts
Ashfield District Council,37UB,PB Auto Electrics Ltd,V1020136,02/03/2023,1.72,Place & Communities 2,Transport Related Expenses,T35002/C011,Stock Account,Parts
Ashfield District Council,37UB,PB Auto Electrics Ltd,V1020137,02/03/2023,47.15,Place & Communities 2,Transport Related Expenses,T35002/C011,Stock Account,Parts
Ashfield District Council,37UB,PB Auto Electrics Ltd,V1020137,02/03/2023,29.88,Place & Communities 2,Transport Related Expenses,T35002/C011,Stock Account,Parts
Ashfield District Council,37UB,PB Auto Electrics Ltd,V1020144,02/03/2023,16.39,Place & Communities 2,Transport Related Expenses,T35002/C011,Stock Account,Parts
Ashfield District Council,37UB,PB Auto Electrics Ltd,V1021183,09/03/2023,306.7,Place & Communities 2,Transport Related Expenses,T35002/C011,Stock Account,Parts
Ashfield District Council,37UB,PB Auto Electrics Ltd,V1021325,16/03/2023,331.01,Place & Communities 2,Transport Related Expenses,T35002/C011,Stock Account,Parts
Ashfield District Council,37UB,PB Auto Electrics Ltd,V1021906,16/03/2023,78.35,Place & Communities 2,Transport Related Expenses,T35002/C011,Stock Account,Parts
Ashfield District Council,37UB,PB Auto Electrics Ltd,V1021925,23/03/2023,39.18,Place & Communities 2,Transport Related Expenses,T35002/C011,Stock Account,Parts
Ashfield District Council,37UB,PB Auto Electrics Ltd,V1023389,31/03/2023,94.11,Place & Communities 2,Transport Related Expenses,T35002/C011,Stock Account,Parts
Ashfield District Council,37UB,PB Autofactors,V1020161,02/03/2023,8.5,Place & Communities 2,Transport Related Expenses,T35004/C005,Stock Account,Lubricants
Ashfield District Council,37UB,PB Autofactors,V1020161,02/03/2023,8.5,Place & Communities 2,Transport Related Expenses,T35004/C005,Stock Account,Lubricants
Ashfield District Council,37UB,PB Autofactors,V1020161,02/03/2023,8.5,Place & Communities 2,Transport Related Expenses,T35004/C005,Stock Account,Lubricants
Ashfield District Council,37UB,Spaldings UK Ltd,V1017485,02/03/2023,45.75,Place & Communities 2,Transport Related Expenses,T35002/C011,Stock Account,Parts
Ashfield District Council,37UB,Spaldings UK Ltd,V1020127,02/03/2023,33.6,Place & Communities 2,Transport Related Expenses,T35002/C011,Stock Account,Parts
Ashfield District Council,37UB,Spaldings UK Ltd,V1020127,02/03/2023,14.76,Place & Communities 2,Transport Related Expenses,T35002/C011,Stock Account,Parts
Ashfield District Council,37UB,Spaldings UK Ltd,V1020128,02/03/2023,51.44,Place & Communities 2,Transport Related Expenses,T35002/C011,Stock Account,Parts
Ashfield District Council,37UB,Spaldings UK Ltd,V1020140,02/03/2023,120.51,Place & Communities 2,Transport Related Expenses,T35002/C011,Stock Account,Parts
Ashfield District Council,37UB,Spaldings UK Ltd,V1020143,02/03/2023,29.52,Place & Communities 2,Transport Related Expenses,T35002/C011,Stock Account,Parts
Ashfield District Council,37UB,Spaldings UK Ltd,V1020222,09/03/2023,59.04,Place & Communities 2,Transport Related Expenses,T35002/C011,Stock Account,Parts
Ashfield District Council,37UB,Spaldings UK Ltd,V1020222,09/03/2023,33.6,Place & Communities 2,Transport Related Expenses,T35002/C011,Stock Account,Parts
Ashfield District Council,37UB,Spaldings UK Ltd,V1020761,09/03/2023,125.1,Place & Communities 2,Transport Related Expenses,T35002/C011,Stock Account,Parts
Ashfield District Council,37UB,Spaldings UK Ltd,V1020761,09/03/2023,127.8,Place & Communities 2,Transport Related Expenses,T35002/C011,Stock Account,Parts
Ashfield District Council,37UB,Spaldings UK Ltd,V1021420,16/03/2023,57.26,Place & Communities 2,Transport Related Expenses,T35002/C011,Stock Account,Parts
Ashfield District Council,37UB,Spaldings UK Ltd,V1021420,16/03/2023,28.72,Place & Communities 2,Transport Related Expenses,T35002/C011,Stock Account,Parts
Ashfield District Council,37UB,Spaldings UK Ltd,V1021420,16/03/2023,20.85,Place & Communities 2,Transport Related Expenses,T35002/C011,Stock Account,Parts
Ashfield District Council,37UB,Spaldings UK Ltd,V1021420,16/03/2023,35.67,Place & Communities 2,Transport Related Expenses,T35002/C011,Stock Account,Parts
Ashfield District Council,37UB,Terberg Matec UK,V1020238,09/03/2023,162.15,Place & Communities 2,Transport Related Expenses,T35002/C011,Stock Account,Parts
Ashfield District Council,37UB,Terberg Matec UK,V1020238,09/03/2023,158.51,Place & Communities 2,Transport Related Expenses,T35002/C011,Stock Account,Parts
Ashfield District Council,37UB,Terberg Matec UK,V1020238,09/03/2023,178.48,Place & Communities 2,Transport Related Expenses,T35002/C011,Stock Account,Parts
Ashfield District Council,37UB,Terberg Matec UK,V1020776,09/03/2023,38.89,Place & Communities 2,Transport Related Expenses,T35002/C011,Stock Account,Parts
Ashfield District Council,37UB,Terberg Matec UK,V1020777,09/03/2023,330.1,Place & Communities 2,Transport Related Expenses,T35002/C011,Stock Account,Parts
Ashfield District Council,37UB,Terberg Matec UK,V1020777,09/03/2023,12.5,Place & Communities 2,Transport Related Expenses,T35002/C011,Stock Account,Parts
Ashfield District Council,37UB,Terberg Matec UK,V1020848,09/03/2023,-11.25,Place & Communities 2,Transport Related Expenses,T35002/C011,Stock Account,Parts
Ashfield District Council,37UB,Terberg Matec UK,V1021323,16/03/2023,53.07,Place & Communities 2,Transport Related Expenses,T35002/C011,Stock Account,Parts
Ashfield District Council,37UB,Terberg Matec UK,V1021323,16/03/2023,55.76,Place & Communities 2,Transport Related Expenses,T35002/C011,Stock Account,Parts
Ashfield District Council,37UB,Terberg Matec UK,V1021323,16/03/2023,-14.56,Place & Communities 2,Transport Related Expenses,T35002/C011,Stock Account,Parts
Ashfield District Council,37UB,Terberg Matec UK,V1021323,16/03/2023,36.68,Place & Communities 2,Transport Related Expenses,T35002/C011,Stock Account,Parts
Ashfield District Council,37UB,Terberg Matec UK,V1021965,23/03/2023,518.72,Place & Communities 2,Transport Related Expenses,T35002/C011,Stock Account,Parts
Ashfield District Council,37UB,Terberg Matec UK,V1021965,23/03/2023,178.48,Place & Communities 2,Transport Related Expenses,T35002/C011,Stock Account,Parts
Ashfield District Council,37UB,Terberg Matec UK,V1022090,23/03/2023,4.1,Place & Communities 2,Transport Related Expenses,T35002/C011,Stock Account,Parts
Ashfield District Council,37UB,Terberg Matec UK,V1022099,23/03/2023,44.02,Place & Communities 2,Transport Related Expenses,T35002/C011,Stock Account,Parts
Ashfield District Council,37UB,Terberg Matec UK,V1022099,23/03/2023,42.23,Place & Communities 2,Transport Related Expenses,T35002/C011,Stock Account,Parts
Ashfield District Council,37UB,Terberg Matec UK,V1022099,23/03/2023,51.88,Place & Communities 2,Transport Related Expenses,T35002/C011,Stock Account,Parts
Ashfield District Council,37UB,Terberg Matec UK,V1022099,23/03/2023,237.94,Place & Communities 2,Transport Related Expenses,T35002/C011,Stock Account,Parts
Ashfield District Council,37UB,Terberg Matec UK,V1022204,23/03/2023,70.74,Place & Communities 2,Transport Related Expenses,T35002/C011,Stock Account,Parts
Ashfield District Council,37UB,Vehicle Weighing Solutions Ltd,V1022114,23/03/2023,2.79,Place & Communities 2,Transport Related Expenses,T35002/C011,Stock Account,Parts
Ashfield District Council,37UB,Vehicle Weighing Solutions Ltd,V1022114,23/03/2023,125,Place & Communities 2,Transport Related Expenses,T35002/C011,Stock Account,Parts
Ashfield District Council,37UB,,JV293872,15/03/2023,289598,R & B Transformation 2,Supplies & Services,T07020/D600002,Sundry Debtors Total Account,Reimbursements
Ashfield District Council,37UB,,JV293872,15/03/2023,870609.98,R & B Transformation 2,Supplies & Services,T07018/D600002,Sundry Debtors Total Account,Reimbursements
Ashfield District Council,37UB,,JV293872,15/03/2023,5629403.8,R & B Transformation 2,Supplies & Services,T07015/D600002,Sundry Debtors Total Account,Reimbursements
Ashfield District Council,37UB,Access Doors Limited,V1020896,09/03/2023,-25,R & B Transformation 2,Income,T07019002/J106,Sundry Debtors Total Account,Deductions
Ashfield District Council,37UB,Orbis Property Protection Ltd,V1019387,09/03/2023,58.6,Housing & Assets 2,Supplies & Services,T36006008/D200008,Work in Progress,Payments to Contractors External
Ashfield District Council,37UB,Hays,V1020321,09/03/2023,1560,Housing & Assets 2,Employee Expenses,G58000/A200004,Assets & Investments (HRA),Agency Staff
Ashfield District Council,37UB,Hays,V1021315,16/03/2023,1950,Housing & Assets 2,Employee Expenses,G58000/A200004,Assets & Investments (HRA),Agency Staff
Ashfield District Council,37UB,Hays,V1020830,23/03/2023,1950,Housing & Assets 2,Employee Expenses,G58000/A200004,Assets & Investments (HRA),Agency Staff
Ashfield District Council,37UB,Hays,V1022189,23/03/2023,1950,Housing & Assets 2,Employee Expenses,G58000/A200004,Assets & Investments (HRA),Agency Staff
Ashfield District Council,37UB,James Andrews Recruitment Solutions Ltd,V1020182,02/03/2023,5.4,Housing & Assets 2,Employee Expenses,G58000/A200004,Assets & Investments (HRA),Agency Staff
Ashfield District Council,37UB,James Andrews Recruitment Solutions Ltd,V1020182,02/03/2023,744,Housing & Assets 2,Employee Expenses,G58000/A200004,Assets & Investments (HRA),Agency Staff
Ashfield District Council,37UB,James Andrews Recruitment Solutions Ltd,V1020818,09/03/2023,21.15,Housing & Assets 2,Employee Expenses,G58000/A200004,Assets & Investments (HRA),Agency Staff
Ashfield District Council,37UB,James Andrews Recruitment Solutions Ltd,V1020818,09/03/2023,744,Housing & Assets 2,Employee Expenses,G58000/A200004,Assets & Investments (HRA),Agency Staff
Ashfield District Council,37UB,James Andrews Recruitment Solutions Ltd,V1021214,16/03/2023,24.3,Housing & Assets 2,Employee Expenses,G58000/A200004,Assets & Investments (HRA),Agency Staff
Ashfield District Council,37UB,James Andrews Recruitment Solutions Ltd,V1021214,16/03/2023,744,Housing & Assets 2,Employee Expenses,G58000/A200004,Assets & Investments (HRA),Agency Staff
Ashfield District Council,37UB,James Andrews Recruitment Solutions Ltd,V1021915,16/03/2023,682,Housing & Assets 2,Employee Expenses,G58000/A200004,Assets & Investments (HRA),Agency Staff
Ashfield District Council,37UB,James Andrews Recruitment Solutions Ltd,V1022190,23/03/2023,682,Housing & Assets 2,Employee Expenses,G58000/A200004,Assets & Investments (HRA),Agency Staff
Ashfield District Council,37UB,James Andrews Recruitment Solutions Ltd,V1023366,31/03/2023,11.25,Housing & Assets 2,Employee Expenses,G58000/A200004,Assets & Investments (HRA),Agency Staff
Ashfield District Council,37UB,James Andrews Recruitment Solutions Ltd,V1023366,31/03/2023,713,Housing & Assets 2,Employee Expenses,G58000/A200004,Assets & Investments (HRA),Agency Staff
Ashfield District Council,37UB,Niyaa People,V1020181,02/03/2023,5.4,Housing & Assets 2,Employee Expenses,G58000/A200004,Assets & Investments (HRA),Agency Staff
Ashfield District Council,37UB,Niyaa People,V1020194,09/03/2023,5.4,Housing & Assets 2,Employee Expenses,G58000/A200004,Assets & Investments (HRA),Agency Staff
Ashfield District Council,37UB,Niyaa People,V1020200,09/03/2023,18,Housing & Assets 2,Employee Expenses,G58000/A200004,Assets & Investments (HRA),Agency Staff
Ashfield District Council,37UB,Niyaa People,V1020206,09/03/2023,455,Housing & Assets 2,Employee Expenses,G58000/A200004,Assets & Investments (HRA),Agency Staff
Ashfield District Council,37UB,Niyaa People,V1020813,09/03/2023,1312.5,Housing & Assets 2,Employee Expenses,G58000/A200004,Assets & Investments (HRA),Agency Staff
Ashfield District Council,37UB,Niyaa People,V1020817,09/03/2023,1254.17,Housing & Assets 2,Employee Expenses,G58000/A200004,Assets & Investments (HRA),Agency Staff
Ashfield District Council,37UB,Niyaa People,V1020827,09/03/2023,11.7,Housing & Assets 2,Employee Expenses,G58000/A200004,Assets & Investments (HRA),Agency Staff
Ashfield District Council,37UB,Niyaa People,V1020828,09/03/2023,16.75,Housing & Assets 2,Employee Expenses,G58000/A200004,Assets & Investments (HRA),Agency Staff
Ashfield District Council,37UB,Niyaa People,V1020829,09/03/2023,13.05,Housing & Assets 2,Employee Expenses,G58000/A200004,Assets & Investments (HRA),Agency Staff
Ashfield District Council,37UB,Niyaa People,V1020883,09/03/2023,787.5,Housing & Assets 2,Employee Expenses,G58000/A200004,Assets & Investments (HRA),Agency Staff
Ashfield District Council,37UB,Niyaa People,V1020884,09/03/2023,1312.5,Housing & Assets 2,Employee Expenses,G58000/A200004,Assets & Investments (HRA),Agency Staff
Ashfield District Council,37UB,Niyaa People,V1020885,09/03/2023,968.33,Housing & Assets 2,Employee Expenses,G58000/A200004,Assets & Investments (HRA),Agency Staff
Ashfield District Council,37UB,Niyaa People,V1021326,16/03/2023,9,Housing & Assets 2,Employee Expenses,G58000/A200004,Assets & Investments (HRA),Agency Staff
Ashfield District Council,37UB,Niyaa People,V1021912,16/03/2023,802.08,Housing & Assets 2,Employee Expenses,G58000/A200004,Assets & Investments (HRA),Agency Staff
Ashfield District Council,37UB,Niyaa People,V1021913,16/03/2023,1312.5,Housing & Assets 2,Employee Expenses,G58000/A200004,Assets & Investments (HRA),Agency Staff
Ashfield District Council,37UB,Niyaa People,V1021914,16/03/2023,525,Housing & Assets 2,Employee Expenses,G58000/A200004,Assets & Investments (HRA),Agency Staff
Ashfield District Council,37UB,Niyaa People,V1022186,23/03/2023,787.5,Housing & Assets 2,Employee Expenses,G58000/A200004,Assets & Investments (HRA),Agency Staff
Ashfield District Council,37UB,Niyaa People,V1022187,23/03/2023,1312.5,Housing & Assets 2,Employee Expenses,G58000/A200004,Assets & Investments (HRA),Agency Staff
Ashfield District Council,37UB,Niyaa People,V1022188,23/03/2023,1210.42,Housing & Assets 2,Employee Expenses,G58000/A200004,Assets & Investments (HRA),Agency Staff
Ashfield District Council,37UB,Niyaa People,V1022101,31/03/2023,18,Housing & Assets 2,Employee Expenses,G58000/A200004,Assets & Investments (HRA),Agency Staff
Ashfield District Council,37UB,Niyaa People,V1022102,31/03/2023,9,Housing & Assets 2,Employee Expenses,G58000/A200004,Assets & Investments (HRA),Agency Staff
Ashfield District Council,37UB,Niyaa People,V1022743,31/03/2023,9,Housing & Assets 2,Employee Expenses,G58000/A200004,Assets & Investments (HRA),Agency Staff
Ashfield District Council,37UB,Niyaa People,V1023186,31/03/2023,7.2,Housing & Assets 2,Employee Expenses,G58000/A200004,Assets & Investments (HRA),Agency Staff
Ashfield District Council,37UB,Niyaa People,V1023187,31/03/2023,9,Housing & Assets 2,Employee Expenses,G58000/A200004,Assets & Investments (HRA),Agency Staff
Ashfield District Council,37UB,Niyaa People,V1023362,31/03/2023,787.5,Housing & Assets 2,Employee Expenses,G58000/A200004,Assets & Investments (HRA),Agency Staff
Ashfield District Council,37UB,Niyaa People,V1023363,31/03/2023,942.08,Housing & Assets 2,Employee Expenses,G58000/A200004,Assets & Investments (HRA),Agency Staff
Ashfield District Council,37UB,Niyaa People,V1023364,31/03/2023,1312.5,Housing & Assets 2,Employee Expenses,G58000/A200004,Assets & Investments (HRA),Agency Staff
Ashfield District Council,37UB,British Telecom PLC,V1020960,09/03/2023,190.91,Chief Executive 2,Supplies & Services,G51007/D301002,Housing OP and SN,Telephones
Ashfield District Council,37UB,Excel Cleaning Solutions Ltd,V1022698,31/03/2023,15.75,Housing & Assets 2,Premises Expenses,G51041/B003005,Housing OP and SN,Window Cleaning
Ashfield District Council,37UB,Excel Cleaning Solutions Ltd,V1022698,31/03/2023,21,Housing & Assets 2,Premises Expenses,G51029/B003005,Housing OP and SN,Window Cleaning
Ashfield District Council,37UB,Excel Cleaning Solutions Ltd,V1022698,31/03/2023,63,Housing & Assets 2,Premises Expenses,G51039/B003005,Housing OP and SN,Window Cleaning
Ashfield District Council,37UB,Excel Cleaning Solutions Ltd,V1022698,31/03/2023,21,Housing & Assets 2,Premises Expenses,G51029/B003005,Housing OP and SN,Window Cleaning
Ashfield District Council,37UB,Excel Cleaning Solutions Ltd,V1022698,31/03/2023,42,Housing & Assets 2,Premises Expenses,G51029/B003005,Housing OP and SN,Window Cleaning
Ashfield District Council,37UB,Excel Cleaning Solutions Ltd,V1022698,31/03/2023,42,Housing & Assets 2,Premises Expenses,G51042/B003005,Housing OP and SN,Window Cleaning
Ashfield District Council,37UB,Excel Cleaning Solutions Ltd,V1022698,31/03/2023,47.25,Housing & Assets 2,Premises Expenses,G51049/B003005,Housing OP and SN,Window Cleaning
Ashfield District Council,37UB,Excel Cleaning Solutions Ltd,V1022698,31/03/2023,15.75,Housing & Assets 2,Premises Expenses,G51065/B003005,Housing OP and SN,Window Cleaning
Ashfield District Council,37UB,Excel Cleaning Solutions Ltd,V1022698,31/03/2023,63,Housing & Assets 2,Premises Expenses,G51046/B003005,Housing OP and SN,Window Cleaning
Ashfield District Council,37UB,Excel Cleaning Solutions Ltd,V1022698,31/03/2023,21,Housing & Assets 2,Premises Expenses,G51029/B003005,Housing OP and SN,Window Cleaning
Ashfield District Council,37UB,Excel Cleaning Solutions Ltd,V1022699,31/03/2023,99.75,Housing & Assets 2,Premises Expenses,G51022/B003005,Housing OP and SN,Window Cleaning
Ashfield District Council,37UB,Excel Cleaning Solutions Ltd,V1022699,31/03/2023,42,Housing & Assets 2,Premises Expenses,G51021/B003005,Housing OP and SN,Window Cleaning
Ashfield District Council,37UB,Excel Cleaning Solutions Ltd,V1022699,31/03/2023,63,Housing & Assets 2,Premises Expenses,G51026/B003005,Housing OP and SN,Window Cleaning
Ashfield District Council,37UB,Excel Cleaning Solutions Ltd,V1022699,31/03/2023,26.25,Housing & Assets 2,Premises Expenses,G51060/B003005,Housing OP and SN,Window Cleaning
Ashfield District Council,37UB,Excel Cleaning Solutions Ltd,V1022699,31/03/2023,31.5,Housing & Assets 2,Premises Expenses,G51024/B003005,Housing OP and SN,Window Cleaning
Ashfield District Council,37UB,Excel Cleaning Solutions Ltd,V1022699,31/03/2023,18.9,Housing & Assets 2,Premises Expenses,G51038/B003005,Housing OP and SN,Window Cleaning
Ashfield District Council,37UB,Excel Cleaning Solutions Ltd,V1022699,31/03/2023,15.75,Housing & Assets 2,Premises Expenses,G51047/B003005,Housing OP and SN,Window Cleaning
Ashfield District Council,37UB,Excel Cleaning Solutions Ltd,V1022699,31/03/2023,21,Housing & Assets 2,Premises Expenses,G51007/B003005,Housing OP and SN,Window Cleaning
